Workbook

Sheet Rules
A1: RULES
B4: In budget price:
C5: All white boxes : to be filled by AE. Must be representative of the offer display
D6: Each line for EQ can include (or not) sold engineering studies (columns S to Z)
D7: Only specific design related studies must be sold -> to be decided in Feasability review
D8: Indicate a note on the EQ Unit Cost price if a big part was estimated: example : 50% from previous order MS0450, 25% estimated, 25% consulted
C10: All orange boxes in columns K & L: to be filled by ASM for Selling price
C12: SERVICES : lines 29 and down : AE fills the selling price, no margin applied
B17: In Simplified P&L
C18: The first version exists when turnover > 15k
C19: All next revision will be written in sheet 'Budget Price Final Order' that will help you to fill 'Final Order', without touching the '1st Quotation'
C21: Direct man hours
C22: The number of hours are defined in Feasability review. If no feasability review done, AE to estimate. A basis is below:
C33: Spare Parts will be part of the activity of the Order. For Example, Spare Parts Sold with a Project of new Equipment will be integrated in the Equipment Margin.
I34: For Example, Spare Parts Sold with a Project of Revamping will be integrated in the Revamping Margin.
C36: Spare parts offered with installation offer.
C37: Purchased parts we apply a gross margin of 45%. Selling price = Purchase price/0.55
C38: Proprietary parts we apply a gross margin of 70%. Selling price = Purchase price/0.3
C39: In a near future, we shall offer these two “types” of spare parts lists like options in our offers:
C40: - Recommended spare parts for one year operation (For dosing, Recommended spare parts for startup)
C41: - Recommended spare parts for two years operation.
C42: These lists will be defined with the engineers and used as standards spare parts lists.
C47: Man Hours (Engineering…..) that will be sold will be reported in the Turnover of the activity of the project. For New Equipment project, turnover for man hours sold will be reported in the Equipment Turnover.
F48: For Revamping project, turnover for man hours sold will be reported in the Revamping Turnover.
B50: In Price_List
C51: All the lines you don't want to show in the offer must be hidden (not erased)

Sheet Simplified P&L
B1: SIMPLIFIED P&L
A2: Quotation : | B2: 725116 | D2: DAS: | G2: FILTRATION | H2: ASM: | J2: CPIS
A3: Commercial offer version: | B3: 7 | D3: TAC: | G3: EQUIPMENT | H3: T eng. : | J3: ANGO
A4: Technical offer version: | B4: 7 | D4: Incoterm | G4: DAP - Gelsa - Spain | H4: P eng. :
G5: 45 weeks on EXW HASLER France workshop basis
A6: Customer : | B6: St Gobain | D6: Lead time :
A8: Market: | B8: CCH - other | D8: Project description / comments:
D9: Amendment for equipment of RS0540
A10: Country: | B10: Spain
A12: Warranty Conditions | B12: 24 months after commissioning, latest 36 months after delivery
D14: Instructions: | H14: = automatically filled out / do not fill out
A15: % Agent Commissions | B15: =IF('Calculation of commissions'!B10="YES",'Calculation of commissions'!D27,"") ->  | H15: = to be filled out
A18: Description | D18: 1st Quotation | G18: Final Order | J18: End figure | K18: KPI
A21: TOTAL TURNOVER | D21: =SUM(D22:D28) -> 0 | G21: =SUM(G22:G28) ->  | J21: =SUM(J22:J28) -> 0
A22: Equipment | D22: =IF(SUMIFS('Budget Price 1st quotation'!$N:$N,'Budget Price 1st quotation'!$B:$B,"EQUIPMENT")=0,"",SUMIFS('Budget Price 1st quotation'!$N:$N,'Budget Price 1st quotation'!$B:$B,"EQUIPMENT")) ->  | G22: =IF(SUMIFS('Budget Price Final order'!$N:$N,'Budget Price Final order'!$B:$B,"EQUIPMENT")=0,"",SUMIFS('Budget Price Final order'!$N:$N,'Budget Price Final order'!$B:$B,"EQUIPMENT")) -> 427780
A23: Revamping | D23: =IF(SUMIFS('Budget Price 1st quotation'!$N:$N,'Budget Price 1st quotation'!$B:$B,"REVAMPING")=0,"",SUMIFS('Budget Price 1st quotation'!$N:$N,'Budget Price 1st quotation'!$B:$B,"REVAMPING")) ->  | G23: =IF(SUMIFS('Budget Price Final order'!$N:$N,'Budget Price Final order'!$B:$B,"REVAMPING")=0,"",SUMIFS('Budget Price Final order'!$N:$N,'Budget Price Final order'!$B:$B,"REVAMPING")) -> 
A24: Spare Parts | D24: =IF(SUMIFS('Budget Price 1st quotation'!$N:$N,'Budget Price 1st quotation'!$B:$B,"SPARE PARTS")=0,"",SUMIFS('Budget Price 1st quotation'!$N:$N,'Budget Price 1st quotation'!$B:$B,"SPARE PARTS")) ->  | G24: =IF(SUMIFS('Budget Price Final order'!$N:$N,'Budget Price Final order'!$B:$B,"SPARE PARTS")=0,"",SUMIFS('Budget Price Final order'!$N:$N,'Budget Price Final order'!$B:$B,"SPARE PARTS")) -> 
A25: Freight out and Packaging | D25: =IF((SUMIFS('Budget Price 1st quotation'!$N:$N,'Budget Price 1st quotation'!$B:$B,"PACKAGING")+SUMIFS('Budget Price 1st quotation'!$N:$N,'Budget Price 1st quotation'!$B:$B,"TRANSPORT"))=0,"",SUMIFS('Budget Price 1st quotation'!$N:$N,'Budget Price 1st quotation'!$B:$B,"PACKAGING")+SUMIFS('Budget Price 1st quotation'!$N:$N,'Budget Price 1st quotation'!$B:$B,"TRANSPORT")) ->  | G25: =IF((SUMIFS('Budget Price Final order'!$N:$N,'Budget Price Final order'!$B:$B,"PACKAGING")+SUMIFS('Budget Price Final order'!$N:$N,'Budget Price Final order'!$B:$B,"TRANSPORT"))=0,"",SUMIFS('Budget Price Final order'!$N:$N,'Budget Price Final order'!$B:$B,"PACKAGING")+SUMIFS('Budget Price Final order'!$N:$N,'Budget Price Final order'!$B:$B,"TRANSPORT")) -> 
A26: Service | D26: =IF(SUMIFS('Budget Price 1st quotation'!$N:$N,'Budget Price 1st quotation'!$B:$B,"SERVICE")=0,"",SUMIFS('Budget Price 1st quotation'!$N:$N,'Budget Price 1st quotation'!$B:$B,"SERVICE")) ->  | G26: =IF(SUMIFS('Budget Price Final order'!$N:$N,'Budget Price Final order'!$B:$B,"SERVICE")=0,"",SUMIFS('Budget Price Final order'!$N:$N,'Budget Price Final order'!$B:$B,"SERVICE")) -> 
A27: Warranty Extension | B27: =IF(AND(B12<>"12 months after commissioning, latest 18 months after delivery",B12<>"18 months after commissioning, latest 24 months after delivery",B12<>""),"Extension to quote (6% per adding year)","") -> Extension to quote (6% per adding year) | D27: =IF('Budget Price 1st quotation'!N25=0,"",'Budget Price 1st quotation'!N25) ->  | G27: =IF('Budget Price Final order'!N25=0,"",'Budget Price Final order'!N25) -> 
A28: Other (Bank Charge Fees)
A30: DIRECT EXTERNAL EXPENSES
A31: Purchasing | D31: =+D32+D38 -> 0 | G31: =+G32+G38 -> 261229 | J31: =+J32+J38 -> 0 | K31: =IFERROR(J31/$G31,"") -> 0
A32: Material & Transport Purchasing | D32: =+SUM(D34:D37) -> 0 | G32: =+SUM(G34:G37) -> 261229 | J32: =+SUM(J34:J37) -> 0 | K32: =IFERROR(J32/$G32,"") -> 0
A33: Mechanical parts | D33: =+D34+D35 -> 0 | G33: =+G34+G35 -> 261229 | J33: =+J34+J35 -> 0 | K33: =IFERROR(J33/$G33,"") -> 0
A34: Third Party | D34: =IF(SUMIFS('Budget Price 1st quotation'!$H:$H,'Budget Price 1st quotation'!$C:$C,"MECA")=0,0,SUMIFS('Budget Price 1st quotation'!$H:$H,'Budget Price 1st quotation'!$C:$C,"MECA"))-D35 -> 0 | G34: =IF(SUMIFS('Budget Price Final order'!$H:$H,'Budget Price Final order'!$C:$C,"MECA")=0,0,SUMIFS('Budget Price Final order'!$H:$H,'Budget Price Final order'!$C:$C,"MECA"))-G35 -> 261229 | K34: =IFERROR(J34/$G34,"") -> 0
A35: Hasler China
A36: Electrical parts | D36: =IF(SUMIFS('Budget Price 1st quotation'!$H:$H,'Budget Price 1st quotation'!$C:$C,"ELEC")=0,0,SUMIFS('Budget Price 1st quotation'!$H:$H,'Budget Price 1st quotation'!$C:$C,"ELEC")) -> 0 | G36: =IF(SUMIFS('Budget Price Final order'!$H:$H,'Budget Price Final order'!$C:$C,"ELEC")=0,0,SUMIFS('Budget Price Final order'!$H:$H,'Budget Price Final order'!$C:$C,"ELEC")) -> 0 | K36: =IFERROR(J36/$G36,"") -> 
A37: Packaging and Freight Out | D37: =IF((SUMIFS('Budget Price 1st quotation'!$H:$H,'Budget Price 1st quotation'!$B:$B,"PACKAGING")+SUMIFS('Budget Price 1st quotation'!$H:$H,'Budget Price 1st quotation'!$B:$B,"TRANSPORT"))=0,"",SUMIFS('Budget Price 1st quotation'!$H:$H,'Budget Price 1st quotation'!$B:$B,"PACKAGING")+SUMIFS('Budget Price 1st quotation'!$H:$H,'Budget Price 1st quotation'!$B:$B,"TRANSPORT")) ->  | G37: =IF((SUMIFS('Budget Price Final order'!$H:$H,'Budget Price Final order'!$B:$B,"PACKAGING")+SUMIFS('Budget Price Final order'!$H:$H,'Budget Price Final order'!$B:$B,"TRANSPORT"))=0,"",SUMIFS('Budget Price Final order'!$H:$H,'Budget Price Final order'!$B:$B,"PACKAGING")+SUMIFS('Budget Price Final order'!$H:$H,'Budget Price Final order'!$B:$B,"TRANSPORT")) -> 
A38: External Subcontracting & Travel Expenses | D38: =+SUM(D39:D43) -> 0 | G38: =+SUM(G39:G43) -> 0 | J38: =+SUM(J39:J43) -> 0
A39: Technical Subcontracting | D39: ='Budget Price 1st quotation'!H21 -> 0 | G39: ='Budget Price Final order'!H21 -> 0
A40: Purchasing Subcontracting | D40: ='Budget Price 1st quotation'!H22 -> 0 | G40: ='Budget Price Final order'!H22 -> 0
A41: Service Subcontracting | D41: ='Budget Price 1st quotation'!H23 -> 0 | G41: ='Budget Price Final order'!H23 -> 0
A42: Travel Expenses | D42: ='Budget Price 1st quotation'!H24 -> 0 | G42: ='Budget Price Final order'!H24 -> 0
A43: Miscellaneous | D43: ='Budget Price 1st quotation'!H25 -> 0 | G43: ='Budget Price Final order'!H25 -> 0
A45: GROSS MARGIN ON DIRECT EXTERNAL COSTS (M1) | C45: GM1 % | D45: =+D21-D31 -> 0 | F45: GM1 % | G45: =+G21-G31 ->  | I45: GM1 % | J45: =+J21-J31 -> 0 | K45: =IFERROR(J45/$G45,"") -> 
A47: Equipment (including Spare Parts) | B47: =IF(C47<SUMIFS('Budget Target'!$D$5:$D$16,'Budget Target'!$B$5:$B$16,"EQUIPMENT",'Budget Target'!$C$5:$C$16,'Simplified P&L'!$G$2),"Below Target!","") ->  | C47: =IF($D$22="","",+D47/(SUMIF('Budget Price 1st quotation'!$B:$B,"EQUIPMENT",'Budget Price 1st quotation'!$N:$N)+IF($G$3="EQUIPMENT",SUMIF('Budget Price 1st quotation'!$B:$B,"SPARE PARTS",'Budget Price 1st quotation'!$N:$N)))) ->  | D47: =SUMIF('Budget Price 1st quotation'!$B:$B,"EQUIPMENT",'Budget Price 1st quotation'!$O:$O)+IF(G3="EQUIPMENT",SUMIF('Budget Price 1st quotation'!$B:$B,"SPARE PARTS",'Budget Price 1st quotation'!$O:$O)) -> 0 | E47: =IF(F47<SUMIFS('Budget Target'!$D$5:$D$16,'Budget Target'!$B$5:$B$16,"EQUIPMENT",'Budget Target'!$C$5:$C$16,'Simplified P&L'!$G$2),"Below Target!","") ->  | F47: =IF($G$22="","",+G47/(SUMIF('Budget Price Final order'!$B:$B,"EQUIPMENT",'Budget Price Final order'!$N:$N)+IF($G$3="EQUIPMENT",SUMIF('Budget Price Final order'!$B:$B,"SPARE PARTS",'Budget Price Final order'!$N:$N)))) -> 0.3893379775 | G47: =SUMIF('Budget Price Final order'!$B:$B,"EQUIPMENT",'Budget Price Final order'!$O:$O)+IF(G3="EQUIPMENT",SUMIF('Budget Price Final order'!$B:$B,"SPARE PARTS",'Budget Price Final order'!$O:$O)) -> 166551 | H47: =IF(I47="","",IF(I47<SUMIFS('Budget Target'!$D$5:$D$16,'Budget Target'!$B$5:$B$16,"EQUIPMENT",'Budget Target'!$C$5:$C$16,'Simplified P&L'!$G$2),"Below Target!","")) ->  | J47: 0
A48: Revamping (including Spare Parts) | B48: =IF(C48<SUMIFS('Budget Target'!$D$5:$D$16,'Budget Target'!$B$5:$B$16,"REVAMPING",'Budget Target'!$C$5:$C$16,'Simplified P&L'!$G$2),"Below Target!","") ->  | C48: =IF($D$23="","",+D48/(SUMIF('Budget Price 1st quotation'!$B:$B,"REVAMPING",'Budget Price 1st quotation'!$N:$N)+IF($G$3="REVAMPING",SUMIF('Budget Price 1st quotation'!$B:$B,"SPARE PARTS",'Budget Price 1st quotation'!$N:$N)))) ->  | D48: =SUMIF('Budget Price 1st quotation'!$B:$B,"REVAMPING",'Budget Price 1st quotation'!$O:$O)+IF(G3="REVAMPING",SUMIF('Budget Price 1st quotation'!$B:$B,"SPARE PARTS",'Budget Price 1st quotation'!$O:$O)) -> 0 | E48: =IF(F48<SUMIFS('Budget Target'!$D$5:$D$16,'Budget Target'!$B$5:$B$16,"REVAMPING",'Budget Target'!$C$5:$C$16,'Simplified P&L'!$G$2),"Below Target!","") ->  | F48: =IF($G$23="","",+G48/(SUMIF('Budget Price Final order'!$B:$B,"REVAMPING",'Budget Price Final order'!$N:$N)+IF($G$3="REVAMPING",SUMIF('Budget Price Final order'!$B:$B,"SPARE PARTS",'Budget Price Final order'!$N:$N)))) ->  | G48: =SUMIF('Budget Price Final order'!$B:$B,"REVAMPING",'Budget Price Final order'!$O:$O)+IF(G3="REVAMPING",SUMIF('Budget Price Final order'!$B:$B,"SPARE PARTS",'Budget Price Final order'!$O:$O)) -> 0 | H48: =IF(I48="","",IF(I48<SUMIFS('Budget Target'!$D$5:$D$16,'Budget Target'!$B$5:$B$16,"REVAMPING",'Budget Target'!$C$5:$C$16,'Simplified P&L'!$G$2),"Below Target!","")) -> 
A49: Freight out and Packaging | B49: =IF(C49<SUMIFS('Budget Target'!$D$5:$D$16,'Budget Target'!$B$5:$B$16,"PORT",'Budget Target'!$C$5:$C$16,'Simplified P&L'!$G$2),"Below Target!","") ->  | C49: =IF($D$25="","",+D49/D25) ->  | D49: =SUMIF('Budget Price 1st quotation'!$B:$B,"PACKAGING",'Budget Price 1st quotation'!$O:$O)+SUMIF('Budget Price 1st quotation'!$B:$B,"TRANSPORT",'Budget Price 1st quotation'!$O:$O) -> 0 | E49: =IF(F49<SUMIFS('Budget Target'!$D$5:$D$16,'Budget Target'!$B$5:$B$16,"PORT",'Budget Target'!$C$5:$C$16,'Simplified P&L'!$G$2),"Below Target!","") ->  | F49: =IF($G$25="","",+G49/G25) ->  | G49: =SUMIF('Budget Price Final order'!$B:$B,"PACKAGING",'Budget Price Final order'!$O:$O)+SUMIF('Budget Price Final order'!$B:$B,"TRANSPORT",'Budget Price Final order'!$O:$O) -> 0 | H49: =IF(I49="","",IF(I49<SUMIFS('Budget Target'!$D$5:$D$16,'Budget Target'!$B$5:$B$16,"PORT",'Budget Target'!$C$5:$C$16,'Simplified P&L'!$G$2),"Below Target!","")) -> 
A50: Service | C50: =IF($D$26="","",+D50/D26) ->  | D50: =SUMIF('Budget Price 1st quotation'!$B:$B,"SERVICE",'Budget Price 1st quotation'!$O:$O) ->  | F50: =IF($G$26="","",+G50/G26) ->  | G50: =SUMIF('Budget Price Final order'!$B:$B,"SERVICE",'Budget Price Final order'!$O:$O) -> 
A51: % M1 / TOTAL Turnover | C51: =IF(D21=0,"",+D45/D21) ->  | D51: =IF(E21=0,"",+E45/E21) ->  | F51: =IF(G21=0,"",+G45/G21) ->  | I51: =IF(J21=0,"",+J45/J21) ->  | K51: =IFERROR(I51/$F51,"") -> 
A53: MAN HOURS | K53: =IFERROR(J53/$D53,"") -> 
A54: Direct man hours | B54: Direct Hourly Pex Cost Rates: | C54: 1st Quotation Hours Qty | D54: =+D55+D58+D59+D60+D63 -> 0 | F54: Final Order - Hours Qty | G54: =+G55+G58+G59+G60+G63 -> 0 | I54: Final Hours Qty | J54: =+J55+J58+J59+J60+J63 -> 0 | K54: =IFERROR(J54/$G54,"") -> 
A55: Technical department | B55: 50 | C55: =SUM(C56:C57) -> 0 | D55: =SUM(D56:D57) -> 0 | F55: =SUM(F56:F57) -> 0 | G55: =SUM(G56:G57) -> 0 | I55: =SUM(I56:I57) -> 0 | J55: =SUM(J56:J57) -> 0
A56: Mechanical | D56: =+C56*B55 -> 0 | G56: =+F56*B55 -> 0 | J56: =$I$56*$B$55 -> 0
A57: Electrical | D57: =+C57*B55 -> 0 | G57: =+F57*B55 -> 0 | J57: =$I$57*$B$55 -> 0
A58: Purchasing | B58: 50 | D58: =+C58*B58 -> 0 | G58: =+F58*B58 -> 0 | J58: =$I$58*$B$58 -> 0
A59: Project Management | B59: 65 | D59: =+C59*B59 -> 0 | G59: =+F59*B59 -> 0 | J59: =$I$59*$B$59 -> 0
A60: Workshop | B60: 40 | C60: =+C61+C62 -> 0 | D60: =+C60*B60 -> 0 | F60: =+F61+F62 -> 0 | G60: =SUM(G61:G62) -> 0 | I60: =+I61+I62 -> 0 | J60: =SUM(J61:J62) -> 0
A61: Assembling | D61: =+C61*B60 -> 0 | G61: =+F61*B60 -> 0 | J61: =$I$61*$B$60 -> 0
A62: Packaging | D62: =+C62*B60 -> 0 | G62: =+F62*B60 -> 0 | J62: =$I$62*$B$60 -> 0
A63: Service | B63: 50 | D63: =+C63*B63 -> 0 | G63: =+F63*B63 -> 0 | J63: =$I$63*$B$63 -> 0
K64: =IFERROR(J64/$G64,"") -> 
K65: =IFERROR(J65/$G65,"") -> 
A66: OTHER COSTS
A67: Other Costs (Commission, Financial Costs…) | D67: =+D69+D71+D73 ->  | G67: =+G69+G71+G73 ->  | J67: =+J69+J71+J73 ->  | K67: =IFERROR(J67/$G67,"") -> 
A68: % of commission (% CA) | D68: =+B15 ->  | G68: =+D68 ->  | J68: =+G68 -> 
A69: Commission | D69: =D68*SUM(D22:D24) ->  | G69: =G68*SUM(G22:G24) ->  | J69: =J68*SUM(J22:J24) -> 
A70: % financial cost | D70: 0 | G70: 0 | J70: 0
A71: Financial cost (Bank warranties etc.) | D71: =D70*D21 -> 0 | G71: =G70*G21 ->  | J71: =J70*J21 -> 0
A72: Other Cost
A75: TOTAL COST (Ext Exp + Man H + Other) | D75: =+D67+D54+D31 ->  | G75: =+G67+G54+G31 ->  | J75: =+J67+J54+J31 -> 
A77: Margin on TOTAL Direct Costs (M2) | D77: =+D21-D75 ->  | G77: =+G21-G75 ->  | J77: =+J21-J75 ->  | K77: =IFERROR(J77/$D77,"") -> 
A78: % M2 / TOTAL Turnover | D78: =+D77/D21 ->  | G78: =+G77/G21 ->  | J78: =+J77/J21 ->  | K78: =IFERROR(J78/$D78,"") -> 
A80: % overhead (% turnover) | D80: =+'Budget Target'!D37 -> 0.327953232 | G80: =+D80 -> 0.327953232 | J80: =+G80 -> 0.327953232 | K80: =IFERROR(J80/$D80,"") -> 1
A81: TOTAL OVERHEAD | D81: =+D80*D21 -> 0 | G81: =+G80*G21 ->  | J81: =+J80*J21 -> 0 | K81: =IFERROR(J81/$D81,"") -> 
A83: EBIT (M3) | D83: =+D77-D81 ->  | G83: =+G77-G81 ->  | J83: =+J77-J81 ->  | K83: =IFERROR(J83/$D83,"") -> 
A84: % EBIT / Turnover | D84: =D83/D21 ->  | G84: =G83/G21 ->  | J84: =J83/J21 ->  | K84: =IFERROR(J84/$D84,"") -> 

Sheet Budget Price 1st quotation
T1: DIRECT HOURS SOLD
A2: Position | B2: Type of Eqpt | C2: Meca/Elec | D2: Base / Options | E2: DESCRIPTION | F2: RÉFÉRENCE | G2: QTY | H2: TOTAL EQ Cost | I2: TOTAL Hours cost | J2: TOTAL Cost | K2: EQ Unit selling price | L2: Total Hours Selling Price | M2: TOTAL EQ Selling Price | N2: TOTAL Selling Price | O2: Gross Margin on Direct External Costs | P2: Gross Margin on Direct External Costs | Q2: Margin on EQ | R2: Margin on hours | S2: EQ Unit Cost | T2: Nb hours TECH | U2: Hours Unit Cost | V2: Nb hours PUR | W2: Hours Unit Cost | X2: Nb hours PM | Y2: Hours Unit Cost | Z2: Nb hours WORKSHOP | AA2: Hours Unit Cost
A3: 1 | D3: BASE | H3: =+S3*G3 -> 0 | I3: =T3*U3+V3*W3+X3*Y3+Z3*AA3 -> 0 | J3: =I3+H3 -> 0 | M3: =G3*K3 -> 0 | N3: =M3+L3 -> 0 | O3: =+N3-H3 -> 0 | P3: =IF(G3="","",+O3/N3) ->  | Q3: =IF(G3="","",(M3-H3)/M3) ->  | R3: =IF(I3=0,"",(L3-I3)/L3) ->  | U3: ='Simplified P&L'!$B$55 -> 50 | W3: ='Simplified P&L'!$B$58 -> 50 | Y3: ='Simplified P&L'!$B$59 -> 65 | AA3: ='Simplified P&L'!$B$60 -> 40
A4: 1 | D4: BASE | H4: =+S4*G4 -> 0 | I4: =T4*U4+V4*W4+X4*Y4+Z4*AA4 -> 0 | J4: =I4+H4 -> 0 | M4: =G4*K4 -> 0 | N4: =M4+L4 -> 0 | O4: =+N4-H4 -> 0 | P4: =IF(G4="","",+O4/N4) ->  | Q4: =IF(G4="","",(M4-H4)/M4) ->  | R4: =IF(I4=0,"",(L4-I4)/L4) ->  | U4: ='Simplified P&L'!$B$55 -> 50 | W4: ='Simplified P&L'!$B$58 -> 50 | Y4: ='Simplified P&L'!$B$59 -> 65 | AA4: ='Simplified P&L'!$B$60 -> 40
A5: 1 | D5: BASE | H5: 0 | I5: 0 | J5: 0 | M5: 0 | N5: 0 | O5: 0 | Q5: =IF(G5="","",(M5-H5)/M5) ->  | R5: =IF(I5=0,"",(L5-I5)/L5) ->  | U5: ='Simplified P&L'!$B$55 -> 50 | W5: ='Simplified P&L'!$B$58 -> 50 | Y5: ='Simplified P&L'!$B$59 -> 65 | AA5: ='Simplified P&L'!$B$60 -> 40
A6: 1 | D6: BASE | H6: =+S6*G6 -> 0 | I6: =T6*U6+V6*W6+X6*Y6+Z6*AA6 -> 0 | J6: =I6+H6 -> 0 | M6: =G6*K6 -> 0 | N6: =M6+L6 -> 0 | O6: =+N6-H6 -> 0 | P6: =IF(G6="","",+O6/N6) ->  | Q6: =IF(G6="","",(M6-H6)/M6) ->  | R6: =IF(I6=0,"",(L6-I6)/L6) ->  | U6: ='Simplified P&L'!$B$55 -> 50 | W6: ='Simplified P&L'!$B$58 -> 50 | Y6: ='Simplified P&L'!$B$59 -> 65 | AA6: ='Simplified P&L'!$B$60 -> 40
A7: 1 | D7: BASE | H7: 0 | I7: 0 | J7: 0 | M7: 0 | N7: 0 | O7: 0 | U7: ='Simplified P&L'!$B$55 -> 50 | W7: ='Simplified P&L'!$B$58 -> 50 | Y7: ='Simplified P&L'!$B$59 -> 65 | AA7: ='Simplified P&L'!$B$60 -> 40
A8: 1 | D8: BASE | H8: 0 | I8: 0 | J8: 0 | M8: 0 | N8: 0 | O8: 0 | U8: ='Simplified P&L'!$B$55 -> 50 | W8: ='Simplified P&L'!$B$58 -> 50 | Y8: ='Simplified P&L'!$B$59 -> 65 | AA8: ='Simplified P&L'!$B$60 -> 40
A9: 1 | D9: BASE | H9: 0 | I9: 0 | J9: 0 | M9: 0 | N9: 0 | O9: 0 | U9: ='Simplified P&L'!$B$55 -> 50 | W9: ='Simplified P&L'!$B$58 -> 50 | Y9: ='Simplified P&L'!$B$59 -> 65 | AA9: ='Simplified P&L'!$B$60 -> 40
A10: 1 | D10: BASE | H10: =+S10*G10 -> 0 | I10: =T10*U10+V10*W10+X10*Y10+Z10*AA10 -> 0 | J10: =I10+H10 -> 0 | M10: =G10*K10 -> 0 | N10: =M10+L10 -> 0 | O10: =+N10-H10 -> 0 | P10: =IF(G10="","",+O10/N10) ->  | Q10: =IF(G10="","",(M10-H10)/M10) ->  | R10: =IF(I10=0,"",(L10-I10)/L10) ->  | U10: ='Simplified P&L'!$B$55 -> 50 | W10: ='Simplified P&L'!$B$58 -> 50 | Y10: ='Simplified P&L'!$B$59 -> 65 | AA10: ='Simplified P&L'!$B$60 -> 40
A11: 0 | D11: BASE | H11: 0 | I11: 0 | J11: 0 | M11: 0 | N11: 0 | O11: 0 | U11: ='Simplified P&L'!$B$55 -> 50 | W11: ='Simplified P&L'!$B$58 -> 50 | Y11: ='Simplified P&L'!$B$59 -> 65 | AA11: ='Simplified P&L'!$B$60 -> 40
A12: 0 | D12: BASE | H12: 0 | I12: 0 | J12: 0 | M12: 0 | N12: 0 | O12: 0 | U12: ='Simplified P&L'!$B$55 -> 50 | W12: ='Simplified P&L'!$B$58 -> 50 | Y12: ='Simplified P&L'!$B$59 -> 65 | AA12: ='Simplified P&L'!$B$60 -> 40
A13: 0 | D13: BASE | H13: =+S13*G13 -> 0 | I13: =T13*U13+V13*W13+X13*Y13+Z13*AA13 -> 0 | J13: =I13+H13 -> 0 | M13: =G13*K13 -> 0 | N13: =M13+L13 -> 0 | O13: =+N13-H13 -> 0 | P13: =IF(G13="","",+O13/N13) ->  | Q13: =IF(G13="","",(M13-H13)/M13) ->  | R13: =IF(I13=0,"",(L13-I13)/L13) ->  | U13: ='Simplified P&L'!$B$55 -> 50 | W13: ='Simplified P&L'!$B$58 -> 50 | Y13: ='Simplified P&L'!$B$59 -> 65 | AA13: ='Simplified P&L'!$B$60 -> 40
A15: 0 | D15: OPTIONS | H15: =+S15*G15 -> 0 | I15: =T15*U15+V15*W15+X15*Y15+Z15*AA15 -> 0 | J15: =I15+H15 -> 0 | M15: =G15*K15 -> 0 | N15: =M15+L15 -> 0 | O15: =+N15-H15 -> 0 | P15: =IF(G15="","",+O15/N15) ->  | Q15: =IF(G15="","",(M15-H15)/M15) ->  | R15: =IF(I15=0,"",(L15-I15)/L15) ->  | U15: ='Simplified P&L'!$B$55 -> 50 | W15: ='Simplified P&L'!$B$58 -> 50 | Y15: ='Simplified P&L'!$B$59 -> 65 | AA15: ='Simplified P&L'!$B$60 -> 40
A16: 0 | D16: OPTIONS | H16: 0 | I16: 0 | J16: 0 | M16: 0 | N16: 0 | O16: 0 | U16: ='Simplified P&L'!$B$55 -> 50 | W16: ='Simplified P&L'!$B$58 -> 50 | Y16: ='Simplified P&L'!$B$59 -> 65 | AA16: ='Simplified P&L'!$B$60 -> 40
A17: 0 | D17: OPTIONS | H17: =+S17*G17 -> 0 | I17: =T17*U17+V17*W17+X17*Y17+Z17*AA17 -> 0 | J17: =I17+H17 -> 0 | M17: =G17*K17 -> 0 | N17: =M17+L17 -> 0 | O17: =+N17-H17 -> 0 | P17: =IF(G17="","",+O17/N17) ->  | Q17: =IF(G17="","",(M17-H17)/M17) ->  | R17: =IF(I17=0,"",(L17-I17)/L17) ->  | U17: ='Simplified P&L'!$B$55 -> 50 | W17: ='Simplified P&L'!$B$58 -> 50 | Y17: ='Simplified P&L'!$B$59 -> 65 | AA17: ='Simplified P&L'!$B$60 -> 40
A18: 0 | D18: OPTIONS | H18: 0 | I18: 0 | J18: 0 | M18: 0 | N18: 0 | O18: 0 | U18: ='Simplified P&L'!$B$55 -> 50 | W18: ='Simplified P&L'!$B$58 -> 50 | Y18: ='Simplified P&L'!$B$59 -> 65 | AA18: ='Simplified P&L'!$B$60 -> 40
A19: 0 | D19: OPTIONS | H19: 0 | I19: 0 | J19: 0 | M19: 0 | N19: 0 | O19: 0 | U19: ='Simplified P&L'!$B$55 -> 50 | W19: ='Simplified P&L'!$B$58 -> 50 | Y19: ='Simplified P&L'!$B$59 -> 65 | AA19: ='Simplified P&L'!$B$60 -> 40
A21: 0 | B21: ='Simplified P&L'!$G$3 -> EQUIPMENT | D21: Technical Subcontracting | H21: =+S21*G21 -> 0 | I21: =T21*U21+V21*W21+X21*Y21+Z21*AA21 -> 0 | J21: =I21+H21 -> 0 | M21: =G21*K21 -> 0 | N21: =M21+L21 -> 0 | O21: =+N21-H21 -> 0 | P21: =IF(G21="","",+O21/N21) ->  | Q21: =IF(G21="","",(M21-H21)/M21) ->  | R21: =IF(I21=0,"",(L21-I21)/L21) ->  | U21: ='Simplified P&L'!$B$55 -> 50 | W21: ='Simplified P&L'!$B$58 -> 50 | Y21: ='Simplified P&L'!$B$59 -> 65 | AA21: ='Simplified P&L'!$B$60 -> 40
A22: 0 | B22: ='Simplified P&L'!$G$3 -> EQUIPMENT | D22: Purchasing Subcontracting | H22: =+S22*G22 -> 0 | I22: =T22*U22+V22*W22+X22*Y22+Z22*AA22 -> 0 | J22: =I22+H22 -> 0 | M22: =G22*K22 -> 0 | N22: =M22+L22 -> 0 | O22: =+N22-H22 -> 0 | P22: =IF(G22="","",+O22/N22) ->  | Q22: =IF(G22="","",(M22-H22)/M22) ->  | R22: =IF(I22=0,"",(L22-I22)/L22) ->  | U22: ='Simplified P&L'!$B$55 -> 50 | W22: ='Simplified P&L'!$B$58 -> 50 | Y22: ='Simplified P&L'!$B$59 -> 65 | AA22: ='Simplified P&L'!$B$60 -> 40
A23: 0 | B23: SERVICE | D23: Service Subcontracting | H23: 0 | I23: 0 | J23: 0 | M23: 0 | N23: 0 | O23: 0 | P23: =IF(G23="","",+O23/N23) ->  | Q23: =IF(G23="","",(M23-H23)/M23) ->  | U23: ='Simplified P&L'!$B$55 -> 50 | W23: ='Simplified P&L'!$B$58 -> 50 | Y23: ='Simplified P&L'!$B$59 -> 65 | AA23: ='Simplified P&L'!$B$60 -> 40
A24: 0 | B24: ='Simplified P&L'!$G$3 -> EQUIPMENT | D24: Travel Expenses | H24: 0 | I24: 0 | J24: 0 | M24: 0 | N24: 0 | O24: 0 | U24: ='Simplified P&L'!$B$55 -> 50 | W24: ='Simplified P&L'!$B$58 -> 50 | Y24: ='Simplified P&L'!$B$59 -> 65 | AA24: ='Simplified P&L'!$B$60 -> 40
A25: 0 | B25: ='Simplified P&L'!$G$3 -> EQUIPMENT | D25: Miscellaneous (warranty extension) | H25: =+S25*G25 -> 0 | I25: =T25*U25+V25*W25+X25*Y25+Z25*AA25 -> 0 | J25: =I25+H25 -> 0 | M25: =G25*K25 -> 0 | N25: =M25+L25 -> 0 | O25: =+N25-H25 -> 0 | P25: =IF(G25="","",+O25/N25) ->  | U25: ='Simplified P&L'!$B$55 -> 50 | W25: ='Simplified P&L'!$B$58 -> 50 | Y25: ='Simplified P&L'!$B$59 -> 65 | AA25: ='Simplified P&L'!$B$60 -> 40
A27: 0 | B27: PACKAGING | H27: =+S27*G27 -> 0 | I27: =T27*U27+V27*W27+X27*Y27+Z27*AA27 -> 0 | J27: =I27+H27 -> 0 | K27: =ROUNDUP(S27/(1-'Budget Target'!$D$13),-1) -> 0 | M27: =G27*K27 -> 0 | N27: =M27+L27 -> 0 | O27: =+N27-H27 -> 0 | P27: =IF(G27="","",+O27/N27) ->  | Q27: =IF(G27="","",(M27-H27)/M27) ->  | U27: ='Simplified P&L'!$B$55 -> 50 | W27: ='Simplified P&L'!$B$58 -> 50 | Y27: ='Simplified P&L'!$B$59 -> 65 | AA27: ='Simplified P&L'!$B$60 -> 40
A28: 0 | B28: TRANSPORT | E28: ='Simplified P&L'!G4 -> DAP - Gelsa - Spain | H28: =+S28*G28 -> 0 | I28: =T28*U28+V28*W28+X28*Y28+Z28*AA28 -> 0 | J28: =I28+H28 -> 0 | K28: =ROUNDUP(S28/(1-'Budget Target'!$D$13),-1) -> 0 | M28: 0 | N28: 0 | O28: 0 | U28: ='Simplified P&L'!$B$55 -> 50 | W28: ='Simplified P&L'!$B$58 -> 50 | Y28: ='Simplified P&L'!$B$59 -> 65 | AA28: ='Simplified P&L'!$B$60 -> 40
A30: 0 | B30: SERVICE | E30: =IF(A30=1,IF(Configuration!$B$2="Français",Configuration!AJ57,Configuration!AI57),"") ->  | G30: 0 | N30: =IF(A30=1, IF(AND('Simplified P&L'!B10="France",OR('Simplified P&L'!G2=Configuration!P8,'Simplified P&L'!G2=Configuration!P6)), 'Service Calculation'!H31, IF(AND('Simplified P&L'!B10="France",OR('Simplified P&L'!G2=Configuration!P5,Configuration!P7='Simplified P&L'!G2)), 'Service Calculation'!N31, IF(AND('Simplified P&L'!B10<>"France",OR('Simplified P&L'!G2=Configuration!P5,Configuration!P7='Simplified P&L'!G2)), 'Service Calculation'!Q31, 'Service Calculation'!K31 ) ) ), "") ->  | O30: =N30*G30 ->  | P30: =IF(G30="","",+O30/N30) -> 
A31: 0 | B31: SERVICE | E31: =IF(A30=1,IF(Configuration!$B$2="Français",Configuration!AJ58,Configuration!AI58),"") ->  | G31: 0 | N31: =IF(A30=1, IF(AND('Simplified P&L'!B10="France",OR('Simplified P&L'!G2=Configuration!P8,'Simplified P&L'!G2=Configuration!P6)), 'Service Calculation'!G34, IF(AND('Simplified P&L'!B10="France",OR('Simplified P&L'!G2=Configuration!P5,Configuration!P7='Simplified P&L'!G2)), 'Service Calculation'!M34, IF(AND('Simplified P&L'!B10<>"France",OR('Simplified P&L'!G2=Configuration!P5,Configuration!P7='Simplified P&L'!G2)), 'Service Calculation'!P34, 'Service Calculation'!J34 ) ) ), "") ->  | O31: =N31*G31 ->  | P31: =IF(G31="","",+O31/N31) -> 
A32: 0 | B32: SERVICE | E32: =IF(A30=1,IF(Configuration!$B$2="Français",Configuration!AJ59,Configuration!AI59),"") ->  | G32: 0 | N32: =IF(A30=1, IF(AND('Simplified P&L'!B10="France",OR('Simplified P&L'!G2=Configuration!P8,'Simplified P&L'!G2=Configuration!P6)), 'Service Calculation'!G35, IF(AND('Simplified P&L'!B10="France",OR('Simplified P&L'!G2=Configuration!P5,Configuration!P7='Simplified P&L'!G2)), 'Service Calculation'!M35, IF(AND('Simplified P&L'!B10<>"France",OR('Simplified P&L'!G2=Configuration!P5,Configuration!P7='Simplified P&L'!G2)), 'Service Calculation'!P35, 'Service Calculation'!J35 ) ) ), "") ->  | P32: =IF(G32="","",+O32/N32) -> 
A33: 0 | B33: SERVICE | O33: 0 | P33: =IF(G33="","",+O33/N33) -> 
E35: TOTAL CALCULATED | H35: =SUM(H3:H33) -> 0 | I35: 0 | J35: 0 | K35: 0 | L35: 0 | M35: 0 | N35: 0 | O35: =SUM(O3:O33) -> 

Sheet Budget Price Final order
T1: DIRECT HOURS SOLD
A2: Position | B2: Type of Eqpt | C2: Meca/Elec | D2: Base / Options | E2: DESCRIPTION | F2: RÉFÉRENCE | G2: QTY | H2: TOTAL EQ Cost | I2: TOTAL Hours cost | J2: TOTAL Cost | K2: EQ Unit selling price | L2: Total Hours Selling Price | M2: TOTAL EQ Selling Price | N2: TOTAL Selling Price | O2: Gross Margin on Direct External Costs | P2: Gross Margin on Direct External Costs | Q2: Margin on EQ | R2: Margin on hours | S2: EQ Unit Cost | T2: Nb hours TECH | U2: Hours Unit Cost | V2: Nb hours PUR | W2: Hours Unit Cost | X2: Nb hours PM | Y2: Hours Unit Cost | Z2: Nb hours WORKSHOP | AA2: Hours Unit Cost
A3: 1 | B3: EQUIPMENT | C3: MECA | D3: BASE | E3: Engineering study | G3: 1 | H3: =+S3*G3 -> 0 | I3: =T3*U3+V3*W3+X3*Y3+Z3*AA3 -> 0 | J3: =I3+H3 -> 0 | K3: 196540 | M3: =G3*K3 -> 196540 | N3: =M3+L3 -> 196540 | O3: =+N3-H3 -> 196540 | P3: =IF(G3="","",+O3/N3) -> 1 | Q3: =IF(G3="","",(M3-H3)/M3) -> 1 | R3: =IF(I3=0,"",(L3-I3)/L3) ->  | S3: 0 | U3: ='Simplified P&L'!$B$55 -> 50 | W3: ='Simplified P&L'!$B$58 -> 50 | Y3: ='Simplified P&L'!$B$59 -> 65 | AA3: ='Simplified P&L'!$B$60 -> 40
A4: 1 | B4: EQUIPMENT | C4: MECA | D4: BASE | E4: Horizontal Vacuum Belt Filter 6B10 (6m²) | G4: 1 | H4: =+S4*G4 -> 204729 | I4: =T4*U4+V4*W4+X4*Y4+Z4*AA4 -> 0 | J4: =I4+H4 -> 204729 | K4: 196540 | M4: =G4*K4 -> 196540 | N4: =M4+L4 -> 196540 | O4: =+N4-H4 -> -8189 | P4: =IF(G4="","",+O4/N4) -> -0.04166581866 | Q4: =IF(G4="","",(M4-H4)/M4) -> -0.04166581866 | R4: =IF(I4=0,"",(L4-I4)/L4) ->  | S4: 204729 | U4: ='Simplified P&L'!$B$55 -> 50 | W4: ='Simplified P&L'!$B$58 -> 50 | Y4: ='Simplified P&L'!$B$59 -> 65 | AA4: ='Simplified P&L'!$B$60 -> 40
A5: 1 | B5: EQUIPMENT | C5: MECA | D5: BASE | E5: -Connections inside Hasler filter will be as per EN1092-1-PN standard -Connections/Interfaces between Saint Gobain and Hasler scope will be as per ANSI standard | G5: 1 | H5: 4500 | I5: =T5*U5+V5*W5+X5*Y5+Z5*AA5 -> 0 | J5: 4500 | K5: 4200 | M5: 4200 | N5: 4200 | O5: -300 | P5: -0.07142857143 | Q5: =IF(G5="","",(M5-H5)/M5) -> -0.07142857143 | R5: =IF(I5=0,"",(L5-I5)/L5) ->  | S5: 4500 | U5: ='Simplified P&L'!$B$55 -> 50 | W5: ='Simplified P&L'!$B$58 -> 50 | Y5: ='Simplified P&L'!$B$59 -> 65 | AA5: ='Simplified P&L'!$B$60 -> 40
A6: 1 | B6: EQUIPMENT | C6: MECA | D6: BASE | E6: Fume hood modification with using of fixed paned and move of connection | G6: 1 | H6: 3000 | I6: 0 | J6: 3000 | K6: 5700 | M6: 5700 | N6: 5700 | O6: 2700 | P6: 0.4736842105 | Q6: 0.4736842105 | S6: 3000 | U6: ='Simplified P&L'!$B$55 -> 50 | W6: ='Simplified P&L'!$B$58 -> 50 | Y6: ='Simplified P&L'!$B$59 -> 65 | AA6: ='Simplified P&L'!$B$60 -> 40
A7: 1 | B7: EQUIPMENT | C7: MECA | D7: BASE | E7: Stelle a moisture sensor; position must be defined by Saint Gobain. | G7: 1 | H7: 3000 | I7: 0 | J7: 3000 | K7: 4750 | M7: 4750 | N7: 4750 | O7: 1750 | P7: 0.3684210526 | Q7: 0.3684210526 | S7: 3000 | U7: ='Simplified P&L'!$B$55 -> 50 | W7: ='Simplified P&L'!$B$58 -> 50 | Y7: ='Simplified P&L'!$B$59 -> 65 | AA7: ='Simplified P&L'!$B$60 -> 40
A8: 1 | B8: EQUIPMENT | C8: MECA | D8: BASE | E8: Clipped cloth instead of a welted one | G8: 1 | H8: 1000 | I8: 0 | J8: 1000 | K8: 1900 | M8: 1900 | N8: 1900 | O8: 900 | P8: 0.4736842105 | Q8: 0.4736842105 | S8: 1000 | U8: ='Simplified P&L'!$B$55 -> 50 | W8: ='Simplified P&L'!$B$58 -> 50 | Y8: ='Simplified P&L'!$B$59 -> 65 | AA8: ='Simplified P&L'!$B$60 -> 40
A9: 1 | B9: EQUIPMENT | C9: MECA | D9: BASE | E9: Flowmeter for both cloth washing ramp & pressure measurement for the high-pressure ramp | G9: 1 | H9: =+S9*G9 -> 3000 | I9: =T9*U9+V9*W9+X9*Y9+Z9*AA9 -> 0 | J9: =I9+H9 -> 3000 | K9: 5700 | M9: =G9*K9 -> 5700 | N9: =M9+L9 -> 5700 | O9: =+N9-H9 -> 2700 | P9: =IF(G9="","",+O9/N9) -> 0.4736842105 | Q9: =IF(G9="","",(M9-H9)/M9) -> 0.4736842105 | R9: =IF(I9=0,"",(L9-I9)/L9) ->  | S9: 3000 | U9: ='Simplified P&L'!$B$55 -> 50 | W9: ='Simplified P&L'!$B$58 -> 50 | Y9: ='Simplified P&L'!$B$59 -> 65 | AA9: ='Simplified P&L'!$B$60 -> 40
A10: 1 | B10: EQUIPMENT | C10: MECA | D10: BASE | E10: Radar sensor on the separator tank | G10: 1 | H10: 1500 | I10: 0 | J10: 1500 | K10: 2850 | M10: 2850 | N10: 2850 | O10: 1350 | P10: 0.4736842105 | Q10: 0.4736842105 | S10: 1500 | U10: ='Simplified P&L'!$B$55 -> 50 | W10: ='Simplified P&L'!$B$58 -> 50 | Y10: ='Simplified P&L'!$B$59 -> 65 | AA10: ='Simplified P&L'!$B$60 -> 40
A11: 1 | B11: EQUIPMENT | C11: MECA | D11: BASE | E11: Deducted of the not delivered cloth ultrasonic welding machine | G11: 1 | H11: -7500 | I11: 0 | J11: -7500 | K11: -14400 | M11: -14400 | N11: -14400 | O11: -6900 | P11: 0.4791666667 | Q11: 0.4791666667 | S11: -7500 | U11: ='Simplified P&L'!$B$55 -> 50 | W11: ='Simplified P&L'!$B$58 -> 50 | Y11: ='Simplified P&L'!$B$59 -> 65 | AA11: ='Simplified P&L'!$B$60 -> 40
A12: 1 | B12: EQUIPMENT | C12: MECA | D12: BASE | E12: Factory Acceptance test | G12: 1 | H12: 48000 | I12: 0 | J12: 48000 | K12: 48000 | M12: 48000 | N12: 48000 | O12: 0 | P12: 0 | Q12: 0 | S12: 48000 | U12: ='Simplified P&L'!$B$55 -> 50 | W12: ='Simplified P&L'!$B$58 -> 50 | Y12: ='Simplified P&L'!$B$59 -> 65 | AA12: ='Simplified P&L'!$B$60 -> 40
A13: 1 | B13: EQUIPMENT | C13: MECA | D13: BASE | E13: Deducted of FAT covered by vendor | G13: 1 | H13: =+S13*G13 -> 0 | I13: =T13*U13+V13*W13+X13*Y13+Z13*AA13 -> 0 | J13: =I13+H13 -> 0 | K13: -24000 | M13: =G13*K13 -> -24000 | N13: =M13+L13 -> -24000 | O13: =+N13-H13 -> -24000 | P13: =IF(G13="","",+O13/N13) -> 1 | Q13: =IF(G13="","",(M13-H13)/M13) -> 1 | R13: =IF(I13=0,"",(L13-I13)/L13) ->  | S13: 0 | U13: ='Simplified P&L'!$B$55 -> 50 | W13: ='Simplified P&L'!$B$58 -> 50 | Y13: ='Simplified P&L'!$B$59 -> 65 | AA13: ='Simplified P&L'!$B$60 -> 40
A15: 0 | D15: OPTIONS | H15: 0 | I15: 0 | J15: 0 | M15: 0 | N15: 0 | O15: 0 | U15: ='Simplified P&L'!$B$55 -> 50 | W15: ='Simplified P&L'!$B$58 -> 50 | Y15: ='Simplified P&L'!$B$59 -> 65 | AA15: ='Simplified P&L'!$B$60 -> 40
A16: 0 | D16: OPTIONS | H16: =+S16*G16 -> 0 | I16: =T16*U16+V16*W16+X16*Y16+Z16*AA16 -> 0 | J16: =I16+H16 -> 0 | M16: =G16*K16 -> 0 | N16: =M16+L16 -> 0 | O16: =+N16-H16 -> 0 | P16: =IF(G16="","",+O16/N16) ->  | Q16: =IF(G16="","",(M16-H16)/M16) ->  | R16: =IF(I16=0,"",(L16-I16)/L16) ->  | U16: ='Simplified P&L'!$B$55 -> 50 | W16: ='Simplified P&L'!$B$58 -> 50 | Y16: ='Simplified P&L'!$B$59 -> 65 | AA16: ='Simplified P&L'!$B$60 -> 40
A17: 0 | D17: OPTIONS | H17: 0 | I17: 0 | J17: 0 | M17: 0 | N17: 0 | O17: 0 | U17: ='Simplified P&L'!$B$55 -> 50 | W17: ='Simplified P&L'!$B$58 -> 50 | Y17: ='Simplified P&L'!$B$59 -> 65 | AA17: ='Simplified P&L'!$B$60 -> 40
A18: 0 | D18: OPTIONS | H18: 0 | I18: 0 | J18: 0 | M18: 0 | N18: 0 | O18: 0 | U18: ='Simplified P&L'!$B$55 -> 50 | W18: ='Simplified P&L'!$B$58 -> 50 | Y18: ='Simplified P&L'!$B$59 -> 65 | AA18: ='Simplified P&L'!$B$60 -> 40
A19: 0 | D19: OPTIONS | H19: 0 | I19: 0 | J19: 0 | M19: 0 | N19: 0 | O19: 0 | U19: ='Simplified P&L'!$B$55 -> 50 | W19: ='Simplified P&L'!$B$58 -> 50 | Y19: ='Simplified P&L'!$B$59 -> 65 | AA19: ='Simplified P&L'!$B$60 -> 40
A21: 0 | B21: ='Simplified P&L'!$G$3 -> EQUIPMENT | D21: Technical Subcontracting | H21: =+S21*G21 -> 0 | I21: =T21*U21+V21*W21+X21*Y21+Z21*AA21 -> 0 | J21: =I21+H21 -> 0 | M21: =G21*K21 -> 0 | N21: =M21+L21 -> 0 | O21: =+N21-H21 -> 0 | P21: =IF(G21="","",+O21/N21) ->  | Q21: =IF(G21="","",(M21-H21)/M21) ->  | R21: =IF(I21=0,"",(L21-I21)/L21) ->  | U21: ='Simplified P&L'!$B$55 -> 50 | W21: ='Simplified P&L'!$B$58 -> 50 | Y21: ='Simplified P&L'!$B$59 -> 65 | AA21: ='Simplified P&L'!$B$60 -> 40
A22: 0 | B22: ='Simplified P&L'!$G$3 -> EQUIPMENT | D22: Purchasing Subcontracting | H22: =+S22*G22 -> 0 | I22: =T22*U22+V22*W22+X22*Y22+Z22*AA22 -> 0 | J22: =I22+H22 -> 0 | M22: =G22*K22 -> 0 | N22: =M22+L22 -> 0 | O22: =+N22-H22 -> 0 | P22: =IF(G22="","",+O22/N22) ->  | Q22: =IF(G22="","",(M22-H22)/M22) ->  | R22: =IF(I22=0,"",(L22-I22)/L22) ->  | U22: ='Simplified P&L'!$B$55 -> 50 | W22: ='Simplified P&L'!$B$58 -> 50 | Y22: ='Simplified P&L'!$B$59 -> 65 | AA22: ='Simplified P&L'!$B$60 -> 40
A23: 0 | B23: SERVICE | D23: Service Subcontracting | H23: 0 | I23: 0 | J23: 0 | M23: 0 | N23: 0 | O23: 0 | U23: ='Simplified P&L'!$B$55 -> 50 | W23: ='Simplified P&L'!$B$58 -> 50 | Y23: ='Simplified P&L'!$B$59 -> 65 | AA23: ='Simplified P&L'!$B$60 -> 40
A24: 0 | B24: ='Simplified P&L'!$G$3 -> EQUIPMENT | D24: Travel Expenses | H24: 0 | I24: 0 | J24: 0 | M24: 0 | N24: 0 | O24: 0 | U24: ='Simplified P&L'!$B$55 -> 50 | W24: ='Simplified P&L'!$B$58 -> 50 | Y24: ='Simplified P&L'!$B$59 -> 65 | AA24: ='Simplified P&L'!$B$60 -> 40
A25: 0 | B25: ='Simplified P&L'!$G$3 -> EQUIPMENT | D25: Miscellaneous (warranty extension) | H25: =+S25*G25 -> 0 | I25: =T25*U25+V25*W25+X25*Y25+Z25*AA25 -> 0 | J25: =I25+H25 -> 0 | M25: =G25*K25 -> 0 | N25: =M25+L25 -> 0 | O25: =+N25-H25 -> 0 | P25: =IF(G25="","",+O25/N25) ->  | U25: ='Simplified P&L'!$B$55 -> 50 | W25: ='Simplified P&L'!$B$58 -> 50 | Y25: ='Simplified P&L'!$B$59 -> 65 | AA25: ='Simplified P&L'!$B$60 -> 40
A27: 0 | B27: PACKAGING | H27: =+S27*G27 -> 0 | I27: =T27*U27+V27*W27+X27*Y27+Z27*AA27 -> 0 | J27: =I27+H27 -> 0 | K27: =ROUNDUP(S27/(1-'Budget Target'!$D$13),-1) -> 0 | M27: =G27*K27 -> 0 | N27: =M27+L27 -> 0 | O27: =+N27-H27 -> 0 | P27: =IF(G27="","",+O27/N27) ->  | U27: ='Simplified P&L'!$B$55 -> 50 | W27: ='Simplified P&L'!$B$58 -> 50 | Y27: ='Simplified P&L'!$B$59 -> 65 | AA27: ='Simplified P&L'!$B$60 -> 40
A28: 0 | B28: TRANSPORT | E28: ='Simplified P&L'!G4 -> DAP - Gelsa - Spain | H28: =+S28*G28 -> 0 | I28: =T28*U28+V28*W28+X28*Y28+Z28*AA28 -> 0 | J28: =I28+H28 -> 0 | K28: =ROUNDUP(S28/(1-'Budget Target'!$D$13),-1) -> 0 | M28: =G28*K28 -> 0 | N28: 0 | O28: 0 | U28: ='Simplified P&L'!$B$55 -> 50 | W28: ='Simplified P&L'!$B$58 -> 50 | Y28: ='Simplified P&L'!$B$59 -> 65 | AA28: ='Simplified P&L'!$B$60 -> 40
A30: 1 | B30: SERVICE | E30: =IF(A30=1,'Budget Price 1st quotation'!E30,"") ->  | G30: 0 | N30: ='Budget Price 1st quotation'!O30 ->  | O30: =N30*G30 ->  | P30: =IF(G30="","",+O30/N30) -> 
A31: 0 | B31: SERVICE | E31: =IF(A30=1,'Budget Price 1st quotation'!E31,"") ->  | G31: 0 | N31: ='Budget Price 1st quotation'!O31 ->  | O31: =N31*G31 ->  | P31: =IF(G31="","",+O31/N31) -> 
A32: 0 | B32: SERVICE | E32: =IF(A30=1,'Budget Price 1st quotation'!E32,"") ->  | G32: 0 | N32: ='Budget Price 1st quotation'!O32 ->  | P32: =IF(G32="","",+O32/N32) -> 
A33: 0 | B33: SERVICE | O33: 0 | P33: =IF(G33="","",+O33/N33) -> 
E35: TOTAL CALCULATED | H35: =SUM(H3:H33) -> 261229 | I35: =SUM(I3:I33) -> 0 | J35: =SUM(J3:J33) -> 261229 | K35: =SUM(K3:K33) -> 427780 | L35: =SUM(L3:L33) -> 0 | M35: =SUM(,M3:M33) -> 427780 | N35: =SUM(N3:N33) ->  | O35: =SUM(O3:O33) -> 

Sheet Budget Target
A1: BUDGET TARGET HF
B4: RUBRIQUE ANALYTIQUE | C4: DAS | D4: Margin Rate Target 2023
B5: EQUIPMENT | C5: DOSING | D5: 0.465 | E5: 01/01/2024 -update dans P&L le 19/03/2024
B6: EQUIPMENT | C6: FILTRATION | D6: 0.37
B7: EQUIPMENT | C7: MIXING | D7: 0.27
B8: EQUIPMENT | C8: PROCESSING | D8: 0.5
B9: REVAMPING | C9: DOSING | D9: 0.49 | E9: 01/01/2024 -update dans P&L le 19/03/2024
B10: REVAMPING | C10: FILTRATION | D10: 0.39
B11: REVAMPING | C11: MIXING | D11: 0.45
B12: REVAMPING | C12: PROCESSING | D12: 0.5
B13: PORT | C13: DOSING | D13: 0.25
B14: =+B13 -> PORT | C14: FILTRATION | D14: 0.25
B15: =+B14 -> PORT | C15: MIXING | D15: 0.25
B16: =+B15 -> PORT | C16: PROCESSING | D16: 0.25
B21: TURNOVER | D21: 33350000
B23: DIRECT COSTS: | D23: =+D25+D31+D32+D33+D34 -> 4872269.779 | E23: =+D23/D21 -> 0.1460950458
B25: PEX DIRECT | D25: =SUM(D26:D30) -> 3890886.324 | E25: % Dedicated to Project included 10% of Variation | G25: TOTAL Budget Cost 2023 | H25: TOTAL Budget Cost 2022 | I25: Taux Projet | J25: Taux Other Activity | K25: Taux Alea
B26: Technical Dept | D26: =+G26*E26 -> 1568337.461 | E26: =+I26+K26 -> 0.77 | G26: =2036.80189718573*1000 -> 2036801.897 | H26: 1684049 | I26: 0.67 | J26: =1-I26-K26 -> 0.23 | K26: 0.1 | L26: Based on Hourly Rate Calculation
B27: Purchasing Dept | D27: =+G27*E27 -> 286171.9519 | E27: =+I27+K27 -> 0.65 | G27: =440.2645414358*1000 -> 440264.5414 | H27: 328753 | I27: 0.55 | J27: 0.35 | K27: 0.1
B28: Project Management Wout Pascal F | D28: =+G28*E28 -> 369774.3087 | E28: =+I28+K28 -> 0.9 | G28: =410.860342995827*1000 -> 410860.343 | H28: 322452 | I28: 0.8 | J28: 0.1 | K28: 0.1
B29: Assembling | D29: =+G29*E29 -> 488217.6747 | E29: =+I29+K29 -> 1 | G29: =488.21767472092*1000 -> 488217.6747 | H29: 444862 | I29: 0.9 | K29: 0.1
B30: Service | D30: =+G30*E30 -> 1178384.928 | E30: =+I30+K30 -> 0.85 | G30: =1297.22520957928*1000+89110 -> 1386335.21 | H30: =950566 -> 950566 | I30: 0.75 | J30: 0.15 | K30: 0.1 | L30: Based on Hourly Rate Calculation
B31: COMMISSIONS (HF Only) | D31: =436.211667480582*1000 -> 436211.6675
B32: MISSIONS SERVICE (HF-HD-HM-HS) | D32: =477.67178693926*1000 -> 477671.7869
B33: FRAIS BANCAIRES S/CAUTIONS (HF Only) | D33: 47500
B34: FRAIS S/REMISE DOC & CREDIT DOC (HF Only) | D34: 20000
B36: OVERHEAD COSTS: | D36: =+D38+D39+D40+D41 -> 10937240.29 | E36: =+D36/D21 -> 0.327953232
B37: % Of TOTAL Sales | D37: =+D36/D21 -> 0.327953232
B38: PEX INDIRECT | D38: =+D45-D25 -> 5186515.471
B39: AACE | D39: =+D48-D31-D32-D33-D34-87600 -> 4879890.16
B40: TAXES | D40: =+D49 -> 382332.4796
B41: DEPRECIATIONS | D41: =+D50 -> 488502.1765
B45: PEX TOTAL | D45: =9077.40179511291*1000 -> 9077401.795
B48: AACE | D48: =5948.87361451792*1000 -> 5948873.615
B49: TAXES | D49: =382.332479625026*1000 -> 382332.4796
B50: DEPRECIATIONS | D50: =488.502176494876*1000 -> 488502.1765

Sheet Service Calculation
A1: Only blue cell should be modified | G1: Version of 12/08/2025
T2: Instruction :
G3: FILTRATION / KNEADING | M3: DOSING / MIXING
G4: PRICE FOR France | J4: PRICE FOR Worlwide | M4: PRICE FOR France | P4: PRICE FOR Worlwide
A5: Details | C5: Quantity | E5: Unit price | G5: Unit price | H5: Total price | J5: Unit price | K5: Total price | M5: Unit price | N5: Prix total | P5: Unit price | Q5: Prix total | T5: STEP 1 - Language
G6: € | H6: € | J6: € | K6: € | M6: € | N6: € | P6: € | Q6: € | T6: On sheet "Configuration" , cell B2 : Choose de correct language for your offer
A7: Working day [Monday to Friday - 8h/day] | C7: 5 | G7: 1017 | H7: =G7*C7 -> 5085 | J7: 1222 | K7: =C7*J7 -> 6110 | M7: 1152 | N7: =C7*M7 -> 5760 | P7: 1352 | Q7: =C7*P7 -> 6760
A8: Saturday working [8h/day] | C8: 1 | G8: 1525 | H8: =G8*C8 -> 1525 | J8: 1830 | K8: =C8*J8 -> 1830 | M8: 1730 | N8: =C8*M8 -> 1730 | P8: 2030 | Q8: =C8*P8 -> 2030
A9: Sunday working [8h/day] | C9: 0 | G9: 2033 | H9: =G9*C9 -> 0 | J9: 2444 | K9: =C9*J9 -> 0 | M9: 2304 | N9: =C9*M9 -> 0 | P9: 2704 | Q9: =C9*P9 -> 0 | T9: STEP 2 - Country
A10: Travel day | C10: 2 | G10: 760 | H10: =G10*C10 -> 1520 | J10: 920 | K10: =C10*J10 -> 1840 | M10: 860 | N10: =C10*M10 -> 1720 | P10: 1010 | Q10: =C10*P10 -> 2020 | T10: On sheet "Simplified P&L" , cell B10 : Write ‘France’ (case sensitive) if the customer is in France, otherwise indicate the country.
A11: Day off invoiced | C11: 0 | G11: 508 | H11: 0 | J11: 610 | K11: 0 | M11: 580 | N11: 0 | P11: 680 | Q11: 0 | T11: On sheet "Simplified P&L" , cell G2 : Choose the corresponding DAS
A12: Day off not invoiced | C12: 1 | G12: 0 | H12: 0 | J12: 0 | K12: 0 | M12: 0 | N12: 0 | P12: =0 -> 0 | Q12: 0
A14: Detailed report | C14: 1 | G14: 973 | H14: 973 | J14: 973 | K14: 973 | T14: STEP 3 - Quotation option
T15: On sheet "Service Calculation" ; cell A32 :
A16: Lodging fees (hotel + meals) per day | C16: =SUM(C7:C12)-1-C10+2 -> 8 | E16: 150 | H16: =E16*C16 -> 1200 | K16: =E16*C16 -> 1200 | N16: =E16*C16 -> 1200 | Q16: =E16*C16 -> 1200 | T16: Depending on the customer's requirements, select the costing option :
T17: All-inclusive (Service + travel expenses + accommodation); Service + air ticket or only Service
A18: Bus | C18: 0 | E18: 0 | H18: =E18*C18 -> 0 | K18: =E18*C18 -> 0 | N18: =E18*C18 -> 0 | Q18: =E18*C18 -> 0
A19: Taxi | C19: 0 | E19: 0 | H19: 0 | K19: 0 | N19: 0 | Q19: 0 | T19: STEP 4 - Service duration
A20: Train ticket | C20: 0 | E20: 0 | H20: 0 | K20: 0 | N20: 0 | Q20: 0 | T20: On sheet "Service Calculation" ; cell C7 : nter the number of Working days on site [Mondayto Friday]
A21: Flight ticket | C21: 1 | E21: 1000 | H21: 1000 | K21: 1000 | N21: 1000 | Q21: 1000 | T21: On sheet "Service Calculation" ; cell C8 : enter the number of Saturday working
T22: On sheet "Service Calculation" ; cell C9 : enter the number of Sunday working
A23: Company car | C23: 0 | E23: 1.3 | H23: 0 | K23: 0 | N23: 0 | Q23: 0 | T23: On sheet "Service Calculation" ; cell C10 : enter the number of travelling days
A24: Car rental | C24: =SUM(C7:C14) -> 10 | E24: 120 | H24: 1200 | K24: 1200 | N24: 1200 | Q24: 1200 | T24: On sheet "Service Calculation" ; cell C11 : enter the number of day off if the supervisor does not work on Saturday or Sunday
A25: Fees for toll and petrol | C25: 1 | E25: 700 | H25: 700 | K25: 700 | N25: 700 | Q25: 700
T26: STEP 5 - Report
A27: Fees for visa | C27: 1 | E27: 0 | H27: 0 | K27: 0 | N27: 0 | Q27: 0 | T27: On sheet "Service Calculation" ; cell C14 : add 1 detailled report, for mechanical or process audit and lab test
A29: Administrative fees | C29: 1 | E29: 336 | H29: 336 | K29: 336 | N29: 336 | Q29: 336 | T29: STEP 6 - Lodging fees
T30: On sheet "Service Calculation" ; cell E16 : enter the amount accordinf to the country of intervention on the following link
A31: =_xlfn.CONCAT("Total cost for ",SUM('Service Calculation'!C7+'Service Calculation'!C8+'Service Calculation'!C9)," days on site") -> Total cost for 6 days on site | H31: =SUM(H7:H29) -> 13539 | K31: =SUM(K7:K29) -> 15189 | N31: =SUM(N6:N29) -> 13646 | Q31: =SUM(Q7:Q29) -> 15246
A32: Incluant les frais de déplacement, de transport local et d'hébergement. | T32: STEP 7 - Travelling fees
T33: On sheet "Service Calculation" ; cell C18 -> C21 and E18 -> E21 : enter the quantity and the amount for Bus, Taxi, Train or Flight ticket
A34: =Configuration!AI58 -> Estimation cost of flight ticket Will be invoiced at real cost +15% | G34: =H21 -> 1000 | J34: =K21 -> 1000 | M34: =N21 -> 1000 | P34: =Q21 -> 1000 | T34: Make an estimate on KDS Website (Link below) and add +15%
A35: Additional day | G35: =G7+E24+E16 -> 1287 | J35: =J7+E24+E16 -> 1492 | M35: =M7+E24+E16 -> 1422 | P35: =P7+E24+E16 -> 1622 | T35: Choose a ticket that can be changed free of charge and, depending on the price, cancelled free of charge
T39: STEP 8 - Car
T40: On sheet "Service Calculation" ; cell C23 : enter the number of km if the operation is less than 500 kms (round trip) from the place of departure (Greven, Neuchatel, Pont Evêque)
T41: Link for number of kms
T43: On sheet "Service Calculation" ; cell C24 : For other locations, Fixed price of €120 per day for intervention from 1 to 5 days, for longest mission make an estimated cost on KDS +15% ;
T46: On sheet "Service Calculation" ; cell C25 : enter fees for toll and petrol : make an estimate on ViaMichelin and add +15%
T49: STEP 9 - VISA
T50: On sheet "Service Calculation" ; cell C27 : If the country of intervention requires a VISA, add the cost of this VISA
T53: On sheet "PRICE_LIST" ; cell B26 : Describe the scope of the service

Sheet Calculation of commissions
D1: PROJECT SPECIFICATION
A2: CALCULATION OF COMMISSIONS
A3: LEGENDS: | B3: Colour to be filled in by ASM or SPASM
B4: Colour to be filled in by ADV
B5: Colour to be filled in by Accounting
A7: Customer : | B7: ='Simplified P&L'!B6 -> St Gobain | D7: Country: | E7: ='Simplified P&L'!B10 -> Spain
A8: Offer number : | B8: ='Simplified P&L'!B2 -> 725116 | C8: Total of order, EXW, unpacked in € : | E8: =IF('Simplified P&L'!B3>0,IF('Simplified P&L'!G22="",0,'Simplified P&L'!G22)+IF('Simplified P&L'!G23="",0,'Simplified P&L'!G23)+IF('Simplified P&L'!G24="",0,'Simplified P&L'!G24),IF('Simplified P&L'!D22="",0,'Simplified P&L'!D22)+IF('Simplified P&L'!D23="",0,'Simplified P&L'!D23)+IF('Simplified P&L'!D24="",0,'Simplified P&L'!D24)) -> 427780
A10: Commissions to be paid : | B10: NO | D10: Signed agent contract
C12: Amount | D12: Commission | E12: Total commission
A13: REPARTITION OF ORDER | C13: EUR | D13: % | E13: EUR
A15: EQUIPMENT | B15: UP 50K | C15: =IF(E8=0,0,IF(E8<50000, E8,50000)) -> 50000 | D15: 8 | E15: =C15*(D15/100) -> 4000
A16: IN ADD. FROM 50K TO 150K | C16: =IF(E8<50000,0,IF(E8<150000, E8-50000,100000)) -> 100000 | D16: 6 | E16: 6000
A17: IN ADD. FROM 150K TO 300K | C17: =IF(E8<150000,0,IF(E8<300000, E8-150000,150000)) -> 150000 | D17: 4 | E17: 6000
A18: IN ADD. FROM 300K TO 500K | C18: =IF(E8<300000,0,IF(E8<500000, E8-300000,200000)) -> 127780 | D18: 2 | E18: 2555.6
A19: IN ADD. EXCEEDING 500K | C19: =IF(E8-500000>0, E8-500000, 0) -> 0 | D19: 1 | E19: 0
A20: RESELL MATERIAL | E20: 0
A21: SPARES PARTS | C21: 0 | D21: 5 | E21: 0
A23: Total of order | C23: =SUM(C15:C22) -> 427780
A24: Special commission | E24: =C24*D24/100 -> 0
A25: Bonus | E25: =C25*D25/100 -> 0
A27: % OF COMMISSIONS TO REGISTER IN CEGID: | D27: =E28/C23 -> 0.04337650194
A28: TOTAL AMOUNT OF COMMISSIONS | E28: =SUM(E15:E25) -> 18555.6
A31: REPARTITION OF COMMISSIONS | C31: Main representative | D31: Representative in destination country | E31: 3rd part, client, etc.
C32: 1 | D32: 2 | E32: 3
A33: Name of representative
A34: CEGID account n° | C34: =RIGHT(C33,6) ->  | D34: =RIGHT(D33,6) ->  | E34: =RIGHT(E33,6) -> 
A35: Cegid representant n° | C35: =IF(C33="","",VLOOKUP(C33,Agents!$A:$B,2,FALSE)) ->  | D35: =IF(D33="","",VLOOKUP(D33,Agents!#REF!,2,FALSE)) ->  | E35: =IF(E33="","",VLOOKUP(E33,Agents!#REF!,2,FALSE)) -> 
A36: Amount for representative | C36: =SUM(E15:E21) -> 18555.6
A37: Special commission | C37: =E24 -> 0
A38: Bonus
A39: Commission substracted from invoice
A41: TOTAL TO BE PAID | C41: =SUM(C36:C39) -> 18555.6 | D41: =SUM(D36:D39) -> 0 | E41: =SUM(E36:E39) -> 0
A43: Sales coef.: (comm. not deducted): | D43: Total : 1 + 2 + 3 | E43: =SUM(C41:E41) -> 18555.6
A44: Sales Business Representative (ADV): | D44: Date of data entry in CEGID:
A47: APPROBATION | C47: Date : | D47: Name : | E47: Signature :
A48: ASM or SPASM : | D48: ='Simplified P&L'!J2 -> CPIS
A49: Sales Director or SPM:
A50: Sales & Marketing Director (for EQU) : | D50: Laurent MENIGOZ
A51: ACCOUNTING | B51: Customer invoice: | D51: Date:
B52: Representative invoice:

Sheet Configuration
A2: Offer language | B2: English | P2: LISTES DEROULANTES | S2: T eng. | X2: ASM | AC2: Market | AH2: DAS | AI2: English | AJ2: French | AK2: Chinese
S3: ABOU | T3: Tender engineer | U3: Ahssen Boudeheb | V3: a.boudeheb@hasler.group | X3: ABNA | Y3: Business Developer Service & Spare | Z3: Alain Bernard Nankam | AA3: ab.nankam@hasler.group | AB3: +33 6 50 40 92 77 | AC3: CCH - A2 Cement | AH3: DOSING | AI3: Dosing system | AJ3: Solution de dosage
A4: Budget proposal | B4: No | P4: DAS | Q4: TAC | S4: AGIB | T4: Tender engineer | U4: Alexis Gilbert | V4: a.gilbert@hasler.group | W4: +33 6 13 76 81 49 | X4: AHOU | Y4: Business Development Manager | Z4: Adrien Hourlier | AA4: a.hourlier@hasler.group | AB4: +33 6 70 76 33 14 | AC4: CCH - E4 Technical Silica (and Bulk) | AH4: FILTRATION | AI4: Filtration system | AJ4: Solution de filtration
P5: DOSING | Q5: EQUIPMENT | S5: ANGO | T5: Tender engineer | U5: Ahou N'gotta | V5: ac.n'gotta@hasler.group | W5: +33 4 74 16 11 27 | X5: BROU | Y5: Area Technical Sales Manager | Z5: Benoît Roudaut | AA5: b.roudaut@hasler.group | AB5: =W7 -> +1 514-946-6350 | AC5: CCH - F5 Cement and kiln dust dosing | AH5: MIXING | AI5: Mixing system | AJ5: Solution d'agitation
A6: Customer reference | P6: FILTRATION | Q6: REVAMPING | S6: BJOL | T6: Filtration Product Manager | U6: Baptiste Joly | V6: b.joly@hasler.group | W6: +33 6 27 13 81 47 | X6: CPIS | Y6: Area Sales Manager | Z6: Cosimo Piscopiello | AA6: c.piscopiello@hasler.group | AB6: +41 79 129 42 69 | AC6: CCH - H4 Soda Ash | AH6: KNEADING | AI6: Kneading system | AJ6: Solution de malaxage
P7: MIXING | Q7: SPARE PARTS | S7: BROU | T7: Area Technical Sales Manager | U7: Benoît Roudaut | V7: b.roudaut@hasler.group | W7: +1 514-946-6350 | X7: DCRI | Y7: Area Sales Manager | Z7: Daniel Criado | AA7: d.criado@hasler.group | AB7: +41 79 968 12 70 | AC7: CCH - other | AI7: Commercial offer | AJ7: Offre commerciale
P8: PROCESSING | Q8: SERVICE | S8: CCHA | T8: Tender engineer | U8: Chenghao Chai | V8: c.chai@hasler.group | W8: +33 4 74 16 11 53 | X8: EGUA | Y8: Process Engineer | Z8: Enrico Gualdi | AA8: e.gualdi@hasler.group | AB8: =W9 -> +39 345 825 82 80 | AC8: MMF - A1 Phosphoric Acid | AI8: Customer reference | AJ8: Référence client
Q9: OTHER | S9: EGUA | T9: Process Engineer | U9: Enrico Gualdi | V9: e.gualdi@hasler.group | W9: +39 345 825 82 80 | X9: EVAQ | Y9: Area Sales Manager | Z9: Emilie Vaquero | AA9: e.vaquero@hasler.group | AB9: +33 6 17 39 56 78 | AC9: MMF - A3 Phosphate Rock | AI9: Customer | AJ9: Client
S10: MBAL | T10: Trial Technician Filtration | U10: Mélisa Balguy | V10: m.balguy@hasler.group | W10: +33 6 65 08 03 43 | X10: LLI | Y10: Area Sales Manager | Z10: Leo Li | AA10: l.li@hasler.group | AB10: +86 150 2122 2190 | AC10: MMF - B1 Phosphated Fertilizers (MAP,DAP,TSP,DCP …) | AI10: Table of Contents | AJ10: Sommaire
P11: MECA | Q11: BASE | S11: MBOU | T11: Tender engineer | U11: Mustapha Boujdid | V11: m.boujdid@hasler.group | W11: +33 6 65 08 03 43 | X11: LMEN | Y11: Sales & Marketing Director | Z11: Laurent Menigoz | AA11: l.menigoz@hasler.group | AB11: +33 6 76 45 27 88 | AC11: MMF - I3 Lithium | AI11: Cover Letter | AJ11: Lettre d'introduction
P12: ELEC | Q12: OPTIONS | S12: VRUY | T12: Process & Product Director | U12: Victor Ruys | V12: v.ruys@hasler.group | W12: +33 6 87 85 35 42 | X12: LZHA | Y12: Area Sales Manager | Z12: Li Zhang | AA12: l.zhang@hasler.group | AC12: MMF - L3 Zinc and cadmium | AI12: Price List | AJ12: Liste de prix
Q13: SERVICES | S13: YMAR | T13: Dosing Product Manager | U13: Yuri Marcuzzo | V13: y.marcuzzo@hasler.group | W13: +41 79 260 28 03 | X13: MJAM | Y13: Sales Director | Z13: Michel Jamey | AA13: m.jamey@hasler.group | AB13: +33 6 07 85 96 09 | AC13: MMF - N3 Nickel, Cobalt and Manganese | AI13: Special Terms of Sales | AJ13: Conditions particulières de vente
X14: NDEL | Y14: Business Development Manager | Z14: Nicolas Delattre | AA14: n.delattre@hasler.group | AB14: +33 7 62 65 16 60 | AC14: MMF - Other | AI14: Delivery Time | AJ14: Délai de livraison
P15: 12 months after commissioning, latest 18 months after delivery | Q15: 12 mois après la mise en service, maximum 18 mois après livraison | X15: PTES | Y15: Area Sales Manager | Z15: Phirun Tes | AA15: p.tes@hasler.group | AB15: + 33 6 70 76 33 36 | AC15: ENV - A5 FGD (Flue-gas & kiln dust/alternative fuels desulfurization) | AI15: Terms of Payment | AJ15: Conditions de paiement
P16: 18 months after commissioning, latest 24 months after delivery | Q16: 18 mois après la mise en service, maximum 24 mois après livraison | S16: P. eng. | X16: TOUE | Y16: Area Sales Manager | Z16: Toufik Ouerdani | AA16: t.ouerdani@hasler.group | AB16: +212 6 68 19 18 56 | AC16: ENV - B5 Water Treatment | AI16: Warranty | AJ16: Garantie
P17: 24 months after commissioning, latest 30 months after delivery | Q17: 24 mois après la mise en service, maximum 30 mois après livraison | S17: EGUA | T17: Process Engineer | U17: Enrico Gualdi | V17: e.gualdi@hasler.group | W17: +39 345 825 82 80 | X17: WSON | Y17: Area Sales Manager | Z17: Wei Song | AA17: w.song@hasler.group | AB17: +86 137 7681 9309 | AC17: ENV - E5 Industrial Waste Water Treatment | AI17: Validity | AJ17: Durée de validité
P18: 24 months after commissioning, latest 36 months after delivery | Q18: 24 mois après la mise en service, maximum 36 mois après livraison | S18: VRUY | T18: Process & Product Director | U18: Victor Ruys | V18: v.ruys@hasler.group | W18: +33 6 87 85 35 42 | AC18: ENV - Other | AI18: Contacts | AJ18: Coordonnées
P19: 36 months after commissioning, latest 42 months after delivery | Q19: 36 mois après la mise en service, maximum 42 mois après livraison | AC19: DEV - A4 Feed (additives) | AI19: Customer Contact List | AJ19: Liste de contacts client
AC20: DEV - B4 CERAMIC & MATERIALS (Catalyst,proppants) | AI20: HASLER France Contact List | AJ20: Liste de contacts HASLER France
AC21: DEV - D4 Sealant - Bonding - Adhesives | AI21: General Terms & Conditions of Sale | AJ21: Conditions générales de vente
P22: Payment percentage : | AC22: DEV - F4 Battery Pastes | AI22: General Conditions of Intervention | AJ22: Conditions générales d'intervention
P23: 0.05 | AC23: DEV - G4 Specialty Polymers and resins and compounds | AI23: This commercial offer is linked to our technical offer ref n° | AJ23: Cette offre commerciale est liée à notre offre technique n°
P24: 0.1 | AC24: DEV - I4 Aminated Acids / vitamins / specialty acids (lactic, citric…) | AI24: The following offer is a budget offer, NOT valid for order. | AJ24: La presente offre est une offre budgetaire, NON-valable pour commande.
P25: 0.15 | AC25: DEV - J3 Metals recycling | AI25: Our Reference: | AJ25: Notre reference:
P26: 0.2 | AC26: DEV - Other | AI26: Offer | AJ26: Offre
P27: 0.25 | AI27: Please take into account additional time for delivery of the goods to the contractual incoterm place of destination (to be confirmed after order) | AJ27: Prévoir un délai supplémentaire pour l'acheminement de la marchandise au lieu de l'incoterm contractuel (à confirmer apres commande)
P28: 0.3 | AI28: The delivery time is estimated and will be confirmed upon receipt of your order to account for the factory load at the time of processing your order. The lead time runs from the receipt of the advance payment due upon ordering. It will be extended by any delay that may occur in order to receive additionally agreed payment instalments. No work will be started before receipt of the agreed advance payment. It is the responsibility of the customer to provide all technical data and intermediary approvals in a timely manner in order to allow the nominal progress of the design, manufacturing and documentation work. Any delay in doing so will affect the global lead time without any liability to Hasler | AJ28: Le délai indiqué est estimatif et sera confirmé à réception de votre commande afin de tenir compte de la charge usine au moment du traitement de votre commande. Le délai court à partir de la réception du paiement de l’acompte initial payable à la commande. Il sera prolongé de chaque retard éventuel qui pourrait être mis à recevoir le versement des jalons de paiement contractuels supplémentaires. Aucun travail ne sera entamé avant réception de l’acompte initial convenu. Il est de la responsabilité du client de fournir en temps voulu l’ensemble des données techniques et des validations permettant la progression du travail de conception, de fabrication et de documention. Tout retard de réception impactera d’autant le délai de livraison sans qu’aucune responsabilité ou pénalité ne puisse être imputée à Hasler
P29: 0.35 | AI29: At placing the order, upon receipt of the order confirmation and the corresponding invoice | AJ29: A la commande au titre d'acompte, dès réception de la confirmation de commande et de la facture correspondante
P30: 0.4 | AI30: 30 days net after the date of invoice, invoice issued at Ex Works readiness date | AJ30: A la mise à disposition du materiel à notre usine (EXW Le Mele sur Sarthe), à 30 jours date de notre facture
P31: 0.45 | AI31: By bank transfer | AJ31: Par virement bancaire
P32: 0.5 | AI32: The equipment must not be modified without prior consultation with HASLER Group. Modification without the written consent of HASLER GROUP may invalidate the warranty and any product liability. Any warranty for newly purchased equipment will be void unless HASLER Group has supervised and/or validated on site the assembly and mountingof the equipment. Expertise of abnormal conditions under warranty periods are to be exclusively conducted by HASLER Group. Should the expertise conclude that the causes of the conditions are not related to the warranty then the full expertise will have to be covered by the main contractor or the end user. | AJ32: L’équipement ne peut être modifié sans accord préalable de HASLER Group. Toute modification sans le consentement écrit de HASLER Group invaliderait la garantie et toute responsabilité de HASLER Group envers le produit. Toute garantie pour un équipement neuf ne sera effective qu’à la condition qu’HASLER Group ait supervisé et/ou validé sur site le montage et l'assemblage de cet équipement. Les expertises pour des fonctionnements anormaux pendant les périodes de garantie seront exclusivement effectuées par HASLER Group. Si l'expertise conclut que les causes des dysfonctionnments ne sont pas conformes aux termes de la garantie, alors l'expertise complète sera à la charge du contractant principal ou l'utilisateur final.
P33: 0.55 | AI33: 1 month | AJ33: 1 mois
P34: 0.6 | AI34: Address | AJ34: Adresse
P35: 0.65 | AI35: City | AJ35: Ville
P36: 0.7 | AI36: Country | AJ36: Pays
P37: 0.75 | AI37: Name | AJ37: Nom
P38: 0.8 | AI38: Position | AJ38: Fonction
P39: 0.85 | AI39: Contact Details | AJ39: Coordonnées
P40: 0.9 | AI40: Purchase Dept | AJ40: Sce achat
P41: 0.95 | AI41: Technical Dept | AJ41: Technique
P42: 1 | AI42: IMPORTANT / COVID 19 HEALTH PANDEMIC In view of the COVID 19 health pandemic, the delivery times and costs we indicate are currently indicative and cannot be considered contractual. HASLER GROUP obviously does everything in its power to maintain these deadlines and costs as they are stated. However, we reserve the right to update the transport costs before shipping if they should fluctuate. We will notify you in advance of any additional impact. | AJ42: IMPORTANT / CONTEXTE SANITAIRE COVID 19 Au regard du contexte sanitaire COVID 19, les délais et frais de livraison que nous indiquons sont aujourd’hui à titre indicatif et ne peuvent être considérés comme contractuels. HASLER GROUP met bien évidemment tout en œuvre pour maintenir ces frais et délais mais se réserve le droit de réactualiser avant expédition les couts de transports si ces derniers devaient fluctuer. Nous vous informerons au préalable de tout impact supplémentaire.
AI43: Are you focusing on optimizing your equipment and your production ? | AJ43: Vous souhaitez améliorer votre process ?
AI44: Our experienced engineers are available on request for accurate and dedicated training, expertise or audit. | AJ44: Nos ingénieurs experts interviennent chez vous pour des audits techniques et des interventions spécifiques
AI45: Contact us to get more informations: service@hasler.group | AJ45: Contactez-nous pour plus d’informations : service@hasler.group
AI46: 1. GENERAL POINTS 1.1. Commercial relations between HASLER France, or one of its subsidiaries representing it (‘Supplier’), and the buyer, referred to as the “Customer”, shall be governed by these General Terms and Conditions of Sale. They constitute the sole basis of any commercial negotiation and shall apply to all points which are not regulated in another manner in writing by mutual Agreement. Customer terms and conditions of Purchase which contradict these General Terms and Conditions of Sale shall only be valid if the Supplier has agreed to them in writing. 1.2. Deviations/additions to these General Terms and Conditions of Sale shall only be valid if the Supplier has expressly accepted them in writing. 1.3. Offers which do not mention a validity period shall be non-binding. Once the validity period has expired, the Supplier reserves the right to accept or not any order. 1.4. The ‘Agreement’ consists of the documents listed below which shall prevail over each other in the following order of priority: - an Agreement signed by both the Customer and the Supplier or the order and its acceptance signed by the Supplier with its comments (if required); - any specific and/or additional special Terms and Conditions of Sale agreed by the Customer and the Supplier; - these General Terms and Conditions of Sale, which form an integral part of the Agreement. 1.5. ‘Works’, specified in the Agreement, consist of the ‘Equipment’ to be delivered (materials, products, equipment, etc.) and the ‘Services’ to be provided (assembly, supervision, commissioning, repair, upgrade, maintenance, etc.) in accordance with Agreement requirements. 1.6. The Supplier shall be free to subcontract all or part of the Equipment and Services under the Agreement. 1.7. The Customer shall refrain from any action or practice with a view to hiring the Supplier’s employees. 1.8. If any provision of the Agreement is deemed invalid or unenforceable in whole or in part by a competent authority, the validity of the other provisions of the Agreement and the rest of the provision in question shall not be affected. 1.9. The headings in these General Terms and Conditions of Sale are indicative and do not affect the content of the relevant provisions. 2. AGREEMENT AND EFFECTIVE DATE 2.1. The Agreement shall enter into effect when the last of the following events occurs (‘Effective Date’): - Agreement signature by the Supplier and the Customer; - receipt by the Supplier of a down payment as provided for in the Agreement or, failing that, receipt by the Customer of the formal acceptance of the order signed by the Supplier; - receipt by the Supplier of an irrevocable and confirmed letter of credit acceptable by the Supplier, or receipt of any other payment guarantee by the Supplier (stand-by letter of credit or other, to be agreed by the Supplier). 2.2. Unless otherwise indicated in the special conditions of sale, the Effective Date shall constitute the date of the beginning of the Supplier’s contractual obligations and the delivery lead time and schedules specified, if applicable, in the Agreement for Equipment, spare parts, and Service provision. 2.3. If more than thirty (30) days pass after the Agreement’s signature without the occurrence of the Effective Date, the Supplier may modify the aforementioned schedules. 3. ORDER, ORDER CONFIRMATION 3.1. Unless there are justified exceptions, the Supplier shall confirm orders in writing. The terms of the written order confirmation shall be the exclusive reference for payment terms, the delivery time, the contents of the delivery, and the scope of the Services, and shall include, where applicable, reservations on the Customer order (HASLER EQ23 document). 3.2. Order changes, as well as oral Agreements shall only be valid if the Supplier has confirmed them in writing to the Customer. 3.3. The Supplier shall be authorised to make changes bringing improvements at any time as long as they do not hinder the guaranteed performance and do not result in an increase in the price for the Customer. 3.4. The submission of an order signed by the Customer implies acceptance by the latter of these General Terms and Conditions of Sale, unless one or more points of these General Terms and Conditions of Sale have resulted in a negotiation and on the condition that these negotiated points are recorded in the written Agreement signed by the Supplier or in the Special Terms and Conditions of Sale which are also signed. 4. PRICE 4.1. Prices are expressed according to the exact Incoterm specified in the Special Terms of Sale, according to the ICC (International Chamber of Commerce) definitions of the latest known review of the offer. 4.2. Prices may be adjusted after entering into the Agreement in the following cases: - price review; - extension of the delivery lead time for one of the reasons listed in 11.3; - change to the scope of the agreed Works; - modifications to the Equipment or performance because the documents provided to the Supplier by the Customer did not correspond to actual conditions or were incomplete. 4.3. If the Effective Date occurs after the offer’s validity date, or if the Agreement completion date is postponed for reasons beyond the Supplier’s liability, the Supplier shall be entitled to update its prices for postponed work, in particular in order to take into account possible increases in the prices of raw materials, energy, and the average cost of living. 4.4. The price is understood and corresponds to the limit of the Services defined in the Agreement’s reference technical offer. 4.5. The Agreement price shall be adjusted to take into account any change in cost for the Supplier resulting from changes in the legislation of the Customer's country. Legislation means any law, order, or regulation, not limited to tax laws, that affects the Supplier in the performance of the obligations under the Agreement. | AJ46: 1. GENERALITES 1.1. Les relations commerciales entre la société HASLER France, ou l’une de ses filiales la représentant, nommée « le Fournisseur » par la suite, et l’acheteur, dénommé « le Client », sont régies par les présentes Conditions Générales de Vente. Celles-ci constituent le socle unique de toute négociation commerciale, et s’appliquent à tous les points qui ne sont pas réglementés d’une autre manière par écrit selon accord réciproque. Des conditions du Client qui sont en contradiction avec ces Conditions Générales de Vente ne sont valables que si le Fournisseur s’est déclaré par écrit d’accord avec elles. 1.2. Des divergences / compléments à ces Conditions Générales de Vente ne sont valables que si le Fournisseur les a acceptés expressément et par écrit. 1.3. Les offres qui ne mentionnent pas de délai de validité sont sans engagement. Une fois le délai de validité écoulé, le Fournisseur se réserve le droit d’accepter ou non toute commande s’y référant. 1.4. « Le Contrat » est constitué des documents énumérés ci-après et prévalant les uns sur les autres dans l'ordre de priorité suivant : - un accord signé par le Client et le Fournisseur, ou la commande et son acceptation signées par le Fournisseur avec ses commentaires éventuels ; - toutes conditions de vente spécifiques et / ou spéciales complémentaires convenues par le Client et le Fournisseur ; - les présentes Conditions Générales de Vente, qui font partie intégrante du Contrat. 1.5. « Les Travaux », précisés dans le Contrat, sont constitués de « l’Équipement » à livrer (matériaux, produits, équipements, …) et des « Services » à exécuter (Travaux de montage, supervision, mise en service, réparation, mise à niveau, maintenance, …) conformément aux exigences du Contrat. 1.6. Le Fournisseur est libre de sous-traiter tout ou partie de l’équipement et des services du Contrat. 1.7. Le Client s’abstiendra de toute action ou pratique en vue d’embaucher du personnel du Fournisseur. 1.8. Si une disposition du Contrat est jugée invalide ou inapplicable par une autorité compétente, en tout ou en partie, la validité des autres dispositions du Contrat et le reste de la disposition en question n’en seront pas affectés. 1.9. Les titres des présentes Conditions Générale de Vente sont indicatifs et n’affectent pas le contenu des clauses pertinentes. 2. CONTRAT ET DATE D’ENTREE EN VIGUEUR 2.1. Le Contrat entrera en vigueur lorsque le dernier des événements suivants se produira (« Date d'entrée en vigueur ») : - signature du Contrat par le Fournisseur et le Client - réception par le Fournisseur d'un acompte tel que prévu au Contrat, ou par défaut, réception par le Client de l'acceptation formelle de la commande signée par le Fournisseur - réception par le Fournisseur d'un crédit documentaire irrévocable et confirmé acceptable par le Fournisseur, ou réception de toute autre garantie de paiement par le Fournisseur (lettre de crédit stand-by ou autre, à convenir par le Fournisseur) 2.2. Sauf indication contraire dans les conditions particulières de vente, la Date d'entrée en vigueur constituera la date de début des obligations contractuelles du Fournisseur et du délai de livraison et des calendriers spécifiés le cas échéant dans le Contrat de l'Équipement, des pièces de rechange et des prestations de Service. 2.3. S'il devait y avoir plus de trente (30) jours après la signature du Contrat sans occurrence de la date d'entrée en vigueur, le Fournisseur aurait le droit de modifier les calendriers susmentionnés. 3. COMMANDE, CONFIRMATION DE COMMANDE 3.1. Sauf exception justifiée, le Fournisseur confirme les commandes par écrit. Les termes de la confirmation de commande écrite sont la référence exclusive pour les termes de paiement, le délai, le contenu de la livraison et l’étendue des prestations, et intègrent, le cas échéant, des réserves sur la commande du Client (document HASLER EQ23). 3.2. Des modifications de commande, ainsi que des accords oraux ne sont valables que si le Fournisseur les a confirmés par écrit au Client. 3.3. Le Fournisseur est autorisé à procéder en tout temps à des modifications apportant des améliorations dans la mesure où celles-ci n’entravent pas les performances garanties et n'entraînent pas une hausse du prix pour le Client. 3.4. La soumission d'une commande signée par le Client vaut l'acceptation par celui-ci des présentes Conditions Générales de Vente, sauf si un ou plusieurs points de ces CGV ont donné lieu à une négociation, et à la condition que ces points négociés soient retracés dans le Contrat écrit signé du Fournisseur ou dans des Conditions Particulières de Ventes également signées. 4. PRIX 4.1. Les prix sont exprimés selon l’Incoterm exact spécifié dans les conditions particulières de vente, selon les définitions ICC (Chambre de Commerce International) de la dernière révision connue à l’offre. 4.2. Des adaptations de prix après la conclusion du Contrat peuvent être opérées dans les cas suivants : - une révision de prix a été convenue, - une prolongation du délai de livraison a eu lieu pour l’une des raisons sous point 11.3, - l’étendue des Travaux convenus a été modifiée, - des modifications ont été apportées au matériel ou à l’exécution, parce que les documents mis à la disposition du Fournisseur par le Client ne correspondaient pas aux conditions réelles ou étaient incomplets. 4.3. Dans le cas où la Date d'entrée en vigueur survient après la date de validité de l'offre, ou dans le cas où la date d'achèvement du Contrat est reportée pour des raisons indépendantes de la responsabilité du Fournisseur, le Fournisseur serait en droit de mettre à jour ses prix pour les Travaux reportés, en particulier afin de prendre en compte des éventuelles augmentations de prix des matières premières, de l'énergie et du coût moyen de la vie. 4.4. Le prix s’entend et correspond à la limite de prestations définies dans l’offre technique de référence du Contrat. 4.5. Le prix du Contrat sera ajusté pour tenir compte de toute modification de coût pour le Fournisseur résultant de modifications de la législation du pays du Client. La législation désigne toute loi, ordonnance, réglementation, non limitée aux lois fiscales, qui affecte le Fournisseur dans l’exécution des obligations en vertu du Contrat.
AI47: 5. AGREEMENT PERFORMANCE 5.1. Delivery shall meet the standards and requirements applied by the Supplier, valid at the time of the offer, and confirmed when ordering. 5.2. The goods are designed and manufactured in compliance with fundamental health and safety requirements respectively applicable to them. The CE mark of conformity and the establishment of Supplier declarations meet the corresponding directives. 5.3. Good Engineering Practices: Equipment and Services shall conform to good engineering practice and contract specifications. The Customer is required to provide the Supplier with all the information and documents necessary for the Works before signing the Agreement. 5.4. Customer's obligations: throughout the duration of the Works, the Customer shall provide any approval and instruction, material, Works, site access, any Equipment to the extent necessary for the Works (safety rules, special risks, etc.), and, more generally, any support required for the Works which is not part of the Works or the Supplier's responsibility in a timely manner. The customer shall assist the Supplier in obtaining any visa, permit, or licence that may be required for Service provision or for Equipment import and delivery (if applicable). 5.5. Customer supervision: when provided for in the special terms and conditions of sale, the Customer may supervise Agreement execution. To this end, the Customer or its representatives shall have access to the Supplier's facilities during their working hours. The cost of this shall be fully borne by the Customer. Such supervision shall not hinder or delay Agreement execution. 5.6. Supplier recommendations: any advice or recommendation given by the Supplier (or its employees or agents) which is not confirmed in writing by the Supplier, shall be followed or applied entirely at the Customer’s risk and peril, and therefore, the Supplier shall not be held liable for any such advice or recommendations that are not confirmed in this manner. 6. CHANGES – AMENDMENTS – VARIATIONS 6.1. During Agreement execution, the Supplier may make changes to the Equipment as required by mandatory circumstances, such as a modification of technical standards, manufacturing methods, or laws and regulations, affecting the terms of Agreement execution. However, these modifications shall not affect the fundamental characteristics of the Equipment and Services specified in the Agreement. 6.2. If these modifications have effects which prevent or make more difficult compliance with certain Agreement provisions, in particular those relating to prices or delivery lead times, the Supplier shall submit the appropriate supporting documents to the Customer and the Customer and the Supplier shall sign an Amendment to their Agreement setting out the changes required. 6.3. All changes to the Agreement shall be documented in writing and signed by the Supplier and the Customer. Under no circumstances shall the Supplier be held liable for the performance of Works other than those expressly mentioned in the Agreement by its employees at the Customer's request. 7. PAYMENT 7.1. The Customer shall make payments in accordance with the agreed terms at the Supplier's tax domicile without deducting any discounts, charges, taxes, duties, customs duties, allowances, Supplier delay penalties or other charges. In the absence of other Agreements, the price shall be paid in two instalments: one third upon receipt of the order confirmation and two thirds upon delivery or notice of availability. An invoice recalling the down payment paid and the balance payable shall be issued. The down payment shall be paid upon receipt of the corresponding invoice. Unless otherwise agreed, any other invoice shall be paid within 30 (thirty) days from the date of the invoice. In the case of early payment, no discount shall be granted. 7.2. The payment terms and commitments shall remain in force when the acceptance, transport, delivery, assembly, and commissioning of Equipment or Services are delayed or made impossible for reasons beyond the Supplier’s control. The same applies when non-essential parts fail or when touch-up work is necessary without preventing the use of Equipment or a service. 7.3. In the event of late payment, the Supplier reserves the right to immediately stop deliveries and planned service provision. It is authorised to charge interest from the day following the payment date appearing on the invoice, at the rate of 3 (three) times the French legal interest rate. In addition, a minimum fixed fee of 40 euros for recovery costs shall be due as of right, without any reminder being necessary, without prejudice to the Supplier being able to charge a greater amount than said fixed fee if it has incurred higher recovery costs. This fee shall apply to each invoice paid late. 7.4. If the Customer is in default, the Supplier is authorised to cease the activities inherent to the Agreement and withhold deliveries and Services in progress. If, within a reasonable period of time, the Supplier does not obtain sufficient guarantees, it may withdraw from the Agreement, demand damages and, if necessary, take back the goods supplied under the Agreement at the Customer's expense. 8. TAXES 8.1. Unless otherwise specified in the regulations of European Union countries, where the Agreement provides for the delivery of Equipment within the European Union, Equipment delivery shall be exempt from VAT provided that the Customer provides the Supplier with its VAT number or that of the end user, if the latter is a resident of the European Union, with the order. 8.2. In this case, the Customer or end user shall pay the applicable VAT in accordance with the tax rules applicable in their own country. If the VAT number is not attached to the Agreement, the Equipment shall be subject to VAT in the Customer's country, calculated at the rate in force on the invoice date. Any tax adjustment, penalty, or interest on late payment which may become due as a result of the Supplier’s use of said VAT number shall be reimbursed by the Customer to the Supplier within 30 (thirty) days of the presentation of proof of payment thereof. 8.3. For France, the prices indicated are exclusive of VAT. This shall be applied to invoicing in accordance with the laws in force. 9. RETENTION OF TITLE Delivery shall remain the Supplier’s property until full payment of the Equipment. The Customer has an obligation to participate in measures aimed at the protection of property. In particular, it shall identify precisely the goods delivered and not paid for in its warehouses, so as to allow, if necessary, an effective claim. It authorises the Supplier, at its own expense, to carry out any inspection of this identification on the Customer's premises. The Customer shall also bear the costs of registering or reporting the retention of title in the public registers/books in accordance with applicable national laws and the costs incurred by the Supplier to complete all the formalities necessary for this purpose. Until the retention of title is lifted, the Customer shall insure and maintain the delivered goods. | AJ47: 5. EXECUTION DU CONTRAT 5.1. La livraison répond aux normes et prescriptions appliquées par le Fournisseur, valables au moment de l’offre, et confirmées à la commande. 5.2. Les marchandises sont conçues et fabriquées en respectant les exigences fondamentales de sécurité et de santé qui leur sont respectivement applicables. La marque CE de conformité et l’établissement des déclarations du Fournisseur répondent aux directives correspondantes. 5.3. Bonnes pratiques d’ingénierie : l’Equipement et les Services seront conformes aux bonnes pratiques d’ingénierie et aux spécifications du Contrat. Le Client est tenu de fournir au Fournisseur toutes les informations et documents nécessaires aux Travaux avant la signature du Contrat. 5.4. Obligations du Client : pendant toute la durée des Travaux, le Client devra fournir à temps toute approbation et instruction, matériel, travaux, accès au chantier et à tout équipement dans la mesure nécessaire aux Travaux (règles de sécurité, risques particuliers, …) et plus généralement tout support requis pour les Travaux tant qu’il ne fait pas partie des Travaux ou de la responsabilité du Fournisseur. Le Client doit aider le Fournisseur à obtenir tout visa, permis ou licence qui peut être nécessaire pour l’exécution des Services ou pour l’importation et la livraison de l’Equipement (le cas échéant). 5.5. Supervision du Client : lorsque cela est prévu dans les conditions particulières de vente, le Client peut superviser l’exécution du Contrat. A cet effet, le Client ou ses représentants auront accès aux installations du Fournisseur pendant leurs heures de travail. Le coût de celle-ci est entièrement à la charge du Client. Cette surveillance ne doit pas entraver ni retarder l’exécution du Contrat. 5.6. Recommandations du Fournisseur : tout conseil ou recommandation donné par le Fournisseur (ou ses employés ou agents) qui n’est pas confirmé par écrit par le Fournisseur, est suivi ou appliqué entièrement aux risques et périls du Client, et en conséquence, le Fournisseur ne sera pas responsable de tels conseils ou recommandations qui ne sont pas ainsi confirmés. 6. MODIFICATION – AMENDEMENTS – VARIATIONS 6.1. Pendant l’exécution du Contrat, le Fournisseur peut introduire des changements dans l’Equipement comme requis par des circonstances obligatoires telles que la modification des normes techniques, ou des méthodes de fabrication, ou des dispositions législatives et réglementaires, affectant les conditions d’exécution du Contrat. Ces modifications ne doivent cependant pas affecter les caractéristiques fondamentales des équipements et services spécifiés dans le Contrat. 6.2. Si ces modifications ont des effets qui empêchent ou rendent plus difficile le respect de certaines dispositions du Contrat, notamment celles relatives aux prix ou aux délais de livraison, le Fournisseur soumettra au Client les pièces justificatives appropriées et le Client et le Fournisseur signeront un Avenant à leur Contrat fixant les modifications requises. 6.3. Toutes les modifications au Contrat seront documentées par écrit signées par le Fournisseur et le Client. La responsabilité du Fournisseur ne peut en aucun cas être engagée pour l’exécution par ses employés, à la demande du Client, des Travaux autres que ceux expressément mentionnés dans le Contrat. 7. PAIEMENT 7.1. Le Client doit effectuer les paiements conformément aux conditions convenues au domicile fiscal du Fournisseur sans déduction d’escomptes, de frais, d’impôts, de taxes, de droits de douane, d’indemnités, de pénalités de retard du Fournisseur ou autres redevances. A défaut d’autres accords, le prix est à régler en deux tranches, à savoir : un tiers à la réception de la confirmation de commande, deux tiers à la livraison ou à l’avis de disponibilité. Une facture rappelant l’acompte versé et le solde à payer sera émise. L’acompte est à payer dès réception de la facture correspondante. Toute autre facture doit être réglée, sauf accord particulier, dans un délai de 30 (trente) jours à compter de la date d’émission de la facture. Dans le cas d’un paiement anticipé, aucune remise ni escompte n’est accordé. 7.2. Les conditions et engagements de paiement demeurent de rigueur lorsque l’acceptation, le transport, la livraison, le montage, la mise en service de l’installation ou des prestations sont retardés ou rendus impossibles pour des raisons dont le Fournisseur n’est pas responsable. Il en va de même lorsque des pièces non essentielles font défaut ou lorsque des travaux de retouche s’avèrent nécessaires sans qu’ils empêchent l’utilisation d’une installation ou d’une prestation. 7.3. En cas de retard de paiement, le Fournisseur se réserve le droit à l’arrêt immédiat des livraisons et prestations prévues. Il est autorisé à facturer des intérêts à partir du jour suivant la date de règlement figurant sur la facture, au taux de 3 (trois) fois le taux d’intérêt légal français. En outre, une indemnité forfaitaire minimum de 40 euros pour frais de recouvrement sera due de plein droit, sans qu’aucun rappel ne soit nécessaire, sans préjudice de la faculté du Fournisseur qui aurait exposé des frais de recouvrement d’un montant supérieur au montant forfaitaire susvisé. Cette indemnité s’applique à chaque facture payée en retard. 7.4. Si le Client est en retard de paiement, le Fournisseur est autorisé à cesser la poursuite des activités inhérentes au Contrat et à retenir les livraisons et prestations en cours. Si, dans l’espace d’un délai raisonnable, le Fournisseur n'obtient pas des garanties suffisantes, il a le droit de se désister du Contrat, d’exiger des dommages-intérêts et de reprendre le cas échéant la marchandise fournie dans le cadre du Contrat aux frais du Client. 8. TAXES 8.1. Sauf indication contraire dans la réglementation des pays de l'Union européenne, où le Contrat prévoit la livraison de matériel dans l'Union européenne, la livraison du matériel sera exonérée de TVA à condition que le Client fournisse au Fournisseur en même temps que la commande son numéro de TVA ou celui de l'utilisateur final si ce dernier est résident de l'Union européenne. 8.2. Dans ce cas, le Client ou l'utilisateur final est responsable du paiement de la TVA applicable conformément aux règles fiscales applicables dans son propre pays. Si le numéro de TVA n'est pas joint au Contrat, le matériel sera soumis à la TVA dans le pays du Client, calculée au taux en vigueur à la date de facturation. Tout redressement fiscal, pénalité ou intérêts de retard qui pourraient devenir dus du fait de l'utilisation dudit numéro de TVA par le Fournisseur sera remboursé par le Client au Fournisseur dans un délai de 30 (trente) jours à compter de la présentation d'une preuve de paiement de celui-ci. 8.3. Concernant la France, les prix indiqués sont hors TVA. Celle-ci est appliquée à la facturation conformément à la législation en vigueur. 9. RESERVE DE PROPRIETE La livraison reste la propriété du Fournisseur jusqu’au règlement intégral de l’Equipement. Le Client a l’obligation de participer aux mesures visant la protection de la propriété. En particulier, il s’oblige à identifier précisément la marchandise livrée et non payée dans ses entrepôts, de façon à en permettre, le cas échéant, une revendication efficace. Il habilite à ses frais le Fournisseur à procéder à tout contrôle de cette identification dans les locaux du Client. Le Client prend également à sa charge les frais d’’inscription ou de signalisation de la réserve de propriété dans les registres / livres publics conformément aux lois nationales applicables et les frais du Fournisseur à accomplir toutes les formalités nécessaires à cet effet. Jusqu’à la levée de la réserve de propriété, le Client s’engage à assurer et entretenir la marchandise livrée.
AI48: 10. FORCE MAJEURE 10.1. Under no circumstances shall the Supplier be liable for non-compliance with its obligations due to a case of Force Majeure. Force Majeure shall be defined as any event preventing the full or partial performance of the Agreement which cannot be overcome despite a reasonable effort on the part of the Supplier or its agents. 10.2. Force Majeure includes, but is not limited to, the following events: labour disputes or strikes, shortage of skilled workers or raw materials, major incidents affecting the Supplier's agents, fires, explosions, mobilisations, action or failure to act by public Services or government authorities, acts of war, sabotage, embargoes, insurrection, riots, breach of the peace, major manufacturing issues such as tool accidents or business failure, or late deliveries or with defects in raw materials, semi-finished or finished products, scrapping of essential parts, administrative measures or shortcomings, natural phenomena, interruptions or delays in transport, and epidemics. 10.3. If the case of Force Majeure continues for more than 3 (three) months and the Customer and the Supplier have not agreed on the terms of continuation of the Agreement, the Supplier may terminate the Agreement within a period of 30 (thirty) days after written notification to the Customer, in which case the provisions of the TERMINATION clause shall apply. 11. DELIVERY LEAD TIME 11.1. The delivery lead time shall begin from the Effective Date. 11.2. Unless otherwise agreed, where delivery takes place on the Supplier's premises, the delivery lead time is considered to have been complied with when the goods are ready to be delivered or, by derogation, accepted in accordance with what has been agreed. 11.3. The delivery time shall be appropriately extended: - when points 4 and 5 of section 5 (Agreement execution) reach the Supplier late; - when the Customer modifies the specifications necessary for Agreement execution after the Effective Date; - in the event of a case of Force Majeure (section 10); - if an external inspection, mandated by the Customer in writing on placing the order, delays the lead time initially planned. 11.4. If such uncontrollable events prevent deliveries and service provision within the agreed deadlines, the Customer shall not be entitled to any compensation. 11.5. If a specific date is agreed instead of a delivery lead time, it shall be equivalent to the last day of the delivery lead time. The previous points in this section shall apply in a similar manner. 12. DELAY PENALTIES If the Supplier does not comply with the schedule due to its own fault and if a summons to deliver has been issued by the Customer, the Supplier shall, at the Customer's request and within 15 (fifteen) days from said request, pay delay compensation calculated on the basis of the Agreement price (excluding tax) of the delayed Work at a rate of 0.5% per week up to a maximum of 5% of the delayed Work. The compensation indicated above shall constitute the limit of the Supplier's liability for delay and, as such, shall be considered as full discharge. No delay compensation payment shall be imposed on the Supplier for delays due to circumstances attributable to the Customer, a case of Force Majeure, or when such delays have not resulted in loss for the Customer. Delay compensation is not applicable to the documentary part. 13. CONFIDENTIALITY, OWNERSHIP 13.1. The indications of weights, measures, performance, etc. appearing in catalogues, brochures, and offers etc. are reference values entailing no commitment. 13.2. The Supplier shall retain ownership of its studies, plans, models, data, and test results as well as any document issued and provided to the Customer, or of which the Customer may have cognisance during Agreement execution. The Customer may only use this information and documents for Agreement execution. These documents and information shall be treated confidentially and shall not be distributed, published, or generally disclosed to third parties without the Supplier’s express prior written authorisation, to which they shall be returned immediately upon request from the latter in the event of Agreement termination. They shall also not be used for the manufacture of machinery, Equipment, or parts thereof. 13.3. Provided that the Supplier has been paid the full amount contractually due, the Supplier shall grant the Customer a free and non-exclusive right to use the aforementioned documents exclusively for the upkeep and maintenance of the Equipment subject to its work. 14. TERMINATION 14.1. Except in cases of Force Majeure, each party may terminate the Agreement at any time in the event that the other party does not fulfil a substantial obligation imposed on it under the Agreement and does not take satisfactory measures to remedy this within 20 (twenty) days of receipt, by the defaulting party, of a written notice to this effect sent by recorded delivery with advice of receipt or of any equivalent notification from which emerges a sufficient warning. 14.2. If the Customer cancels an order, the Supplier shall be entitled to remuneration for deliveries made and Services already provided, or, if no delivery has yet been made, to the reimbursement of sums incurred by the Supplier with subcontractors. The remuneration and reimbursements mentioned above shall be increased by a withdrawal penalty equivalent to 10% of the order’s value. 14.3. Termination of the Agreement in whole or in part, for any reason, shall not affect or prejudice the COMMERCIAL GUARANTEE (19), CONFIDENTIALITY, OWNERSHIP (13), and LAW AND ARBITRATION (22) provisions in this agreement. | AJ48: 10. FORCE MAJEURE 10.1. Le Fournisseur ne sera en aucun cas responsable du non-respect de ses obligations du fait d’un cas de Force Majeure. La Force Majeure sera définie comme tout événement qui empêche l’exécution totale ou partielle du Contrat et qui ne peut être surmonté malgré un effort raisonnable de la part du Fournisseur ou de ses agents. 10.2. La Force Majeure comprend, mais sans s’y limiter, les événements suivants : conflits de travail ou grèves, pénurie de travailleurs qualifiés ou de matières premières, incidents majeurs affectant les agents du Fournisseur, incendies, explosions, mobilisations, action ou manquement à acte des services publics ou des autorités gouvernementales, actes de guerre, sabotage, embargos, insurrection, émeutes, rupture de la paix, problèmes majeurs de fabrication tels que les accidents d’outils ou panne d’entreprise, ou livraisons tardives ou avec défauts des matières premières, produits semi-finis ou finis, la mise au rebut de pièces essentielles, des mesures administratives ou manquements, des phénomènes naturels, des interruptions ou retards de transport, épidémies. 10.3. Si l’événement de Force Majeure se poursuit pendant plus de 3 (trois) mois et que le Client et le Fournisseur ne se sont pas mis d’accord sur les modalités de continuation du Contrat, le Fournisseur aura le droit de résilier le Contrat dans un délai de 30 (trente) jours après notification écrite au Client, auquel cas la disposition de la clause de RÉSILIATION (14) s’applique. 11. DELAI DE LIVRAISON 11.1. Le délai de livraison débute à partir de la date d’Entrée en vigueur. 11.2. Sauf autre accord, la livraison intervenant dans les locaux du Fournisseur, le délai de livraison est considéré comme respecté lorsque la marchandise est prête à être livrée voire, par dérogation, réceptionnée conformément à ce qui a été convenu. 11.3. Le délai de livraison est prolongé de manière appropriée : - lorsque les points 4 et 5 spécifiés chapitre 5 (Exécution du Contrat) parviennent avec retard au Fournisseur - lorsque les spécifications nécessaires à la réalisation du Contrat sont modifiées plus tard que la date d’Entrée en vigueur par le Client - lors d’un cas de Force Majeure (chapitre 10) - si une inspection externe, mandatée par le Client par écrit lors de sa commande, retarde le délai initialement prévu. 11.4. Si de tels événements non maîtrisables empêchent l’exécution des livraisons et prestations dans les délais convenus, le Client n’a droit à aucun dédommagement. 11.5. Si une date précise est convenue à la place d’un délai de livraison, celle-ci équivaut au dernier jour du délai de livraison. Les points précédents de ce chapitre s’appliquent de manière analogue.12. INDEMNITES DE RETARD Si le Fournisseur ne respecte pas le calendrier en raison de sa propre faute et si une sommation à livrer a été délivrée par le Client, le Fournisseur doit, à la demande du Client et dans un délai de 15 (quinze) jours à compter de ladite sommation, payer des indemnités de retard calculées sur la base du prix du Contrat (hors taxes) des Travaux retardés à raison de 0,5% par semaine jusqu’à un maximum de 5% des Travaux retardés. L’indemnité indiquée ci-dessus constituera la limite de responsabilité du Fournisseur pour retard et sera à ce titre considérée comme forfaitaire et libératoire. Aucune indemnité de retard ne sera imposée au Fournisseur pour retards dus à des circonstances imputables au Client ou à un cas de force majeure, ou lorsque de tels retards n’ont pas entraîné de dommages pour le Client. Les indemnités de retard ne sont pas applicables à la partie documentaire. 13. CONFIDENTIALITE, PROPRIETE 13.1. Les indications de poids, de mesures, de prestations, etc. figurant dans les catalogues, prospectus et offres etc. sont des valeurs de référence sans engagement. 13.2. Le Fournisseur conserve la propriété de ses études, plans, modèles, données et résultats d’essais ainsi que tout document émis et communiqué au Client, ou dont le Client peut avoir eu connaissance en exécution du Contrat. Ces informations et documents ne peuvent être utilisés que par le Client exclusivement pour l’exécution du Contrat. Ces documents et informations seront traités de manière confidentielle et ne seront pas distribués, publiés ou généralement communiqués à des tiers sans autorisation expresse préalable et écrite du Fournisseur, à qui ils seront immédiatement retournés sur simple demande de celui-ci en cas de résiliation du Contrat. Ils ne doivent pas non plus être utilisés pour la fabrication de machines, équipements ou de parties de ceux-ci. 13.3. A condition que le Fournisseur ait été payé de l’intégralité du montant restant dû contractuellement, le Fournisseur accorde au Client un droit libre et non exclusif d’utiliser les documents susmentionnés exclusivement pour entretenir et assurer la maintenance de l’Equipement soumis à ses Travaux. 14. RESILIATION 14.1. Sauf en cas de Force Majeure, chaque partie a le droit de résilier le Contrat à tout moment dans le cas où l’autre Partie ne remplit pas une obligation substantielle qui lui est imposée par le Contrat et ne prend pas les mesures satisfaisantes pour y remédier dans les 20 (vingt) jours suivant la réception par la Partie défaillante d’un avis écrit à cet effet, par lettre recommandée avec demande d’avis de réception, ou toute notification équivalente de laquelle ressort une interpellation suffisante. 14.2. Si le Client résilie une commande, le Fournisseur a droit à la rémunération des livraisons et prestations déjà fournies, ou, si aucune livraison n’a encore été faite, au remboursement des sommes engagées par le Fournisseur auprès des sous-traitants. La rémunération et les remboursements cités ci-dessus, seront majorés d’une indemnité de dédit équivalant à 10% de la valeur de la commande. 14.3. La résiliation du Contrat en tout ou en partie, pour quelque raison que ce soit, n’affectera ni ne préjugera les dispositions des clauses de GARANTIE COMMERCIALE (19), de CONFIDENTIALITE, PROPRIETE (13) et de DROIT ET ARBITRAGE (22) des présentes.
AI49: 15. PACKAGING, DELIVERY, STORAGE 15.1 The place of performance of the Works for the Customer and for the Supplier is one of the Supplier's premises, at the Supplier's choice, even if the delivery has taken place carriage paid, CIF, FOB, or under similar conditions. 15.2. Packaging is provided by the Supplier but in no case shall it be taken back. 15.3. For EXW deliveries, transport and insurance costs shall be borne by the Customer in accordance with the provisions of the designated Incoterm. 15.4. Claims for damage, loss etc. arising from transport shall be reported upon receipt of delivery and certified by the last carrier. 15.5. Whatever the Equipment’s point of delivery and the means of transport, within a period of 15 (fifteen) days from the Supplier’s notification of availability for delivery, the Supplier shall be authorised, on behalf of the Customer, to store the Equipment at the Customer's expense. The Supplier shall be deemed to have delivered this Equipment to the Customer on entry into storage and shall be entitled to payment upon presentation of the warehouse receipt in place of any bill of lading or similar document otherwise required under the Agreement. The risk shall be transferred to the Customer on entry into storage, but title shall only be transferred in accordance with the RETENTION OF TITLE provision. 15.6. Similarly, if shipment is delayed by the Customer, the Supplier may agree, upon written request from the Customer and at the Customer's sole expense and risk, to store the Equipment. The Supplier shall invoice a sum equal to 0.6% of the price excluding tax of the Equipment to be stored per week of postponement with a waiting period of 15 (fifteen) calendar days. The storage period shall in no case exceed 6 (six) months from the Customer's request. These provisions in no way modify the Customer's payment obligations. 16. TRANSFER OF RISK 16.1. Risk transfers pass to the Customer according to the Incoterm determined by the Agreement. 16.2. If shipment is delayed or made impossible for reasons not attributable to the Supplier, the risk shall be transferred to the Customer at the initially scheduled EXW delivery time. From that moment, the goods shall be stored and insured at the Customer’s expense and risk. 17. INSPECTION AND ACCEPTANCE 17.1. Before shipping, each installation shall be subject to the usual inspections. If the Customer wishes to be present during the inspection of its delivery, it shall stipulate this in writing when placing the order. 17.2. Regarding spare parts orders, unless otherwise specified in the order, only electronics shall be subject to the usual inspections. 17.3. The Customer may accept the delivery itself or have it accepted by a person appointed for this purpose. In accordance with the provisions of Article 11.2 above, and unless otherwise provided for in the same article, acceptance shall take place at the manufacturer's plant and shall include a functional test without product. In all cases, the costs shall be fully borne by the Customer. 17.4. The Customer is required to inspect the deliveries and Services within five (5) working days and to immediately communicate any possible defect in writing to the Supplier. Otherwise, deliveries and Services shall be deemed to have been accepted. 17.5. In addition, if the Customer did not choose the carrier, it shall preserve Supplier’s rights with this carrier by notifying the carrier, within three (3) days, not including bank holidays, which follow that of said acceptance, of any damage or loss, by reasoned letter sent by recorded delivery or by extra judicial act, in accordance with Article L133-3 of the French Commercial Code. 18. ASSEMBLY AND COMMISSIONING 18.1. The Customer shall have assembly carried out by suitably qualified personnel under the Supplier’s supervision. 18.2. Commissioning and inspection of assembly work shall be carried out by the Supplier’s personnel or personnel authorised by the Supplier. 18.3. The Services provided shall be the subject of an acceptance report immediately after their completion. 18.4. In the case of assembly and/or commissioning carried out by the Customer, outside the context indicated above, the latter shall not claim the benefit of contractual guarantees. | AJ49: 15. EMBALLAGE, LIVRAISON, STOCKAGE 15.1 Le lieu d'exécution des Travaux pour le Client et pour le Fournisseur est un des locaux du Fournisseur, au choix du Fournisseur, et cela même si la livraison a eu lieu Franco, CIF, FOB ou à des conditions analogues. 15.2. La prestation d’emballage est assurée par le Fournisseur mais en aucun cas il n’est repris. 15.3. Lors de livraisons « EXW », les frais de transport et d’assurances sont à la charge du Client conformément aux dispositions de l’Incoterm désigné. 15.4. Les réclamations concernant des dommages, pertes etc. découlant du transport sont à signaler dès la réception de la livraison et à faire attester par le dernier transporteur. 15.5. Quels que soient le point de livraison et les moyens de transport de l’Equipement dans un délai de 15 (quinze) jours à compter de la notification par le Fournisseur de la disponibilité à la livraison, le Fournisseur sera autorisé, au nom du Client, à entreposer l’Equipement aux frais du Client. Le Fournisseur sera réputé avoir livré cet Equipement au Client lors de l’entreposage et aura droit au paiement sur présentation du récépissé d’entrepôt à la place de tout connaissement ou document similaire autrement requis par le Contrat. Le risque sera transféré au Client lors du stockage, mais le titre ne passera que conformément aux dispositions de la clause de RESERVE DE PROPPRIETE. 15.6. De même, si l’expédition est retardée du fait du Client, le Fournisseur peut accepter, sur demande écrite du Client et aux frais et risques exclusifs de ce dernier, de stocker le matériel. Le Fournisseur facturera une somme égale à 0,6% du prix hors taxe du matériel à stocker par semaine de report avec un délai de carence de 15 (quinze) jours calendaires. La durée de stockage ne pourra en aucun cas excéder 6 (six) mois à compter de la demande du Client. Ces dispositions ne modifient en rien les obligations de paiement du Client. 16. TRANSFERT DE RISQUES 16.1. Les transferts de risques passent au Client en fonction de l’Incoterm déterminé par le Contrat. 16.2. Si l’expédition est retardée ou rendue impossible pour des raisons non imputables au Fournisseur, le risque passe au Client au moment initialement prévu pour la livraison « EXW ». A partir de ce moment, la marchandise est stockée et assurée aux frais et aux risques du Client. 17. CONTROLE ET RECEPTION 17.1. Avant l’expédition, chaque installation est soumise à un contrôle usuel. Si le Client souhaite être présent lors du contrôle de sa livraison, il doit le stipuler par écrit lorsqu’il passe la commande. 17.2. Concernant les commandes de pièces de rechange, sauf spécification particulière dans la commande, seule l’électronique est soumise à un contrôle usuel. 17.3. Le Client peut réceptionner la livraison lui-même ou la faire réceptionner par une personne mandatée à cet effet. Conformément aux stipulations de l’article 11.2 ci-dessus, et sauf dérogation prévue au même article, la réception a lieu dans l’usine du fabricant et comprend un contrôle de fonctionnement sans produit. Les coûts sont dans tous les cas à la charge du Client. 17.4. Le Client a l’obligation de vérifier les livraisons et prestations dans un délai de cinq (5) jours ouvrés et de communiquer tout défaut éventuel immédiatement et par écrit au Fournisseur. A défaut, les livraisons et prestations sont réputées acceptées. 17.5. En outre, dans l’hypothèse où le Client n’aurait pas fait le choix du transporteur, il doit préserver les droits du Fournisseur auprès de ce transporteur, en notifiant au voiturier, dans les trois (3) jours, non compris les jours fériés, qui suivent celui de ladite réception, toute avarie ou perte, par lettre motivée envoyée sous forme recommandée ou acte extra judiciaire, conformément aux dispositions de l’article L133-3 du code de Commerce. 18. MONTAGE ET MISE EN SERVICE 18.1. Le Client est tenu d’effectuer le montage par du personnel dûment qualifié, sous la supervision du Fournisseur. 18.2. La mise en service et le contrôle des travaux de montage doivent être effectués par du personnel du Fournisseur ou autorisé par le Fournisseur. 18.3. Les Services réalisés font l’objet d’un procès-verbal d’acceptation immédiatement après leur achèvement. 18.4. Dans le cas d’un montage et/ou d’une mise en service effectués par le Client, en dehors du contexte indiqué ci-dessus, celui-ci ne pourra pas prétendre à bénéficier des garanties contractuelles.
AI50: 19. COMMERCIAL GUARANTEE 19.1. Unless the Customer has the same specialty as the Supplier, this commercial guarantee does not preclude the legal guarantee against hidden defects provided for in Articles 1641 et seq. of the French Civil Code. During the commercial guarantee period, the Supplier shall promptly and upon written notice from the Customer repair or replace, at its option, all parts that the Customer proves to be defective or unusable. All parts replaced shall become the Supplier's property. 19.2. The Supplier shall only bear the costs resulting from the repair or replacement of defective parts in its Workshops. The Supplier shall, in no case, be liable for expenses other than those chargeable under this guarantee provision. If the defective parts cannot be repaired or replaced in its Workshops for reasons which are not attributable to it, all additional costs resulting therefrom, in particular travel costs, shall be borne by the Customer as well as all expenses incurred by the Customer or a third party during the Equipment’s immobilisation due to work in accordance with the guarantee. 19.3. Any other claim from the Customer based on a defective delivery, in particular damages and Agreement termination, shall be excluded under this commercial guarantee. 19.4. The guarantee period is twelve months. It shall take effect when the Equipment is ready to be shipped or upon completion of commissioning if the Supplier also provides this service, in accordance with Article 11.2 above. If shipment or commissioning is delayed for reasons that are not attributable to the Supplier, the commercial guarantee shall end no later than eighteen months after the time the Equipment was ready for shipment. 19.5. The replaced parts shall benefit from the same commercial guarantee period as the main object. However, this commercial guarantee shall cease no later than eighteen months after the start of the commercial guarantee for the main object or, if the shipment or commissioning of the main object has been delayed for reasons which are not attributable to the Supplier, no later than twenty-four months from the time the main object was ready for shipment. 19.6. The following cases are excluded from the commercial guarantee: - damage due to natural wear and tear, insufficient maintenance, incorrect handling, excessive use, the use of operating means according to factory specifications, the use of contraindicated operation, chemical or electrolytic influences, power surges or lightning strikes, corrosion, erosion, cavitation or similar phenomena, civil engineering and faulty assembly work that has not been carried out by the Supplier, as well as for other causes not attributable to it; - defects attributable to the design, material, or manufacturing or assembly techniques imposed by the Customer and for which the Supplier submitted written comments to the Customer; - non-compliance with the Supplier's instructions; - maintenance of the Equipment, specified in the Agreement, by the Customer or by third parties, under conditions not previously approved by the Supplier in writing; - routine maintenance or replacement of parts required by normal wear and tear of the Equipment or by exposure of the Equipment to the elements; - defects or damage caused by error or negligence of the Equipment user, a case of Force Majeure, or unforeseeable circumstances. The components and parts of the Equipment comply with standards, design characteristics, and quality measurements that correspond to specific requirements and are appropriate for the use for which the Equipment is intended. Therefore, the Supplier's guarantee obligation shall automatically expire if all or part of the components or parts of the Equipment are replaced by components or parts not supplied by the Supplier. 19.7. The commercial guarantee shall cease if the Customer (or third parties) makes changes or repairs to the delivery without the Supplier’s written consent or if the Customer does not immediately take appropriate measures to prevent the damage from worsening and enable the Supplier to remedy the defect. 19.8. If the Customer does not assert in writing, before the expiry of the commercial guarantee period, specific claims arising from the latter, the Supplier shall be released from its obligations under said guarantee. 19.9. The Supplier's guarantee under this provision is in place and excludes any other guarantee or commitment of any kind. 19.10. For deliveries from another manufacturer, the Supplier shall only assume the commercial guarantee as part of the subcontractor's obligations. 20. SUSPENSION 20.1. If Agreement execution is suspended due to a case of Force Majeure or as a result of the Customer, the Supplier’s Agreement execution period shall be extended. Any subsequent costs incurred by the Supplier shall be reimbursed by the Customer. 20.2. If Agreement execution is suspended for any reason and continues for more than 3 (three) months, the Supplier or Customer may, at any time during this uninterrupted suspension, terminate the Agreement with written notice of more than 30 (thirty) days. 21. LIABILITY 21.1. The Supplier undertakes to deliver Equipment in accordance with the Agreement. 21.2. Once the Customer has fulfilled its obligation of inspection in accordance with Article 17.4 of these General Terms and Conditions of Sale, the Supplier shall fulfil its obligations under Article 1641 et seq. of the French Civil Code and the commercial guarantee. 21.3. Under no circumstances shall the Supplier's liability under the Agreement exceed the amount excluding tax of the sums collected under the Agreement. 21.4. Under no circumstances shall the Supplier be held liable for any immaterial damage, such as loss of profit, loss of production, operation, etc. suffered by the Customer. 21.5. The Customer shall waive all recourse against the Supplier to obtain compensation for the financial consequences of any damage caused to third parties and shall pay compensation to the Supplier for all claims by third parties directly or indirectly related to Agreement execution. The conditions mentioned above are understood to be exclusive of hidden defects. 22. LAW AND ARBITRATION 22.1. The Agreement is governed and interpreted in accordance with French law. 22.2. The language of proceedings shall be French. 22.3. In the event of a dispute between the Customer and the Supplier on a technical matter, the parties agree to have recourse to the ICC International Centre for Expertise in Paris, in accordance with the ICC’s rules of Technical Expertise. 22.4. If, at any time, any question, dispute, or difference arises between the Customer and the Supplier, the parties shall attempt to reasonably settle the matter. If any dispute related to the Agreement (including any dispute as to its validity, meaning, effect, or termination) cannot be settled by the Customer and the Supplier within 6 (six) weeks of initial notification of the case, the Customer and the Supplier agree that it shall be finally settled by arbitration in accordance with the Rules of Arbitration of the ICC. | AJ50: 19. GARANTIE COMMERCIALE 19.1. Sauf si le Client est de même spécialité que le Fournisseur, la présente garantie commerciale ne fait pas obstacle à la garantie légale des vices cachés prévue par les articles 1641 et suivants du Code Civil. Pendant la période de garantie commerciale, le Fournisseur s’engage à réparer ou à remplacer à son choix aussi rapidement que possible et sur sommation écrite du Client, toutes les pièces que le Client prouvera être défectueuses ou inutilisables. Les pièces remplacées deviennent la propriété du Fournisseur. 19.2. Le Fournisseur ne supporte que les frais résultant de la réparation ou du remplacement des pièces défectueuses dans ses ateliers. Le Fournisseur ne peut en aucun cas être tenu de supporter des dépenses autres que celles imputables en vertu de cette clause de garantie. Si les pièces défectueuses ne peuvent pas être réparées ou remplacées dans ses ateliers pour des raisons qui ne lui sont pas imputables, tous les frais supplémentaires qui en résultent, en particulier les frais de déplacement, sont à la charge du Client. De même que les dépenses encourues par le Client ou par une tierce personne durant l’immobilisation de l’Equipement en raison de l’exécution des travaux conformément à la garantie. 19.3. Est exclue, dans le cadre de la présente garantie commerciale, toute autre prétention du Client fondée sur une livraison défectueuse, notamment des dommages-intérêts et la résiliation du Contrat. 19.4. La durée de la garantie commerciale est de 12 mois. Elle prend effet lorsque le matériel est prêt à être expédié ou à l’achèvement de la mise en service si le Fournisseur assure également celle-ci, conformément aux stipulations de l’article 11.2 ci-dessus Si l’expédition ou la mise en service sont retardées pour des raisons qui ne sont pas imputables au Fournisseur, la garantie commerciale prend fin au plus tard 18 mois à partir du moment où le matériel a été prêt à être expédié. 19.5. Les pièces remplacées bénéficient du même délai de garantie commerciale que l’objet principal. Cette garantie commerciale cesse cependant au plus tard 18 mois après le début de la garantie commerciale pour l’objet principal ou, si l’expédition ou la mise en service de l’objet principal ont été retardées pour des raisons qui ne sont pas imputables au Fournisseur, au plus tard 24 mois à partir du moment où l’objet principal a été prêt à être expédié. 19.6. Sont exclus de la garantie commerciale les cas suivants : - dommages dus à l’usure naturelle, à l’insuffisance d’entretien, à une fausse manipulation, à un usage excessif, à l’emploi de moyens d’exploitation des prescriptions d’usine, à l’emploi de moyens d’exploitation contre-indiqués, à des influences chimiques ou électrolytiques, à des surtensions ou à des coups de foudre, à des corrosions, érosions, cavitations ou des phénomènes semblables, à des travaux de génie civil et de montage défectueux qui n’ont pas été exécutés par le Fournisseur, ainsi qu’à d’autres causes qui ne lui sont pas imputables. - défauts imputables à la conception, au matériau, aux techniques de fabrication ou de montage imposés par le Client et pour lesquelles le Fournisseur a donné des commentaires écrits au Client. - non-respect des instructions du Fournisseur - entretien de l’équipement, spécifié dans le Contrat, par le Client ou par des tiers, dans des conditions non préalablement approuvées par écrit par le Fournisseur - entretien courant ou remplacement de pièces requis par l'usure normale de l'Equipement ou par l'exposition de l'Equipement aux intempéries - défauts ou dégradation causés par une erreur ou une négligence de l'utilisateur de l'Equipement, ou par un événement de Force Majeure ou des circonstances imprévisibles Les composants et les pièces de l'Equipement sont conformes aux normes, aux caractéristiques de conception et aux mesures de qualité qui correspondent à des exigences spécifiques et sont appropriés pour l'utilisation à laquelle l'Equipement est destiné. Par conséquent, l'obligation de garantie du Fournisseur expirera automatiquement si tout ou une partie des composants ou pièces de l'Equipement sont remplacés par des composants ou des pièces non fournis par le Fournisseur. 19.7. La garantie commerciale cesse si le Client (ou des tiers) effectue des modifications ou des réparations sur la livraison sans l’accord écrit du Fournisseur, ou si le Client ne prend pas immédiatement les mesures appropriées pour éviter que le dommage ne s’aggrave et pour permettre au Fournisseur de remédier au défaut. 19.8. Si le Client ne fait pas valoir par écrit, jusqu’à l’expiration du délai de garantie commerciale, des prétentions déterminées découlant de cette dernière, le Fournisseur est délié de ses obligations du chef de ladite garantie. 19.9. La garantie du Fournisseur en vertu de cette clause est en place et exclut toute autre garantie ou engagement de toute sorte. 19.10. Pour des livraisons provenant d’un autre constructeur, le Fournisseur n’assume la garantie commerciale que dans le cadre des obligations du sous-traitant. 20. SUSPENSION 20.1. Si l’exécution du Contrat est suspendue en raison d’un cas de Force Majeure ou du fait du Client, la période d’exécution du Contrat par le Fournisseur est donc prolongée. Tous les frais ultérieurs rencontrés par le Fournisseur seront remboursés par le Client. 20.2. Si l’exécution du Contrat est suspendue pour une raison quelconque et que cette suspension se poursuit pendant plus de 3 (trois) mois, le Fournisseur ou le Client aura le droit à tout moment pendant cette suspension ininterrompue de résilier le Contrat avec un préavis écrit de plus de 30 (trente) jours. 21. RESPONSABILITE 21.1. Le Fournisseur s’engage à exécuter la livraison de l’Equipement conformément au Contrat. 21.2. Une fois le Client ayant rempli son obligation de vérification conformément à l’article 17.4 des présentes CGV, le Fournisseur s’engage à remplir ses obligations relatives à la l’article 1641 et suivants du Code Civil et à la garantie commerciale. 21.3. En aucun cas la responsabilité du Fournisseur au titre du Contrat ne pourra excéder le montant HT des sommes perçues au titre du Contrat. 21.4. En aucun cas le Fournisseur ne peut être tenu responsable pour tous préjudices immatériels tels que pertes de profit, pertes de production, d’exploitation etc… subis par le Client. 21.5. Le Client renonce à tout recours contre le Fournisseur pour obtenir réparation des conséquences pécuniaires de tous préjudices causés à des tiers et indemnisera le Fournisseur de toutes réclamations de tiers, liés directement ou indirectement à l’exécution du Contrat. Les conditions évoquées ci-dessus s’entendent hors vice caché. 22. DROIT ET ARBITRAGE 22.1. Le Contrat est régi et interprété conformément au droit français. 22.2. La langue de procédure est le français. 22.3. En cas de différend entre le Client et le Fournisseur sur une question technique, le Client et le Fournisseur conviennent de recourir au Centre International d’Expertise Technique de la Chambre de Commerce Internationale à Paris, conformément aux règles d’Expertise Technique de la CCI. 22.4. Si à tout moment une question, un différend ou une différence survient entre le Client et le Fournisseur, ils tenteront de parvenir à un règlement raisonnable de la question. Si un différend survenant en relation avec le Contrat (y compris tout différend quant à sa validité, sa signification, son effet ou sa résiliation) ne devait pas être réglé par le Client et le Fournisseur dans les 6 (six) semaines suivant la notification initiale de l’affaire, le Client et le Fournisseur conviennent qu’il sera définitivement réglé par arbitrage conformément au Règlement de conciliation et d’arbitrage de la Chambre de Commerce Internationale à Paris.
AJ51: semaines sur la base d'une mise à disposition EXW HASLER à notre usine
AH52: GENERAL | AI52: The intervention time is an estimate, and will be invoiced according to the time spent on site. The warranty period is only valid if Hasler supervises installation and commissioning. The tools required for assembly are not supplied by Hasler, but a list can be provided. The notice period for starting work is 1 month. If the intervention takes place more than 2 years after the order, the price will be updated according to the current year's price sheet. | AJ52: Le temps d'intervention est une estimation, le temps sera facturé en fonction du temps passé sur site. La période de garantie n’est valable que sous réserve d’une supervision de montage et de mise en route assurée par Hasler. Les outillages nécessaires au montage ne sont pas fournis par Hasler, une liste pourra être transmis. Le delai de prevenance pour une intervention est de 1 mois. Si l'intervention se déroule plus de 2 ans après la commande, le prix sera réactualisé selon la feuille de prix de l'année en cours.
AH53: DOSING | AI53: The intervention time is an estimate, and will be invoiced according to the time spent on site. The warranty period is only valid if Hasler supervises installation and commissioning. The tools required for assembly are not supplied by Hasler, but a list can be provided. The notice period for starting work is 1 month. If the intervention takes place more than 2 years after the order, the price will be updated according to the current year's price sheet. The supply of electrical connection cables and cable trays between the electrical cabinets and the mechanical systems (a list of the types of cables to be installed will be supplied on completion of the detailed study) is the responsibility of the customer. Mechanical installation of the machine is the responsibility of the customer. Electrical wiring is the customer's responsibility The equipment may only be switched on in the presence of a HASLER technician. | AJ53: Le temps d'intervention est une estimation, le temps sera facturé en fonction du temps passé sur site. La période de garantie n’est valable que sous réserve d’une supervision de montage et de mise en route assurée par Hasler. Les outillages nécessaires au montage ne sont pas fournis par Hasler, une liste pourra être transmis. Le delais de prevenance pour une intervention est de 1 mois. Si l'intervention se déroule plus de 2 ans après la commande, le prix sera réactualisé selon la feuille de prix de l'année en cours. La fourniture des câbles électrique de raccordement et chemins de câble entre les armoires/coffrets électriques et les systèmes mécaniques (une liste des types de câbles à installer sera fournie à l’issue de l’étude de détail) est la charge du client L'installation mécanique de la machine est à la charge du client Le cablage électrique est à la charge du client La mise sous tension de l'équipement ne devra être faite qu'en présence du technicien HASLER
AH54: MIXING | AI54: The intervention time is an estimate, and will be invoiced according to the time spent on site. The warranty period is only valid if Hasler supervises installation and commissioning. The tools required for assembly are not supplied by Hasler, but a list can be provided. The notice period for starting work is 1 month. If the intervention takes place more than 2 years after the order, the price will be updated according to the current year's price sheet. Electrical wiring is the responsibility of the customer. An electrician must be present during the commissioning. A torque wrench must be supplied by the customer during commissioning, a specification can be provide The equipment required for vibration analysis will be supplied by HASLER. | AJ54: Le temps d'intervention est une estimation, le temps sera facturé en fonction du temps passé sur site. La période de garantie n’est valable que sous réserve d’une supervision de montage et de mise en route assurée par Hasler. Les outillages nécessaires au montage ne sont pas fournis par Hasler, une liste pourra être transmis. Le delais de prevenance pour une intervention est de 1 mois. Si l'intervention se déroule plus de 2 ans après la commande, le prix sera réactualisé selon la feuille de prix de l'année en cours. Le cablage électrique est à la charge du client. Un electricien devra être présent lors de la mise en route. Une clé dynamométrique devra être fourni par le client lors de la mise en route. Le matériel néccessaire pour l'analyse vibratoire sera fourni par HASLER
AH55: KNEADING | AI55: The intervention time is an estimate, and will be invoiced according to the time spent on site. The warranty period is only valid if Hasler supervises installation and commissioning. The tools required for assembly are not supplied by Hasler, but a list can be provided. The notice period for starting work is 1 month. If the intervention takes place more than 2 years after the order, the price will be updated according to the current year's price sheet. An electrician, as well as an automation engineer, must be present during the installation of the UCP. If performance tests are to be carried out, but for production reasons upstream of the UCP it is impossible to perform the tests, then the performance will be validated de facto. | AJ55: Le temps d'intervention est une estimation, le temps sera facturé en fonction du temps passé sur site. La période de garantie n’est valable que sous réserve d’une supervision de montage et de mise en route assurée par Hasler. Les outillages nécessaires au montage ne sont pas fournis par Hasler, une liste pourra être transmis. Le delais de prevenance pour une intervention est de 1 mois. Si l'intervention se déroule plus de 2 ans après la commande, le prix sera réactualisé selon la feuille de prix de l'année en cours. Un electricien, ainsi qu'un automaticien devront être présent lors de l'installation de l'UCP Si des tests de performances sont à réaliser, mais que pour des raisons de production en amont de l'UCP il est impossible de procéder aux tests, les performances seront alors validées de fait.
AH56: FILTRATION | AI56: The intervention time is an estimate, and will be invoiced according to the time spent on site. The warranty period is only valid if Hasler supervises installation and commissioning. The tools required for assembly are not supplied by Hasler, but a list can be provided. The notice period for starting work is 1 month. If the intervention takes place more than 2 years after the order, the price will be updated according to the current year's price sheet. Resources (materials and tools) required will be specified by Hasler but will not be supplied. Labor resources will be specified by Hasler and may be supplied. If performance tests are to be carried out, but for reasons of production upstream of the filter it is impossible to carry out the tests, the performance will then be validated de facto. | AJ56: Le temps d'intervention est une estimation, le temps sera facturé en fonction du temps passé sur site. La période de garantie n’est valable que sous réserve d’une supervision de montage et de mise en route assurée par Hasler. Les outillages nécessaires au montage ne sont pas fournis par Hasler, une liste pourra être transmis. Le delais de prevenance pour une intervention est de 1 mois. Si l'intervention se déroule plus de 2 ans après la commande, le prix sera réactualisé selon la feuille de prix de l'année en cours. Les ressources (Matériel et outillage) nécessaires seront spécifiées par Hasler mais ne seront pas fournies. Les ressources (Main d'œuvre) nécessaires seront spécifiées par Hasler et pourront être fournies. Si des tests de performances sont à réaliser, mais que pour des raisons de production en amont du filtre il est impossible de procéder aux tests, les performances seront alors validées de fait.
AI57: =_xlfn.CONCAT("Total cost for ",SUM('Service Calculation'!C7+'Service Calculation'!C8+'Service Calculation'!C9)," working days ",CHAR(10),IF('Service Calculation'!C11+'Service Calculation'!C12=0," ",CONCATENATE('Service Calculation'!C11+'Service Calculation'!C12, " days off ",CHAR(10))),'Service Calculation'!A32:C32) -> Total cost for 6 working days 1 days off Incluant les frais de déplacement, de transport local et d'hébergement. | AJ57: =_xlfn.CONCAT("Coût total pour ",SUM('Service Calculation'!C7+'Service Calculation'!C8+'Service Calculation'!C9)," jours de travail ",CHAR(10),IF('Service Calculation'!C11+'Service Calculation'!C12=0," ",CONCATENATE('Service Calculation'!C11+'Service Calculation'!C12, " jours de repos ",CHAR(10))),'Service Calculation'!A32:C32) -> Coût total pour 6 jours de travail 1 jours de repos Incluant les frais de déplacement, de transport local et d'hébergement.
AI58: Estimation cost of flight ticket Will be invoiced at real cost +15% | AJ58: Coût estimatif du billet d'avion Sera facturé au coût réel +15%
AI59: Cost for additional day | AJ59: Coût pour un jour additionnel
AI61: Including travel, local transport and accommodation costs | AJ61: Incluant les frais de déplacement, de transport local et d'hébergement.
AI62: Including flight ticket | AJ62: Incluant le billet d'avion
AI63: Travel, local transport and accommodation costs at customer's expense | AJ63: Frais de déplacement, de transport local et d'hébergement à la charge du client.
AI67: HASLER FRANCE A HASLER GROUP company Dear Customer, The name of the company that you knew as HASLER Group SAS has changed to HASLER France SAS. This is only a change of name. Our legal registration number remains 514 743 038 - RCS Vienne France. Please make sure that all of your documents well refer to HASLER FRANCE. Address: 496 Rue Louis Breguet City: 38780 Pont-Évêque Country: France | AJ67: HASLER FRANCE Une société de HASLER GROUP Cher client, La société que vous connaissiez sous le nom de HASLER Group SAS change et devient désormais HASLER France SAS. Ceci est uniquement un changement de nom. Notre numéro d'enregistrement reste 514 743 038 - RCS Vienne France. Merci de vérifier que l'ensemble de vos documents font désormais référence à HASLER FRANCE. Adresse : 496 Rue Louis Breguet Ville : 38780 Pont-Évêque Pays : France
AH68: PAYMENT TERM | AL68: choix selon langue choisie
AI69: Advance payment at order upon receipt of invoice | AJ69: A la commande contre facture d’acompte | AL69: =IF(Configuration!$B$2="Français",AJ69,AI69) -> Advance payment at order upon receipt of invoice
AI70: Advance payment at order upon receipt of invoice and advance payment guarantee of the same amount | AJ70: A la commande contre facture d’acompte et garantie de remboursement d’acompte du même montant | AL70: =IF(Configuration!$B$2="Français",AJ70,AI70) -> Advance payment at order upon receipt of invoice and advance payment guarantee of the same amount
AI71: At approval of General Arrangement Drawings upon receipt of invoice | AJ71: A la validation des plans d’ensemble | AL71: =IF(Configuration!$B$2="Français",AJ71,AI71) -> At approval of General Arrangement Drawings upon receipt of invoice
AI72: At order of main components upon receipt of invoice and evidencing unpriced Purchase Orders | AJ72: A l’approvisionnement des composants principaux sous présentation de justificatifs | AL72: =IF(Configuration!$B$2="Français",AJ72,AI72) -> At order of main components upon receipt of invoice and evidencing unpriced Purchase Orders
AI73: At readiness for shipment upon receipt of invoice and evidencing goods ready (coupled with immediate payment) | AJ73: A la mise à disposition du matériel (liste de colisage à fournir) | AL73: =IF(Configuration!$B$2="Français",AJ73,AI73) -> At readiness for shipment upon receipt of invoice and evidencing goods ready (coupled with immediate payment)
AI74: At shipment upon receipt of invoice and shipping documents | AJ74: A l’expédition | AL74: =IF(Configuration!$B$2="Français",AJ74,AI74) -> At shipment upon receipt of invoice and shipping documents
AI75: At shipment, upon receipt of invoice, shipping documents and Performance bond of 5% of Equipment value | AJ75: A l’expédition contre liste de colisage et garantie de bonne execution de 5% du montant total du contrat | AL75: =IF(Configuration!$B$2="Français",AJ75,AI75) -> At shipment, upon receipt of invoice, shipping documents and Performance bond of 5% of Equipment value
AI76: At shipment, upon receipt of invoice, shipping documents and Performance bond of 10% of Equipment value | AJ76: A l’expédition contre liste de colisage et garantie de bonne execution de 10% du montant total du contrat | AL76: =IF(Configuration!$B$2="Français",AJ76,AI76) -> At shipment, upon receipt of invoice, shipping documents and Performance bond of 10% of Equipment value
AI77: At commissioning supervised by HASLER, upon receipt of invoice to be issued at latest 12 months after delivery date | AJ77: A la mise en service au plus tard 12 mois après la date de livraison | AL77: =IF(Configuration!$B$2="Français",AJ77,AI77) -> At commissioning supervised by HASLER, upon receipt of invoice to be issued at latest 12 months after delivery date
AI78: At commissioning supervised by HASLER, upon receipt of invoice to be issued at latest 12 months after delivery date and Warranty bond of 5% of Equipment value | AJ78: A la mise en service au plus tard 12 mois après la date de livraison et fourniture d’une garantie pour défauts d’un montant de 5% du montant total du contrat | AL78: =IF(Configuration!$B$2="Français",AJ78,AI78) -> At commissioning supervised by HASLER, upon receipt of invoice to be issued at latest 12 months after delivery date and Warranty bond of 5% of Equipment value
AI79: At commissioning supervised by HASLER, upon receipt of invoice to be issued at latest 12 months after delivery date and Warranty bond of 10% of Equipment value value | AJ79: A la mise en service au plus tard 12 mois après la date de livraison et fourniture d’une garantie pour défauts d’un montant de 10% du montant total du contrat | AL79: =IF(Configuration!$B$2="Français",AJ79,AI79) -> At commissioning supervised by HASLER, upon receipt of invoice to be issued at latest 12 months after delivery date and Warranty bond of 10% of Equipment value value
AI80: At Factory Acceptance Test upon receipt of invoice | AJ80: A la réception sur le site du fournisseur | AL80: =IF(Configuration!$B$2="Français",AJ80,AI80) -> At Factory Acceptance Test upon receipt of invoice
AI81: At Site Acceptance Test upon receipt of invoice | AJ81: Après tests sur le site du client | AL81: =IF(Configuration!$B$2="Français",AJ81,AI81) -> At Site Acceptance Test upon receipt of invoice
AI82: At cold commissioning upon receipt of invoice | AJ82: A la mise en service à vide | AL82: =IF(Configuration!$B$2="Français",AJ82,AI82) -> At cold commissioning upon receipt of invoice
AI83: At hot commissioning upon receipt of invoice | AJ83: A la mise en service avec matière | AL83: =IF(Configuration!$B$2="Français",AJ83,AI83) -> At hot commissioning upon receipt of invoice
AI84: At on-site erection upon receipt of invoice | AJ84: Au montage | AL84: =IF(Configuration!$B$2="Français",AJ84,AI84) -> At on-site erection upon receipt of invoice
AI85: At commissioning supervised by HASLER, upon receipt of invoice (for services payable 100% once job done) | AJ85: A la fin de la prestation de mise en service | AL85: =IF(Configuration!$B$2="Français",AJ85,AI85) -> At commissioning supervised by HASLER, upon receipt of invoice (for services payable 100% once job done)
AH87: PAYMENT MODE
AI88: By bank transfer | AJ88: par Virement bancaire | AL88: =IF(Configuration!$B$2="Français",AJ88,AI88) -> By bank transfer
AI89: By irrevocable and confirmed letter of credit, remitted 30 days max after Purchase Order | AJ89: par lettre de crédit irrévocable et confirmée, transmise au fournisseur au maximum 30 jours après la date de création de la commande, payable à vue | AL89: =IF(Configuration!$B$2="Français",AJ89,AI89) -> By irrevocable and confirmed letter of credit, remitted 30 days max after Purchase Order
AI90: Cash Against Documents (CAD) through bank | AJ90: par remise documentaire, payable à vue | AL90: =IF(Configuration!$B$2="Français",AJ90,AI90) -> Cash Against Documents (CAD) through bank
AH92: PAYMENT CREDIT TIME
AI93: Immediate | AJ93: jour de facture | AL93: =IF(Configuration!$B$2="Français",AJ93,AI93) -> Immediate
AI94: within 15 days net | AJ94: à 15 jours net | AL94: =IF(Configuration!$B$2="Français",AJ94,AI94) -> within 15 days net
AI95: within 30 days net | AJ95: à 30 jours net | AL95: =IF(Configuration!$B$2="Français",AJ95,AI95) -> within 30 days net
AI96: within 45 days net | AJ96: à 45 jours net | AL96: =IF(Configuration!$B$2="Français",AJ96,AI96) -> within 45 days net
AI97: payable at sight against shipping documents (for LC only) | AJ97: payable à vue contre remise documentaire | AL97: =IF(Configuration!$B$2="Français",AJ97,AI97) -> payable at sight against shipping documents (for LC only)
AI100: The name of the company you knew as HASLER Group SAS changed to HASLER France SAS. This is only a change of name. Our legal registration number remains 514 743 038 - RCS Vienne France. Mind that all your documents refer to HASLER FRANCE. | AJ100: La société que vous connaissiez sous le nom de HASLER Group SAS change et devient désormais HASLER France SAS. Ceci est uniquement un changement de nom. Notre numéro d'enregistrement reste 514 743 038 - RCS Vienne France. Merci de vérifier que l'ensemble de vos documents font désormais référence à HASLER FRANCE.
AI101: Horizontal Vacuum Belt Filter Philippe | AJ101: Filtre à bande sous vide Philippe
AI102: Rotary Drum Filter Vernay | AJ102: Filtre à Tambour Rotatif Vernay
AI103: Aoustin Table Filter | AJ103: Filtre à Table Aoustin
AI104: Vertical mixer with sealing | AJ104: Agitateur vertical avec étanchéité
AI105: Vertical mixer without sealing | AJ105: Agitateur vertical sans étanchéité
AI106: Rake | AJ106: Racleur
AI107: Digester | AJ107: Digesteur
AI108: Horizontal mixer | AJ108: Agitateur horizontal
AI109: Weigh Belt Feeder Gravit | AJ109: Doseur à bande Gravit
AI110: Weigh Belt Feeder Gigravit | AJ110: Doseur à Bande Gigravit
AI111: Apron Feeder Mammuthus | AJ111: Doseur à Tablier Métallique Mammuthus
AI112: Loss in Weigh Feeder RBP | AJ112: Doseur Perte de Poids RBP
AI113: Rotary Feeder Twin Rotaweigh | AJ113: Doseur Rotatif Twin Rotaweigh
AI114: Rotary Feeder Rotaweigh | AJ114: Doseur Rotatif Rotaweigh
AI115: Belt Scale SBS | AJ115: Bascule intégratrice SBS

Sheet Main cover UK
T1: FILTRATION
T3: FAB | AC3: ATF | AL3: FR
B4: =VLOOKUP('Simplified P&L'!G2,Configuration!AH3:AJ6,2) -> Filtration system
A5: Horizontal Vacuum Belt Filter Philippe
B7: ="Sales Offer N°" -> Sales Offer N° | E7: ='Simplified P&L'!B2 & " - rev" & 'Simplified P&L'!B3 -> 725116 - rev7
B9: Project | E9: RS0540 - Amendment for equipment
B11: Customer | E11: ='Simplified P&L'!B6 & ", " & 'Simplified P&L'!B10 -> St Gobain, Spain
B13: Date | E13: =TODAY() -> 2025-09-08
J24: at the order | W24: already paid
J25: engineering reception | W25: already paid
A38: Modification history
A40: REV | B40: Date | C40: Written by | E40: Checked by | F40: Approved by | G40: Comments
A41: 6 | B41: 2024-12-20 | C41: ANGO | E41: BJOL | F41: CPIS | G41: Order of filter
A42: 7 | B42: 2025-09-05 | C42: ANGO | E42: BJOL | F42: CPIS | G42: Equipment amendment
A44: Contacts
B46: =cover_L!C61 -> Ahou N'gotta | E46: =IF('Simplified P&L'!J4="","",VLOOKUP('Simplified P&L'!J4,Configuration!S17:V18,3,FALSE)) ->  | G46: =cover_L!AG61 -> Cosimo Piscopiello
B47: =cover_L!C62 -> Tender engineer | E47: =IF('Simplified P&L'!J4="","",VLOOKUP('Simplified P&L'!J4,Configuration!S17:V18,2,FALSE)) ->  | G47: =cover_L!AG62 -> Area Sales Manager
B48: =VLOOKUP('Simplified P&L'!J3,Configuration!S3:W13,5,FALSE) -> +33 4 74 16 11 27 | E48: =IF('Simplified P&L'!J4="","",VLOOKUP('Simplified P&L'!J4,Configuration!S17:W18,5,FALSE)) ->  | G48: =VLOOKUP('Simplified P&L'!J2,Configuration!X3:AB19,5,FALSE) -> +41 79 129 42 69
B49: =STS!R71 -> ac.n'gotta@hasler.group | E49: =IF('Simplified P&L'!J4="","",VLOOKUP('Simplified P&L'!J4,Configuration!S17:W18,4,FALSE)) ->  | G49: =STS!R70 -> c.piscopiello@hasler.group
B51: HASLER France - 496 Rue Louis Breguet - 38780 Pont-Évêque - France
B52: +33 4 74 16 11 50
B53: www.hasler-gp.com
J55: =IF(Configuration!B6="","",IF(Configuration!B2="Français",Configuration!AJ8,Configuration!AI8)&" : "&Configuration!B6) -> 

Sheet Main cover FR (hidden)
T1: FILTRATION
T3: FAB | AC3: ATF | AL3: FR
A4: =VLOOKUP('Simplified P&L'!G2,Configuration!AH3:AJ6,3) -> Solution de filtration
B7: Offre Commerciale N° | E7: ='Simplified P&L'!B2 -> 725116
B9: Projet
B11: Client | E11: ='Simplified P&L'!B6 & ", " & 'Simplified P&L'!B10 -> St Gobain, Spain
B13: Date | E13: =TODAY() -> 2025-09-08
B15: Destinataire
A37: Historique des modifications
A39: REV | B39: Date | C39: Réalisé par | E39: Vérifié par | F39: Approuvé par | G39: Commentaires
A40: 0
A41: 1
A42: 2
A43: 3
A45: Contacts
B47: =cover_L!C61 -> Ahou N'gotta | E47: =IF('Simplified P&L'!J4="","",VLOOKUP('Simplified P&L'!J4,Configuration!S17:V18,3,FALSE)) ->  | G47: =cover_L!AG61 -> Cosimo Piscopiello
B48: =cover_L!C62 -> Tender engineer | E48: =IF('Simplified P&L'!J4="","",VLOOKUP('Simplified P&L'!J4,Configuration!S17:V18,2,FALSE)) ->  | G48: =cover_L!AG62 -> Area Sales Manager
B49: =VLOOKUP('Simplified P&L'!J3,Configuration!S3:W13,5,FALSE) -> +33 4 74 16 11 27 | E49: =IF('Simplified P&L'!J4="","",VLOOKUP('Simplified P&L'!J4,Configuration!S17:W18,5,FALSE)) ->  | G49: =VLOOKUP('Simplified P&L'!J2,Configuration!X3:AB19,5,FALSE) -> +41 79 129 42 69
B50: =STS!R71 -> ac.n'gotta@hasler.group | E50: =IF('Simplified P&L'!J4="","",VLOOKUP('Simplified P&L'!J4,Configuration!S17:W18,4,FALSE)) ->  | G50: =STS!R70 -> c.piscopiello@hasler.group
B52: HASLER France - 496 Rue Louis Breguet - 38780 Pont-Évêque - France
B53: +33 4 74 16 11 50
B54: www.hasler-gp.com
J56: =IF(Configuration!B6="","",IF(Configuration!B2="Français",Configuration!AJ8,Configuration!AI8)&" : "&Configuration!B6) -> 

Sheet cover_L
D2: TABLE OF CONTENTS
E6: =IF(Configuration!B2="Français",Configuration!AJ11,Configuration!AI11) -> Cover Letter
E7: =IF(Configuration!B2="Français",Configuration!AJ12,Configuration!AI12) -> Price List
E8: =IF(Configuration!B2="Français",Configuration!AJ13,Configuration!AI13) -> Special Terms of Sales
F9: =IF(Configuration!B2="Français",Configuration!AJ14,Configuration!AI14) -> Delivery Time
F10: INCOTERM
F11: =IF(Configuration!B2="Français",Configuration!AJ15,Configuration!AI15) -> Terms of Payment
F12: =IF(Configuration!B2="Français",Configuration!AJ16,Configuration!AI16) -> Warranty
F13: =IF(Configuration!B2="Français",Configuration!AJ17,Configuration!AI17) -> Validity
E14: =IF(Configuration!B2="Français",Configuration!AJ18,Configuration!AI18) -> Contacts
C15: =IF(W14="","",IF(Configuration!B2="Français",Configuration!AJ22,Configuration!AI22)) ->  | F15: =IF(Configuration!B2="Français",Configuration!AJ19,Configuration!AI19) -> Customer Contact List
F16: =IF(Configuration!B2="Français",Configuration!AJ20,Configuration!AI20) -> HASLER France Contact List
E17: =IF(Configuration!B2="Français",Configuration!AJ21,Configuration!AI21) -> General Terms & Conditions of Sale
C18: =_xlfn.SINGLE(IF(Configuration!B4="Yes",IF(Configuration!B2="Français",Configuration!AJ24,Configuration!AI24),"")) -> 
C25: =CONCATENATE(IF(Configuration!B2="Français",Configuration!AJ23,Configuration!AI23),'Simplified P&L'!B2,"-",'Simplified P&L'!B4,"_TECH") -> This commercial offer is linked to our technical offer ref n° 725116-7_TECH
C30: =E6 -> Cover Letter
C32: =CONCATENATE(IF(Configuration!B2="Français",Configuration!AJ25,Configuration!AI25),'Simplified P&L'!B2,"-",'Simplified P&L'!B3) -> Our Reference: 725116-7
C61: =VLOOKUP('Simplified P&L'!J3,Configuration!S3:V13,3,FALSE) -> Ahou N'gotta | AG61: =VLOOKUP('Simplified P&L'!J2,Configuration!X3:AA19,3,FALSE) -> Cosimo Piscopiello
C62: =VLOOKUP('Simplified P&L'!J3,Configuration!S3:V13,2,FALSE) -> Tender engineer | AG62: =VLOOKUP('Simplified P&L'!J2,Configuration!X3:AA19,2,FALSE) -> Area Sales Manager

Sheet PRICE_LIST
B3: =CONCATENATE(IF(Configuration!B2="Français",Configuration!AJ12,Configuration!AI12)," - ",IF(Configuration!B2="Français",Configuration!AJ26,Configuration!AI26)," n° ",'Simplified P&L'!B2,"-",'Simplified P&L'!B3) -> Price List - Offer n° 725116-7
B5: =IF(Configuration!B2="Français","Offre de prix Equipement","Equipment Price List") -> Equipment Price List | N5: OPTIONS
B6: Item | C6: Reference | D6: =IF(Configuration!B2="Français","Qté","Qty") -> Qty | F6: =IF(Configuration!B2="Français","Prix de vente unitaire (€ HT)","Unit Sale Price (€ ex VAT)") -> Unit Sale Price (€ ex VAT) | J6: =IF(Configuration!B2="Français","Prix de vente total (€ HT)","Total Sale Price (€ ex VAT)") -> Total Sale Price (€ ex VAT) | N6: =J6 -> Total Sale Price (€ ex VAT)
B7: Engineering study | D7: 1 | F7: =ROUND(IF(B7=0,0,IF('Simplified P&L'!$B$3=0,'Budget Price 1st quotation'!K3+('Budget Price 1st quotation'!L3/'Budget Price 1st quotation'!G3),'Budget Price Final order'!K3+('Budget Price Final order'!L3/'Budget Price Final order'!G3))),0) -> 196540 | J7: =F7*D7 -> 196540
B8: Horizontal Vacuum Belt Filter 6B10 (6m²) | D8: 1 | F8: =ROUND(IF(B8=0,0,IF('Simplified P&L'!$B$3=0,'Budget Price 1st quotation'!K4+('Budget Price 1st quotation'!L4/'Budget Price 1st quotation'!G4),'Budget Price Final order'!K4+('Budget Price Final order'!L4/'Budget Price Final order'!G4))),0) -> 196540 | J8: 196540
B9: -Connections inside Hasler filter will be as per EN1092-1-PN standard -Connections/Interfaces between Saint Gobain and Hasler scope will be as per ANSI standard | D9: 1 | F9: =ROUND(IF(B9=0,0,IF('Simplified P&L'!$B$3=0,'Budget Price 1st quotation'!K5+('Budget Price 1st quotation'!L5/'Budget Price 1st quotation'!G5),'Budget Price Final order'!K5+('Budget Price Final order'!L5/'Budget Price Final order'!G5))),0) -> 4200 | J9: 4200
B10: Fume hood modification with using of fixed paned and move of connection | D10: 1 | F10: =ROUND(IF(B10=0,0,IF('Simplified P&L'!$B$3=0,'Budget Price 1st quotation'!K6+('Budget Price 1st quotation'!L6/'Budget Price 1st quotation'!G6),'Budget Price Final order'!K6+('Budget Price Final order'!L6/'Budget Price Final order'!G6))),0) -> 5700 | J10: 5700
B11: Stelle a moisture sensor; position must be defined by Saint Gobain. | D11: 1 | F11: =ROUND(IF(B11=0,0,IF('Simplified P&L'!$B$3=0,'Budget Price 1st quotation'!K7+('Budget Price 1st quotation'!L7/'Budget Price 1st quotation'!G7),'Budget Price Final order'!K7+('Budget Price Final order'!L7/'Budget Price Final order'!G7))),0) -> 4750 | J11: 4750
B12: Clipped cloth instead of a welted one | D12: 1 | F12: =ROUND(IF(B12=0,0,IF('Simplified P&L'!$B$3=0,'Budget Price 1st quotation'!K8+('Budget Price 1st quotation'!L8/'Budget Price 1st quotation'!G8),'Budget Price Final order'!K8+('Budget Price Final order'!L8/'Budget Price Final order'!G8))),0) -> 1900 | J12: 1900
B13: Flowmeter for both cloth washing ramp & pressure measurement for the high-pressure ramp | D13: 1 | F13: =ROUND(IF(B13=0,0,IF('Simplified P&L'!$B$3=0,'Budget Price 1st quotation'!K9+('Budget Price 1st quotation'!L9/'Budget Price 1st quotation'!G9),'Budget Price Final order'!K9+('Budget Price Final order'!L9/'Budget Price Final order'!G9))),0) -> 5700 | J13: 5700
B14: Radar sensor on the separator tank | D14: 1 | F14: =ROUND(IF(B14=0,0,IF('Simplified P&L'!$B$3=0,'Budget Price 1st quotation'!K10+('Budget Price 1st quotation'!L10/'Budget Price 1st quotation'!G10),'Budget Price Final order'!K10+('Budget Price Final order'!L10/'Budget Price Final order'!G10))),0) -> 2850 | J14: 2850
B15: High sulfate concentration seals | D15: 1 | F15: 1850 | J15: =F15*D15 -> 1850
B16: Deducted of the not delivered cloth ultrasonic welding machine | D16: 1 | F16: =ROUND(IF(B16=0,0,IF('Simplified P&L'!$B$3=0,'Budget Price 1st quotation'!K11+('Budget Price 1st quotation'!L11/'Budget Price 1st quotation'!G11),'Budget Price Final order'!K11+('Budget Price Final order'!L11/'Budget Price Final order'!G11))),0) -> -14400 | J16: -14400
B17: Factory Acceptance test | D17: 1 | F17: =ROUND(IF(B17=0,0,IF('Simplified P&L'!$B$3=0,'Budget Price 1st quotation'!K12+('Budget Price 1st quotation'!L12/'Budget Price 1st quotation'!G12),'Budget Price Final order'!K12+('Budget Price Final order'!L12/'Budget Price Final order'!G12))),0) -> 48000 | J17: 48000
B18: Deducted of FAT covered by vendor | D18: 1 | F18: =ROUND(IF(B18=0,0,IF('Simplified P&L'!$B$3=0,'Budget Price 1st quotation'!K13+('Budget Price 1st quotation'!L13/'Budget Price 1st quotation'!G13),'Budget Price Final order'!K13+('Budget Price Final order'!L13/'Budget Price Final order'!G13))),0) -> -24000 | J18: -24000
D21: =IF(Configuration!B2="Français","GRAND TOTAL EQUIPEMENT, € (hors taxes)","GRAND TOTAL EQUIPMENT, € (excluding VAT)") -> GRAND TOTAL EQUIPMENT, € (excluding VAT) | J21: =SUM(J7:M19) -> 429630
B23: =IF(Configuration!B2="Français","Frais d'Emballage & Livraison","Packing & Delivery Costs") -> Packing & Delivery Costs | N23: =J6 -> Total Sale Price (€ ex VAT)
B24: =IF(Configuration!B2="Français","Emballage","Packing") -> Packing | D24: =IF('Simplified P&L'!$B$3=0,'Budget Price 1st quotation'!E27,'Budget Price Final order'!E27) -> 0 | N24: =IF('Simplified P&L'!$B$3=0,IF('Budget Price 1st quotation'!N27=0,IF(Configuration!B2="Français","Non inclus","Not included"),'Budget Price 1st quotation'!M27),IF('Budget Price Final order'!N27=0,IF(Configuration!B2="Français","Non inclus","Not included"),'Budget Price Final order'!M27)) -> Not included | W24: already paid
B25: =IF(Configuration!B3="Français","Emballage","Packing") -> Packing | D25: =IF('Simplified P&L'!$B$3=0,'Budget Price 1st quotation'!E28,'Budget Price Final order'!E28) -> DAP - Gelsa - Spain | N25: =IF('Simplified P&L'!$B$3=0,IF('Budget Price 1st quotation'!N28=0,IF(Configuration!B3="Français","Non inclus","Not included"),'Budget Price 1st quotation'!M28),IF('Budget Price Final order'!N28=0,IF(Configuration!B3="Français","Non inclus","Not included"),'Budget Price Final order'!M28)) -> Not included | W25: already paid
B26: =IF(Configuration!B3="Français","Emballage","Packing") -> Packing | D26: =IF('Simplified P&L'!$B$3=0,'Budget Price 1st quotation'!E28,'Budget Price Final order'!E28) -> DAP - Gelsa - Spain | N26: =IF('Simplified P&L'!$B$3=0,IF('Budget Price 1st quotation'!N28=0,IF(Configuration!B3="Français","Non inclus","Not included"),'Budget Price 1st quotation'!M28),IF('Budget Price Final order'!N28=0,IF(Configuration!B3="Français","Non inclus","Not included"),'Budget Price Final order'!M28)) -> Not included
B27: =IF(Configuration!B2="Français","Transport","Freight") -> Freight | D27: =IF('Simplified P&L'!$B$3=0,'Budget Price 1st quotation'!E28,'Budget Price Final order'!E28) -> DAP - Gelsa - Spain | N27: =IF('Simplified P&L'!$B$3=0,IF('Budget Price 1st quotation'!N28=0,IF(Configuration!B2="Français","Non inclus","Not included"),'Budget Price 1st quotation'!M28),IF('Budget Price Final order'!N28=0,IF(Configuration!B2="Français","Non inclus","Not included"),'Budget Price Final order'!M28)) -> Not included
B29: =IF(Configuration!B2="Français","Cadre de l'intervention","Scope of intervention") -> Scope of intervention
B32: =IF(Configuration!B2="Français","Offre de prix service","Service offer") -> Service offer
B33: Item | J33: =D6 -> Qty | N33: =J6 -> Total Sale Price (€ ex VAT)
B34: =IF('Simplified P&L'!$B$3=0,'Budget Price 1st quotation'!E30,'Budget Price Final order'!E30) ->  | J34: =IF('Simplified P&L'!$B$3=0,'Budget Price 1st quotation'!G30,'Budget Price Final order'!G30) -> 0 | N34: =IF('Simplified P&L'!$B$3=0,'Budget Price 1st quotation'!N30,'Budget Price Final order'!N30) -> 
B36: =IF(Configuration!B2="Français","Pour information","For information") -> For information
B37: =IF('Simplified P&L'!$B$3=0,'Budget Price 1st quotation'!E31,'Budget Price Final order'!E31) ->  | J37: =IF('Simplified P&L'!$B$3=0,'Budget Price 1st quotation'!G31,'Budget Price Final order'!G31) -> 0 | N37: =IF('Simplified P&L'!$B$3=0,'Budget Price 1st quotation'!N31,'Budget Price Final order'!N31) -> 
B38: =IF('Simplified P&L'!$B$3=0,'Budget Price 1st quotation'!E32,'Budget Price Final order'!E32) ->  | J38: =IF('Simplified P&L'!$B$3=0,'Budget Price 1st quotation'!G32,'Budget Price Final order'!G32) -> 0 | N38: =IF('Simplified P&L'!$B$3=0,'Budget Price 1st quotation'!N32,'Budget Price Final order'!N32) -> 
B39: =IF(Configuration!B2="English",_xlfn.IFS('Simplified P&L'!G2=Configuration!P5,Configuration!AI53,'Simplified P&L'!G2=Configuration!P6,Configuration!AI56,'Simplified P&L'!G2=Configuration!P7,Configuration!AI54,'Simplified P&L'!G2=Configuration!P8,Configuration!AI55,'Simplified P&L'!G2="",Configuration!AI52),_xlfn.IFS('Simplified P&L'!G2=Configuration!P5,Configuration!AJ53,'Simplified P&L'!G2=Configuration!P6,Configuration!AJ56,'Simplified P&L'!G2=Configuration!P7,Configuration!AJ54,'Simplified P&L'!G2=Configuration!P8,Configuration!AJ55,'Simplified P&L'!G2="",Configuration!AJ52)) -> The intervention time is an estimate, and will be invoiced according to the time spent on site. The warranty period is only valid if Hasler supervises installation and commissioning. The tools required for assembly are not supplied by Hasler, but a list can be provided. The notice period for starting work is 1 month. If the intervention takes place more than 2 years after the order, the price will be updated according to the current year's price sheet. Resources (materials and tools) required will be specified by Hasler but will not be supplied. Labor resources will be specified by Hasler and may be supplied. If performance tests are to be carried out, but for reasons of production upstream of the filter it is impossible to carry out the tests, the performance will then be validated de facto.
C67: Services price list

Sheet Feuil1 (hidden)

Sheet STS
B3: =IF(Configuration!B2="Français",CONCATENATE(Configuration!AJ13," - ",Configuration!AJ26," n° ",'Simplified P&L'!B2),CONCATENATE(Configuration!AI13," - ",Configuration!AI26," N° ",'Simplified P&L'!B2,"-",'Simplified P&L'!B3)) -> Special Terms of Sales - Offer N° 725116-7
B5: =cover_L!F9 -> Delivery Time
B7: Delivery times are referenced to the deadline of the latest schedule provided by Hasler Group and accepted by you.
B9: =IF(Configuration!B2="Français",Configuration!AJ27,Configuration!AI27) -> Please take into account additional time for delivery of the goods to the contractual incoterm place of destination (to be confirmed after order)
B11: =IF(Configuration!B2="Français",Configuration!AJ28,Configuration!AI28) -> The delivery time is estimated and will be confirmed upon receipt of your order to account for the factory load at the time of processing your order. The lead time runs from the receipt of the advance payment due upon ordering. It will be extended by any delay that may occur in order to receive additionally agreed payment instalments. No work will be started before receipt of the agreed advance payment. It is the responsibility of the customer to provide all technical data and intermediary approvals in a timely manner in order to allow the nominal progress of the design, manufacturing and documentation work. Any delay in doing so will affect the global lead time without any liability to Hasler
B17: =cover_L!F10 -> INCOTERM
B19: ='Simplified P&L'!G4 -> DAP - Gelsa - Spain
B21: =cover_L!F11 -> Terms of Payment
B23: =IF(Configuration!B2="Français","Numéro #","Instalment #") -> Instalment # | E23: =IF(Configuration!B2="Français","Pourcentage de paiement","Payment Percentage ") -> Payment Percentage | J23: =IF(Configuration!B2="Français","Terme de paiement","Payment Term") -> Payment Term | R23: =IF(Configuration!B2="Français","Mode de paiement","Payment Mode") -> Payment Mode | W23: =IF(Configuration!B2="Français","Délai de paiement","Payment Credit Time") -> Payment Credit Time
B24: 1 | E24: 0.25 | J24: at the order | R24: By bank transfer | W24: already paid
B25: 1 | E25: 0.15 | J25: engineering reception | R25: By bank transfer | W25: already paid
B26: 1 | E26: 0.6 | J26: In 45 calendar days after the receipt of the correct invoice. After successful Factory Acceptance Test at the Contractor's site | R26: By bank transfer
B28: =IF(Configuration!B2="Français",Configuration!AJ100,Configuration!AI100) -> The name of the company you knew as HASLER Group SAS changed to HASLER France SAS. This is only a change of name. Our legal registration number remains 514 743 038 - RCS Vienne France. Mind that all your documents refer to HASLER FRANCE.
B33: =cover_L!F12 -> Warranty
B35: =IF(Configuration!B2="Français",VLOOKUP('Simplified P&L'!B12,Configuration!P15:Q20,2),'Simplified P&L'!B12) -> 24 months after commissioning, latest 36 months after delivery
B37: =IF(Configuration!B2="Français",Configuration!AJ32,Configuration!AI32) -> The equipment must not be modified without prior consultation with HASLER Group. Modification without the written consent of HASLER GROUP may invalidate the warranty and any product liability. Any warranty for newly purchased equipment will be void unless HASLER Group has supervised and/or validated on site the assembly and mountingof the equipment. Expertise of abnormal conditions under warranty periods are to be exclusively conducted by HASLER Group. Should the expertise conclude that the causes of the conditions are not related to the warranty then the full expertise will have to be covered by the main contractor or the end user.
B39: =cover_L!F13 -> Validity
B41: =IF(Configuration!B2="Français",Configuration!AJ33,Configuration!AI33) -> 1 month
B45: =cover_L!E14 -> Contacts
B48: =cover_L!F15 -> Customer Contact List
B49: ='Simplified P&L'!B6 -> St Gobain
B50: =CONCATENATE(IF(Configuration!B2="Français",Configuration!AJ34,Configuration!AI34)," :") -> Address : | H50: Fill here
B51: =CONCATENATE(IF(Configuration!B2="Français",Configuration!AJ35,Configuration!AI35)," :") -> City : | H51: Fill here
B52: =CONCATENATE(IF(Configuration!B2="Français",Configuration!AJ36,Configuration!AI36)," :") -> Country : | H52: Fill here
B53: Telephone : | H53: Fill here
B54: Internet : | H54: Fill here
B56: Department | F56: =IF(Configuration!B2="Français",Configuration!AJ37,Configuration!AI37) -> Name | L56: =IF(Configuration!B2="Français",Configuration!AJ38,Configuration!AI38) -> Position | R56: =IF(Configuration!B2="Français",Configuration!AJ39,Configuration!AI39) -> Contact Details
B57: =IF(Configuration!B2="Français",Configuration!AJ40,Configuration!AI40) -> Purchase Dept | F57: Mrs. Marion Pouzols | R57: marion.pouzols@saint-gobain.com
B58: =IF(Configuration!B2="Français",Configuration!AJ41,Configuration!AI41) -> Technical Dept | F58: Mr. Israel Ferrer Virgos | R58: israel.ferrer@saint-gobain.com
B61: =cover_L!F16 -> HASLER France Contact List
B62: Hasler France
B63: =CONCATENATE(IF(Configuration!B2="Français",Configuration!AJ34,Configuration!AI34),":") -> Address: | H63: 496 Rue Louis Breguet
B64: =CONCATENATE(IF(Configuration!B2="Français",Configuration!AJ35,Configuration!AI35),":") -> City: | H64: 38780 Pont-Évêque
B65: =CONCATENATE(IF(Configuration!B2="Français",Configuration!AJ36,Configuration!AI36),":") -> Country: | H65: France
B66: Telephone: | H66: +33 4 74 16 11 50
B67: Website: www.hasler-gp.com
B69: Department | F69: =IF(Configuration!B2="Français",Configuration!AJ37,Configuration!AI37) -> Name | L69: =IF(Configuration!B2="Français",Configuration!AJ38,Configuration!AI38) -> Position | R69: =IF(Configuration!B2="Français",Configuration!AJ39,Configuration!AI39) -> Contact Details
B70: Commercial Dept | F70: =cover_L!AG61 -> Cosimo Piscopiello | L70: =cover_L!AG62 -> Area Sales Manager | R70: =VLOOKUP('Simplified P&L'!J2,Configuration!X3:AA19,4,FALSE) -> c.piscopiello@hasler.group
B71: =IF(Configuration!B2="Français",Configuration!AJ41,Configuration!AI41) -> Technical Dept | F71: =cover_L!C61 -> Ahou N'gotta | L71: =cover_L!C62 -> Tender engineer | R71: =VLOOKUP('Simplified P&L'!J3,Configuration!S3:V13,4,FALSE) -> ac.n'gotta@hasler.group
B72: Service Dpt | R72: service@hasler.group
B75: =IF(Configuration!B2="Français",Configuration!AJ43,Configuration!AI43) -> Are you focusing on optimizing your equipment and your production ?
B76: =IF(Configuration!B2="Français",Configuration!AJ44,Configuration!AI44) -> Our experienced engineers are available on request for accurate and dedicated training, expertise or audit.
B77: =IF(Configuration!B2="Français",Configuration!AJ45,Configuration!AI45) -> Contact us to get more informations: service@hasler.group

Sheet Customer_services
C5: HASLER CARE SERVICES
C7: Price list 2025 - Worldwide
C10: Type of Service | E10: FILTRATION / KNEADING: - Erection Supervision - Equipment Maintenance (3) - Mechanical Audit of Equipment (2) | F10: DOSING / MIXING: - Commissioning - Erection Supervision - Equipment Maintenance (3) | G10: FILTRATION / KNEADING: - Laboratory Tests - Commissioning - Training - Process Audit (2)
C11: Category of Staff | E11: Technician or Audit Technician | F11: Dosing Specialist | G11: Process Engineer
C12: Daily rate (for 8 working hours) | D12: Monday to Friday maxi 40 h/week | E12: =1130*1.05*1.03 -> 1222.095 | F12: =1250*1.03*1.05 -> 1351.875 | G12: =1360*1.03*1.05 -> 1470.84
D13: Hourly rate base | E13: (153 €/h) | F13: (169 €/h) | G13: (184 €/h)
D14: Saturday | E14: =ROUND(E12*1.5,-1) -> 1830 | F14: =ROUND(F12*1.5,-1) -> 2030 | G14: =G12*1.5 -> 2206.26
D15: Sunday or Bank holiday | E15: =E12*2 -> 2444.19 | F15: =F12*2 -> 2703.75 | G15: =G12*2 -> 2941.68
C16: Additional price for overtime worked | D16: During day between 40 & 43 h | E16: + 25 % | F16: +25% | G16: + 25 %
D17: During day between 44 & 48 h | E17: + 50 % | F17: +50% | G17: +50%
D18: During night (from 22:00 & 6:00) | E18: +50% | F18: +50% | G18: +50%
C19: Detailed audit report (2) | E19: =900*1.05*1.03 -> 973.35 | G19: =900*1.05*1.03 -> 973.35
C20: Price for one day of journey (7) | E20: =ROUND(0.75*E12,-1) -> 920 | F20: =ROUND(0.75*F12,-1) -> 1010 | G20: =0.75*G12 -> 1103.13
C21: Price for one day off (1) | E21: =ROUND(0.5*E12,-1) -> 610 | F21: =ROUND(0.5*F12,-1) -> 680 | G21: =ROUND(0.5*G12,-1) -> 740
C24: Travel expenses | D24: By car | E24: 1,30 €/km | J24: at the order | W24: already paid
D25: By car | E25: 1,30 €/km | J25: engineering reception | W25: already paid
D26: By car | E26: 1,30 €/km
D27: Rental car | E27: Flat-rate basis
D28: Train | E28: Flat-rate basis
D29: Flight (4) | E29: Actual costs increased by 15%
C30: Lodging expenses (5) | E30: Flat-rate basis
C31: Administrative Fee (6) | E31: 336 € for intervention preparation, writting of report, ….
C33: Validity | E33: From 1st January to 31st December 2025
C34: Payment terms | E34: 100% at invoice receipt and by bank transfer, one invoice per month
C36: (1) One day minimum after 6 consecutive working days
C37: (2) Writing of a complete and detailed audit report after each visit on site
C38: (3) Before any maintenance intervention, make sure of the availability of the necessary parts
C39: (4) Flight over 6 hours will be done in business class
C40: Every modifications costs will be charge
C41: (5) Hotels and meals have to be at Europeans standards
C42: (6) Customer have to provide the appropriate invitation letter to HASLER
C43: The costs for obtaining the visa are invoiced in addition
C44: (7) This offer is calculated for one intervention, if this invertion is divided in several parts, travel fees and mobilization cost will invoice in addition.

Sheet Services_client (hidden)
C5: HASLER CARE SERVICES
C7: Tarif 2025 - France
C10: Type de service | E10: FILTRATION / MALAXAGE : - Supervision de Montage - Maintenance d'équipements (3) - Audit mécanique d'équipements (2) | F10: DOSAGE / AGITATION : - Mise en service - Supervision de Montage - Maintenance d'équipements (3) | G10: FILTRATION / MALAXAGE : - Essais - Mise en service - Formation - Audit process (2)
C11: Catégorie de personnel | E11: Technicien ou Auditeur technique | F11: Spécialiste Dosage | G11: Ingénieur Process
C12: Tarif forfaitaire journalier (pour 8 heures travaillées) | D12: Lundi au Vendredi maxi 40 h/semaine | E12: =940*1.05*1.03 -> 1016.61 | F12: =1065*1.05*1.03 -> 1151.7975 | G12: =1360*1.05*1.03 -> 1470.84
D13: Taux horaire de base | E13: (127 €/h) | F13: (144 €/h) | G13: (184 €/h)
D14: Samedi | E14: =E12*1.5 -> 1524.915 | F14: =ROUND(F12*1.5,-1) -> 1730 | G14: =G12*1.5 -> 2206.26
D15: Dimanche ou férié | E15: =E12*2 -> 2033.22 | F15: =F12*2 -> 2303.595 | G15: =G12*2 -> 2941.68
C16: Majoration Heures Supp. | D16: En journée entre 40 et 43 h | E16: + 25 % | F16: +25% | G16: + 25 %
D17: En journée entre 44 et 48 h | E17: + 50 % | F17: +50% | G17: +50%
D18: De nuit (entre 22:00 et 6:00) | E18: +50% | F18: +50% | G18: +50%
C19: Rapport d'audit détaillé (2) | E19: =900*1.05*1.03 -> 973.35 | G19: =900*1.05*1.03 -> 973.35
C20: Tarif journée de voyage (7) | E20: =ROUND(0.75*E12,-1) -> 760 | F20: =ROUND(0.75*F12,-1) -> 860 | G20: =0.75*G12 -> 1103.13
C21: Tarif jour non travaillé (1) | E21: =0.5*E12 -> 508.305 | F21: =ROUND(0.5*F12,-1) -> 580 | G21: =0.5*G12 -> 735.42
C24: Frais de voyage (2) | D24: En voiture | E24: 1,30 €/km
D25: Voiture location | E25: 120€/j pour les missions de 1 à 5 jours, au dela, coût forfaitaire
D26: Train | E26: Coût forfaitaire
D27: Avions (4) | E27: Frais réels majorés de 15%
C28: Frais d'hébergement (5) | E28: Coût forfaitaire
C29: Frais administratifs (6) | E29: 336 € pour préparation de l'intervention, rédaction rapport de mission, ….
C31: Validité | E31: Du 1er Janvier au 31 Décembre 2025
C32: Conditions de paiement | E32: 100% à réception de facture par virement, une facture par mois sera établie
C34: (1) 1 journée minimum après 6 jours de travail consécutifs
C35: (2) Rédaction d'un rapport d'audit détaillé à l'issue de la visite sur site
C36: (3) Avant toute intervention de maintenance, veuillez vous assurer de la disponibilité des pièces nécessaires
C37: (4) Pour tout vol supérieur à 6 heures, la reservation se fera en business class.
C38: Toute modification sera facturée.
C39: (5) L'hotel et les restaurant devrons être au standars Européen.
C40: (6) Le client devra fournir une lettre d'invitation pour obtenir un VISA le cas échéant
C41: Le coût du VISA sera facturée en supplément.
C42: (7) Cette offre est calculée pour une seule mission, si celle-ci devait être divisée, les frais de déplacement et de mobilisation seront facturés en supplément.

Sheet GTC
C3: ABOUT HASLER Group
J24: at the order | W24: already paid
J25: engineering reception | W25: already paid
B59: =cover_L!E17 -> General Terms & Conditions of Sale
B60: =Configuration!AI46 -> 1. GENERAL POINTS 1.1. Commercial relations between HASLER France, or one of its subsidiaries representing it (‘Supplier’), and the buyer, referred to as the “Customer”, shall be governed by these General Terms and Conditions of Sale. They constitute the sole basis of any commercial negotiation and shall apply to all points which are not regulated in another manner in writing by mutual Agreement. Customer terms and conditions of Purchase which contradict these General Terms and Conditions of Sale shall only be valid if the Supplier has agreed to them in writing. 1.2. Deviations/additions to these General Terms and Conditions of Sale shall only be valid if the Supplier has expressly accepted them in writing. 1.3. Offers which do not mention a validity period shall be non-binding. Once the validity period has expired, the Supplier reserves the right to accept or not any order. 1.4. The ‘Agreement’ consists of the documents listed below which shall prevail over each other in the following order of priority: - an Agreement signed by both the Customer and the Supplier or the order and its acceptance signed by the Supplier with its comments (if required); - any specific and/or additional special Terms and Conditions of Sale agreed by the Customer and the Supplier; - these General Terms and Conditions of Sale, which form an integral part of the Agreement. 1.5. ‘Works’, specified in the Agreement, consist of the ‘Equipment’ to be delivered (materials, products, equipment, etc.) and the ‘Services’ to be provided (assembly, supervision, commissioning, repair, upgrade, maintenance, etc.) in accordance with Agreement requirements. 1.6. The Supplier shall be free to subcontract all or part of the Equipment and Services under the Agreement. 1.7. The Customer shall refrain from any action or practice with a view to hiring the Supplier’s employees. 1.8. If any provision of the Agreement is deemed invalid or unenforceable in whole or in part by a competent authority, the validity of the other provisions of the Agreement and the rest of the provision in question shall not be affected. 1.9. The headings in these General Terms and Conditions of Sale are indicative and do not affect the content of the relevant provisions. 2. AGREEMENT AND EFFECTIVE DATE 2.1. The Agreement shall enter into effect when the last of the following events occurs (‘Effective Date’): - Agreement signature by the Supplier and the Customer; - receipt by the Supplier of a down payment as provided for in the Agreement or, failing that, receipt by the Customer of the formal acceptance of the order signed by the Supplier; - receipt by the Supplier of an irrevocable and confirmed letter of credit acceptable by the Supplier, or receipt of any other payment guarantee by the Supplier (stand-by letter of credit or other, to be agreed by the Supplier). 2.2. Unless otherwise indicated in the special conditions of sale, the Effective Date shall constitute the date of the beginning of the Supplier’s contractual obligations and the delivery lead time and schedules specified, if applicable, in the Agreement for Equipment, spare parts, and Service provision. 2.3. If more than thirty (30) days pass after the Agreement’s signature without the occurrence of the Effective Date, the Supplier may modify the aforementioned schedules. 3. ORDER, ORDER CONFIRMATION 3.1. Unless there are justified exceptions, the Supplier shall confirm orders in writing. The terms of the written order confirmation shall be the exclusive reference for payment terms, the delivery time, the contents of the delivery, and the scope of the Services, and shall include, where applicable, reservations on the Customer order (HASLER EQ23 document). 3.2. Order changes, as well as oral Agreements shall only be valid if the Supplier has confirmed them in writing to the Customer. 3.3. The Supplier shall be authorised to make changes bringing improvements at any time as long as they do not hinder the guaranteed performance and do not result in an increase in the price for the Customer. 3.4. The submission of an order signed by the Customer implies acceptance by the latter of these General Terms and Conditions of Sale, unless one or more points of these General Terms and Conditions of Sale have resulted in a negotiation and on the condition that these negotiated points are recorded in the written Agreement signed by the Supplier or in the Special Terms and Conditions of Sale which are also signed. 4. PRICE 4.1. Prices are expressed according to the exact Incoterm specified in the Special Terms of Sale, according to the ICC (International Chamber of Commerce) definitions of the latest known review of the offer. 4.2. Prices may be adjusted after entering into the Agreement in the following cases: - price review; - extension of the delivery lead time for one of the reasons listed in 11.3; - change to the scope of the agreed Works; - modifications to the Equipment or performance because the documents provided to the Supplier by the Customer did not correspond to actual conditions or were incomplete. 4.3. If the Effective Date occurs after the offer’s validity date, or if the Agreement completion date is postponed for reasons beyond the Supplier’s liability, the Supplier shall be entitled to update its prices for postponed work, in particular in order to take into account possible increases in the prices of raw materials, energy, and the average cost of living. 4.4. The price is understood and corresponds to the limit of the Services defined in the Agreement’s reference technical offer. 4.5. The Agreement price shall be adjusted to take into account any change in cost for the Supplier resulting from changes in the legislation of the Customer's country. Legislation means any law, order, or regulation, not limited to tax laws, that affects the Supplier in the performance of the obligations under the Agreement.
B95: =Configuration!AI47 -> 5. AGREEMENT PERFORMANCE 5.1. Delivery shall meet the standards and requirements applied by the Supplier, valid at the time of the offer, and confirmed when ordering. 5.2. The goods are designed and manufactured in compliance with fundamental health and safety requirements respectively applicable to them. The CE mark of conformity and the establishment of Supplier declarations meet the corresponding directives. 5.3. Good Engineering Practices: Equipment and Services shall conform to good engineering practice and contract specifications. The Customer is required to provide the Supplier with all the information and documents necessary for the Works before signing the Agreement. 5.4. Customer's obligations: throughout the duration of the Works, the Customer shall provide any approval and instruction, material, Works, site access, any Equipment to the extent necessary for the Works (safety rules, special risks, etc.), and, more generally, any support required for the Works which is not part of the Works or the Supplier's responsibility in a timely manner. The customer shall assist the Supplier in obtaining any visa, permit, or licence that may be required for Service provision or for Equipment import and delivery (if applicable). 5.5. Customer supervision: when provided for in the special terms and conditions of sale, the Customer may supervise Agreement execution. To this end, the Customer or its representatives shall have access to the Supplier's facilities during their working hours. The cost of this shall be fully borne by the Customer. Such supervision shall not hinder or delay Agreement execution. 5.6. Supplier recommendations: any advice or recommendation given by the Supplier (or its employees or agents) which is not confirmed in writing by the Supplier, shall be followed or applied entirely at the Customer’s risk and peril, and therefore, the Supplier shall not be held liable for any such advice or recommendations that are not confirmed in this manner. 6. CHANGES – AMENDMENTS – VARIATIONS 6.1. During Agreement execution, the Supplier may make changes to the Equipment as required by mandatory circumstances, such as a modification of technical standards, manufacturing methods, or laws and regulations, affecting the terms of Agreement execution. However, these modifications shall not affect the fundamental characteristics of the Equipment and Services specified in the Agreement. 6.2. If these modifications have effects which prevent or make more difficult compliance with certain Agreement provisions, in particular those relating to prices or delivery lead times, the Supplier shall submit the appropriate supporting documents to the Customer and the Customer and the Supplier shall sign an Amendment to their Agreement setting out the changes required. 6.3. All changes to the Agreement shall be documented in writing and signed by the Supplier and the Customer. Under no circumstances shall the Supplier be held liable for the performance of Works other than those expressly mentioned in the Agreement by its employees at the Customer's request. 7. PAYMENT 7.1. The Customer shall make payments in accordance with the agreed terms at the Supplier's tax domicile without deducting any discounts, charges, taxes, duties, customs duties, allowances, Supplier delay penalties or other charges. In the absence of other Agreements, the price shall be paid in two instalments: one third upon receipt of the order confirmation and two thirds upon delivery or notice of availability. An invoice recalling the down payment paid and the balance payable shall be issued. The down payment shall be paid upon receipt of the corresponding invoice. Unless otherwise agreed, any other invoice shall be paid within 30 (thirty) days from the date of the invoice. In the case of early payment, no discount shall be granted. 7.2. The payment terms and commitments shall remain in force when the acceptance, transport, delivery, assembly, and commissioning of Equipment or Services are delayed or made impossible for reasons beyond the Supplier’s control. The same applies when non-essential parts fail or when touch-up work is necessary without preventing the use of Equipment or a service. 7.3. In the event of late payment, the Supplier reserves the right to immediately stop deliveries and planned service provision. It is authorised to charge interest from the day following the payment date appearing on the invoice, at the rate of 3 (three) times the French legal interest rate. In addition, a minimum fixed fee of 40 euros for recovery costs shall be due as of right, without any reminder being necessary, without prejudice to the Supplier being able to charge a greater amount than said fixed fee if it has incurred higher recovery costs. This fee shall apply to each invoice paid late. 7.4. If the Customer is in default, the Supplier is authorised to cease the activities inherent to the Agreement and withhold deliveries and Services in progress. If, within a reasonable period of time, the Supplier does not obtain sufficient guarantees, it may withdraw from the Agreement, demand damages and, if necessary, take back the goods supplied under the Agreement at the Customer's expense. 8. TAXES 8.1. Unless otherwise specified in the regulations of European Union countries, where the Agreement provides for the delivery of Equipment within the European Union, Equipment delivery shall be exempt from VAT provided that the Customer provides the Supplier with its VAT number or that of the end user, if the latter is a resident of the European Union, with the order. 8.2. In this case, the Customer or end user shall pay the applicable VAT in accordance with the tax rules applicable in their own country. If the VAT number is not attached to the Agreement, the Equipment shall be subject to VAT in the Customer's country, calculated at the rate in force on the invoice date. Any tax adjustment, penalty, or interest on late payment which may become due as a result of the Supplier’s use of said VAT number shall be reimbursed by the Customer to the Supplier within 30 (thirty) days of the presentation of proof of payment thereof. 8.3. For France, the prices indicated are exclusive of VAT. This shall be applied to invoicing in accordance with the laws in force. 9. RETENTION OF TITLE Delivery shall remain the Supplier’s property until full payment of the Equipment. The Customer has an obligation to participate in measures aimed at the protection of property. In particular, it shall identify precisely the goods delivered and not paid for in its warehouses, so as to allow, if necessary, an effective claim. It authorises the Supplier, at its own expense, to carry out any inspection of this identification on the Customer's premises. The Customer shall also bear the costs of registering or reporting the retention of title in the public registers/books in accordance with applicable national laws and the costs incurred by the Supplier to complete all the formalities necessary for this purpose. Until the retention of title is lifted, the Customer shall insure and maintain the delivered goods.
B132: =Configuration!AI48 -> 10. FORCE MAJEURE 10.1. Under no circumstances shall the Supplier be liable for non-compliance with its obligations due to a case of Force Majeure. Force Majeure shall be defined as any event preventing the full or partial performance of the Agreement which cannot be overcome despite a reasonable effort on the part of the Supplier or its agents. 10.2. Force Majeure includes, but is not limited to, the following events: labour disputes or strikes, shortage of skilled workers or raw materials, major incidents affecting the Supplier's agents, fires, explosions, mobilisations, action or failure to act by public Services or government authorities, acts of war, sabotage, embargoes, insurrection, riots, breach of the peace, major manufacturing issues such as tool accidents or business failure, or late deliveries or with defects in raw materials, semi-finished or finished products, scrapping of essential parts, administrative measures or shortcomings, natural phenomena, interruptions or delays in transport, and epidemics. 10.3. If the case of Force Majeure continues for more than 3 (three) months and the Customer and the Supplier have not agreed on the terms of continuation of the Agreement, the Supplier may terminate the Agreement within a period of 30 (thirty) days after written notification to the Customer, in which case the provisions of the TERMINATION clause shall apply. 11. DELIVERY LEAD TIME 11.1. The delivery lead time shall begin from the Effective Date. 11.2. Unless otherwise agreed, where delivery takes place on the Supplier's premises, the delivery lead time is considered to have been complied with when the goods are ready to be delivered or, by derogation, accepted in accordance with what has been agreed. 11.3. The delivery time shall be appropriately extended: - when points 4 and 5 of section 5 (Agreement execution) reach the Supplier late; - when the Customer modifies the specifications necessary for Agreement execution after the Effective Date; - in the event of a case of Force Majeure (section 10); - if an external inspection, mandated by the Customer in writing on placing the order, delays the lead time initially planned. 11.4. If such uncontrollable events prevent deliveries and service provision within the agreed deadlines, the Customer shall not be entitled to any compensation. 11.5. If a specific date is agreed instead of a delivery lead time, it shall be equivalent to the last day of the delivery lead time. The previous points in this section shall apply in a similar manner. 12. DELAY PENALTIES If the Supplier does not comply with the schedule due to its own fault and if a summons to deliver has been issued by the Customer, the Supplier shall, at the Customer's request and within 15 (fifteen) days from said request, pay delay compensation calculated on the basis of the Agreement price (excluding tax) of the delayed Work at a rate of 0.5% per week up to a maximum of 5% of the delayed Work. The compensation indicated above shall constitute the limit of the Supplier's liability for delay and, as such, shall be considered as full discharge. No delay compensation payment shall be imposed on the Supplier for delays due to circumstances attributable to the Customer, a case of Force Majeure, or when such delays have not resulted in loss for the Customer. Delay compensation is not applicable to the documentary part. 13. CONFIDENTIALITY, OWNERSHIP 13.1. The indications of weights, measures, performance, etc. appearing in catalogues, brochures, and offers etc. are reference values entailing no commitment. 13.2. The Supplier shall retain ownership of its studies, plans, models, data, and test results as well as any document issued and provided to the Customer, or of which the Customer may have cognisance during Agreement execution. The Customer may only use this information and documents for Agreement execution. These documents and information shall be treated confidentially and shall not be distributed, published, or generally disclosed to third parties without the Supplier’s express prior written authorisation, to which they shall be returned immediately upon request from the latter in the event of Agreement termination. They shall also not be used for the manufacture of machinery, Equipment, or parts thereof. 13.3. Provided that the Supplier has been paid the full amount contractually due, the Supplier shall grant the Customer a free and non-exclusive right to use the aforementioned documents exclusively for the upkeep and maintenance of the Equipment subject to its work. 14. TERMINATION 14.1. Except in cases of Force Majeure, each party may terminate the Agreement at any time in the event that the other party does not fulfil a substantial obligation imposed on it under the Agreement and does not take satisfactory measures to remedy this within 20 (twenty) days of receipt, by the defaulting party, of a written notice to this effect sent by recorded delivery with advice of receipt or of any equivalent notification from which emerges a sufficient warning. 14.2. If the Customer cancels an order, the Supplier shall be entitled to remuneration for deliveries made and Services already provided, or, if no delivery has yet been made, to the reimbursement of sums incurred by the Supplier with subcontractors. The remuneration and reimbursements mentioned above shall be increased by a withdrawal penalty equivalent to 10% of the order’s value. 14.3. Termination of the Agreement in whole or in part, for any reason, shall not affect or prejudice the COMMERCIAL GUARANTEE (19), CONFIDENTIALITY, OWNERSHIP (13), and LAW AND ARBITRATION (22) provisions in this agreement.
B164: =Configuration!AI49 -> 15. PACKAGING, DELIVERY, STORAGE 15.1 The place of performance of the Works for the Customer and for the Supplier is one of the Supplier's premises, at the Supplier's choice, even if the delivery has taken place carriage paid, CIF, FOB, or under similar conditions. 15.2. Packaging is provided by the Supplier but in no case shall it be taken back. 15.3. For EXW deliveries, transport and insurance costs shall be borne by the Customer in accordance with the provisions of the designated Incoterm. 15.4. Claims for damage, loss etc. arising from transport shall be reported upon receipt of delivery and certified by the last carrier. 15.5. Whatever the Equipment’s point of delivery and the means of transport, within a period of 15 (fifteen) days from the Supplier’s notification of availability for delivery, the Supplier shall be authorised, on behalf of the Customer, to store the Equipment at the Customer's expense. The Supplier shall be deemed to have delivered this Equipment to the Customer on entry into storage and shall be entitled to payment upon presentation of the warehouse receipt in place of any bill of lading or similar document otherwise required under the Agreement. The risk shall be transferred to the Customer on entry into storage, but title shall only be transferred in accordance with the RETENTION OF TITLE provision. 15.6. Similarly, if shipment is delayed by the Customer, the Supplier may agree, upon written request from the Customer and at the Customer's sole expense and risk, to store the Equipment. The Supplier shall invoice a sum equal to 0.6% of the price excluding tax of the Equipment to be stored per week of postponement with a waiting period of 15 (fifteen) calendar days. The storage period shall in no case exceed 6 (six) months from the Customer's request. These provisions in no way modify the Customer's payment obligations. 16. TRANSFER OF RISK 16.1. Risk transfers pass to the Customer according to the Incoterm determined by the Agreement. 16.2. If shipment is delayed or made impossible for reasons not attributable to the Supplier, the risk shall be transferred to the Customer at the initially scheduled EXW delivery time. From that moment, the goods shall be stored and insured at the Customer’s expense and risk. 17. INSPECTION AND ACCEPTANCE 17.1. Before shipping, each installation shall be subject to the usual inspections. If the Customer wishes to be present during the inspection of its delivery, it shall stipulate this in writing when placing the order. 17.2. Regarding spare parts orders, unless otherwise specified in the order, only electronics shall be subject to the usual inspections. 17.3. The Customer may accept the delivery itself or have it accepted by a person appointed for this purpose. In accordance with the provisions of Article 11.2 above, and unless otherwise provided for in the same article, acceptance shall take place at the manufacturer's plant and shall include a functional test without product. In all cases, the costs shall be fully borne by the Customer. 17.4. The Customer is required to inspect the deliveries and Services within five (5) working days and to immediately communicate any possible defect in writing to the Supplier. Otherwise, deliveries and Services shall be deemed to have been accepted. 17.5. In addition, if the Customer did not choose the carrier, it shall preserve Supplier’s rights with this carrier by notifying the carrier, within three (3) days, not including bank holidays, which follow that of said acceptance, of any damage or loss, by reasoned letter sent by recorded delivery or by extra judicial act, in accordance with Article L133-3 of the French Commercial Code. 18. ASSEMBLY AND COMMISSIONING 18.1. The Customer shall have assembly carried out by suitably qualified personnel under the Supplier’s supervision. 18.2. Commissioning and inspection of assembly work shall be carried out by the Supplier’s personnel or personnel authorised by the Supplier. 18.3. The Services provided shall be the subject of an acceptance report immediately after their completion. 18.4. In the case of assembly and/or commissioning carried out by the Customer, outside the context indicated above, the latter shall not claim the benefit of contractual guarantees.
B199: =Configuration!AI50 -> 19. COMMERCIAL GUARANTEE 19.1. Unless the Customer has the same specialty as the Supplier, this commercial guarantee does not preclude the legal guarantee against hidden defects provided for in Articles 1641 et seq. of the French Civil Code. During the commercial guarantee period, the Supplier shall promptly and upon written notice from the Customer repair or replace, at its option, all parts that the Customer proves to be defective or unusable. All parts replaced shall become the Supplier's property. 19.2. The Supplier shall only bear the costs resulting from the repair or replacement of defective parts in its Workshops. The Supplier shall, in no case, be liable for expenses other than those chargeable under this guarantee provision. If the defective parts cannot be repaired or replaced in its Workshops for reasons which are not attributable to it, all additional costs resulting therefrom, in particular travel costs, shall be borne by the Customer as well as all expenses incurred by the Customer or a third party during the Equipment’s immobilisation due to work in accordance with the guarantee. 19.3. Any other claim from the Customer based on a defective delivery, in particular damages and Agreement termination, shall be excluded under this commercial guarantee. 19.4. The guarantee period is twelve months. It shall take effect when the Equipment is ready to be shipped or upon completion of commissioning if the Supplier also provides this service, in accordance with Article 11.2 above. If shipment or commissioning is delayed for reasons that are not attributable to the Supplier, the commercial guarantee shall end no later than eighteen months after the time the Equipment was ready for shipment. 19.5. The replaced parts shall benefit from the same commercial guarantee period as the main object. However, this commercial guarantee shall cease no later than eighteen months after the start of the commercial guarantee for the main object or, if the shipment or commissioning of the main object has been delayed for reasons which are not attributable to the Supplier, no later than twenty-four months from the time the main object was ready for shipment. 19.6. The following cases are excluded from the commercial guarantee: - damage due to natural wear and tear, insufficient maintenance, incorrect handling, excessive use, the use of operating means according to factory specifications, the use of contraindicated operation, chemical or electrolytic influences, power surges or lightning strikes, corrosion, erosion, cavitation or similar phenomena, civil engineering and faulty assembly work that has not been carried out by the Supplier, as well as for other causes not attributable to it; - defects attributable to the design, material, or manufacturing or assembly techniques imposed by the Customer and for which the Supplier submitted written comments to the Customer; - non-compliance with the Supplier's instructions; - maintenance of the Equipment, specified in the Agreement, by the Customer or by third parties, under conditions not previously approved by the Supplier in writing; - routine maintenance or replacement of parts required by normal wear and tear of the Equipment or by exposure of the Equipment to the elements; - defects or damage caused by error or negligence of the Equipment user, a case of Force Majeure, or unforeseeable circumstances. The components and parts of the Equipment comply with standards, design characteristics, and quality measurements that correspond to specific requirements and are appropriate for the use for which the Equipment is intended. Therefore, the Supplier's guarantee obligation shall automatically expire if all or part of the components or parts of the Equipment are replaced by components or parts not supplied by the Supplier. 19.7. The commercial guarantee shall cease if the Customer (or third parties) makes changes or repairs to the delivery without the Supplier’s written consent or if the Customer does not immediately take appropriate measures to prevent the damage from worsening and enable the Supplier to remedy the defect. 19.8. If the Customer does not assert in writing, before the expiry of the commercial guarantee period, specific claims arising from the latter, the Supplier shall be released from its obligations under said guarantee. 19.9. The Supplier's guarantee under this provision is in place and excludes any other guarantee or commitment of any kind. 19.10. For deliveries from another manufacturer, the Supplier shall only assume the commercial guarantee as part of the subcontractor's obligations. 20. SUSPENSION 20.1. If Agreement execution is suspended due to a case of Force Majeure or as a result of the Customer, the Supplier’s Agreement execution period shall be extended. Any subsequent costs incurred by the Supplier shall be reimbursed by the Customer. 20.2. If Agreement execution is suspended for any reason and continues for more than 3 (three) months, the Supplier or Customer may, at any time during this uninterrupted suspension, terminate the Agreement with written notice of more than 30 (thirty) days. 21. LIABILITY 21.1. The Supplier undertakes to deliver Equipment in accordance with the Agreement. 21.2. Once the Customer has fulfilled its obligation of inspection in accordance with Article 17.4 of these General Terms and Conditions of Sale, the Supplier shall fulfil its obligations under Article 1641 et seq. of the French Civil Code and the commercial guarantee. 21.3. Under no circumstances shall the Supplier's liability under the Agreement exceed the amount excluding tax of the sums collected under the Agreement. 21.4. Under no circumstances shall the Supplier be held liable for any immaterial damage, such as loss of profit, loss of production, operation, etc. suffered by the Customer. 21.5. The Customer shall waive all recourse against the Supplier to obtain compensation for the financial consequences of any damage caused to third parties and shall pay compensation to the Supplier for all claims by third parties directly or indirectly related to Agreement execution. The conditions mentioned above are understood to be exclusive of hidden defects. 22. LAW AND ARBITRATION 22.1. The Agreement is governed and interpreted in accordance with French law. 22.2. The language of proceedings shall be French. 22.3. In the event of a dispute between the Customer and the Supplier on a technical matter, the parties agree to have recourse to the ICC International Centre for Expertise in Paris, in accordance with the ICC’s rules of Technical Expertise. 22.4. If, at any time, any question, dispute, or difference arises between the Customer and the Supplier, the parties shall attempt to reasonably settle the matter. If any dispute related to the Agreement (including any dispute as to its validity, meaning, effect, or termination) cannot be settled by the Customer and the Supplier within 6 (six) weeks of initial notification of the case, the Customer and the Supplier agree that it shall be finally settled by arbitration in accordance with the Rules of Arbitration of the ICC.

Sheet CGV (hidden)
C3: A PROPOS D'HASLER Group
B59: =Configuration!AJ21 -> Conditions générales de vente
B60: =Configuration!AJ46 -> 1. GENERALITES 1.1. Les relations commerciales entre la société HASLER France, ou l’une de ses filiales la représentant, nommée « le Fournisseur » par la suite, et l’acheteur, dénommé « le Client », sont régies par les présentes Conditions Générales de Vente. Celles-ci constituent le socle unique de toute négociation commerciale, et s’appliquent à tous les points qui ne sont pas réglementés d’une autre manière par écrit selon accord réciproque. Des conditions du Client qui sont en contradiction avec ces Conditions Générales de Vente ne sont valables que si le Fournisseur s’est déclaré par écrit d’accord avec elles. 1.2. Des divergences / compléments à ces Conditions Générales de Vente ne sont valables que si le Fournisseur les a acceptés expressément et par écrit. 1.3. Les offres qui ne mentionnent pas de délai de validité sont sans engagement. Une fois le délai de validité écoulé, le Fournisseur se réserve le droit d’accepter ou non toute commande s’y référant. 1.4. « Le Contrat » est constitué des documents énumérés ci-après et prévalant les uns sur les autres dans l'ordre de priorité suivant : - un accord signé par le Client et le Fournisseur, ou la commande et son acceptation signées par le Fournisseur avec ses commentaires éventuels ; - toutes conditions de vente spécifiques et / ou spéciales complémentaires convenues par le Client et le Fournisseur ; - les présentes Conditions Générales de Vente, qui font partie intégrante du Contrat. 1.5. « Les Travaux », précisés dans le Contrat, sont constitués de « l’Équipement » à livrer (matériaux, produits, équipements, …) et des « Services » à exécuter (Travaux de montage, supervision, mise en service, réparation, mise à niveau, maintenance, …) conformément aux exigences du Contrat. 1.6. Le Fournisseur est libre de sous-traiter tout ou partie de l’équipement et des services du Contrat. 1.7. Le Client s’abstiendra de toute action ou pratique en vue d’embaucher du personnel du Fournisseur. 1.8. Si une disposition du Contrat est jugée invalide ou inapplicable par une autorité compétente, en tout ou en partie, la validité des autres dispositions du Contrat et le reste de la disposition en question n’en seront pas affectés. 1.9. Les titres des présentes Conditions Générale de Vente sont indicatifs et n’affectent pas le contenu des clauses pertinentes. 2. CONTRAT ET DATE D’ENTREE EN VIGUEUR 2.1. Le Contrat entrera en vigueur lorsque le dernier des événements suivants se produira (« Date d'entrée en vigueur ») : - signature du Contrat par le Fournisseur et le Client - réception par le Fournisseur d'un acompte tel que prévu au Contrat, ou par défaut, réception par le Client de l'acceptation formelle de la commande signée par le Fournisseur - réception par le Fournisseur d'un crédit documentaire irrévocable et confirmé acceptable par le Fournisseur, ou réception de toute autre garantie de paiement par le Fournisseur (lettre de crédit stand-by ou autre, à convenir par le Fournisseur) 2.2. Sauf indication contraire dans les conditions particulières de vente, la Date d'entrée en vigueur constituera la date de début des obligations contractuelles du Fournisseur et du délai de livraison et des calendriers spécifiés le cas échéant dans le Contrat de l'Équipement, des pièces de rechange et des prestations de Service. 2.3. S'il devait y avoir plus de trente (30) jours après la signature du Contrat sans occurrence de la date d'entrée en vigueur, le Fournisseur aurait le droit de modifier les calendriers susmentionnés. 3. COMMANDE, CONFIRMATION DE COMMANDE 3.1. Sauf exception justifiée, le Fournisseur confirme les commandes par écrit. Les termes de la confirmation de commande écrite sont la référence exclusive pour les termes de paiement, le délai, le contenu de la livraison et l’étendue des prestations, et intègrent, le cas échéant, des réserves sur la commande du Client (document HASLER EQ23). 3.2. Des modifications de commande, ainsi que des accords oraux ne sont valables que si le Fournisseur les a confirmés par écrit au Client. 3.3. Le Fournisseur est autorisé à procéder en tout temps à des modifications apportant des améliorations dans la mesure où celles-ci n’entravent pas les performances garanties et n'entraînent pas une hausse du prix pour le Client. 3.4. La soumission d'une commande signée par le Client vaut l'acceptation par celui-ci des présentes Conditions Générales de Vente, sauf si un ou plusieurs points de ces CGV ont donné lieu à une négociation, et à la condition que ces points négociés soient retracés dans le Contrat écrit signé du Fournisseur ou dans des Conditions Particulières de Ventes également signées. 4. PRIX 4.1. Les prix sont exprimés selon l’Incoterm exact spécifié dans les conditions particulières de vente, selon les définitions ICC (Chambre de Commerce International) de la dernière révision connue à l’offre. 4.2. Des adaptations de prix après la conclusion du Contrat peuvent être opérées dans les cas suivants : - une révision de prix a été convenue, - une prolongation du délai de livraison a eu lieu pour l’une des raisons sous point 11.3, - l’étendue des Travaux convenus a été modifiée, - des modifications ont été apportées au matériel ou à l’exécution, parce que les documents mis à la disposition du Fournisseur par le Client ne correspondaient pas aux conditions réelles ou étaient incomplets. 4.3. Dans le cas où la Date d'entrée en vigueur survient après la date de validité de l'offre, ou dans le cas où la date d'achèvement du Contrat est reportée pour des raisons indépendantes de la responsabilité du Fournisseur, le Fournisseur serait en droit de mettre à jour ses prix pour les Travaux reportés, en particulier afin de prendre en compte des éventuelles augmentations de prix des matières premières, de l'énergie et du coût moyen de la vie. 4.4. Le prix s’entend et correspond à la limite de prestations définies dans l’offre technique de référence du Contrat. 4.5. Le prix du Contrat sera ajusté pour tenir compte de toute modification de coût pour le Fournisseur résultant de modifications de la législation du pays du Client. La législation désigne toute loi, ordonnance, réglementation, non limitée aux lois fiscales, qui affecte le Fournisseur dans l’exécution des obligations en vertu du Contrat.
B98: =Configuration!AJ47 -> 5. EXECUTION DU CONTRAT 5.1. La livraison répond aux normes et prescriptions appliquées par le Fournisseur, valables au moment de l’offre, et confirmées à la commande. 5.2. Les marchandises sont conçues et fabriquées en respectant les exigences fondamentales de sécurité et de santé qui leur sont respectivement applicables. La marque CE de conformité et l’établissement des déclarations du Fournisseur répondent aux directives correspondantes. 5.3. Bonnes pratiques d’ingénierie : l’Equipement et les Services seront conformes aux bonnes pratiques d’ingénierie et aux spécifications du Contrat. Le Client est tenu de fournir au Fournisseur toutes les informations et documents nécessaires aux Travaux avant la signature du Contrat. 5.4. Obligations du Client : pendant toute la durée des Travaux, le Client devra fournir à temps toute approbation et instruction, matériel, travaux, accès au chantier et à tout équipement dans la mesure nécessaire aux Travaux (règles de sécurité, risques particuliers, …) et plus généralement tout support requis pour les Travaux tant qu’il ne fait pas partie des Travaux ou de la responsabilité du Fournisseur. Le Client doit aider le Fournisseur à obtenir tout visa, permis ou licence qui peut être nécessaire pour l’exécution des Services ou pour l’importation et la livraison de l’Equipement (le cas échéant). 5.5. Supervision du Client : lorsque cela est prévu dans les conditions particulières de vente, le Client peut superviser l’exécution du Contrat. A cet effet, le Client ou ses représentants auront accès aux installations du Fournisseur pendant leurs heures de travail. Le coût de celle-ci est entièrement à la charge du Client. Cette surveillance ne doit pas entraver ni retarder l’exécution du Contrat. 5.6. Recommandations du Fournisseur : tout conseil ou recommandation donné par le Fournisseur (ou ses employés ou agents) qui n’est pas confirmé par écrit par le Fournisseur, est suivi ou appliqué entièrement aux risques et périls du Client, et en conséquence, le Fournisseur ne sera pas responsable de tels conseils ou recommandations qui ne sont pas ainsi confirmés. 6. MODIFICATION – AMENDEMENTS – VARIATIONS 6.1. Pendant l’exécution du Contrat, le Fournisseur peut introduire des changements dans l’Equipement comme requis par des circonstances obligatoires telles que la modification des normes techniques, ou des méthodes de fabrication, ou des dispositions législatives et réglementaires, affectant les conditions d’exécution du Contrat. Ces modifications ne doivent cependant pas affecter les caractéristiques fondamentales des équipements et services spécifiés dans le Contrat. 6.2. Si ces modifications ont des effets qui empêchent ou rendent plus difficile le respect de certaines dispositions du Contrat, notamment celles relatives aux prix ou aux délais de livraison, le Fournisseur soumettra au Client les pièces justificatives appropriées et le Client et le Fournisseur signeront un Avenant à leur Contrat fixant les modifications requises. 6.3. Toutes les modifications au Contrat seront documentées par écrit signées par le Fournisseur et le Client. La responsabilité du Fournisseur ne peut en aucun cas être engagée pour l’exécution par ses employés, à la demande du Client, des Travaux autres que ceux expressément mentionnés dans le Contrat. 7. PAIEMENT 7.1. Le Client doit effectuer les paiements conformément aux conditions convenues au domicile fiscal du Fournisseur sans déduction d’escomptes, de frais, d’impôts, de taxes, de droits de douane, d’indemnités, de pénalités de retard du Fournisseur ou autres redevances. A défaut d’autres accords, le prix est à régler en deux tranches, à savoir : un tiers à la réception de la confirmation de commande, deux tiers à la livraison ou à l’avis de disponibilité. Une facture rappelant l’acompte versé et le solde à payer sera émise. L’acompte est à payer dès réception de la facture correspondante. Toute autre facture doit être réglée, sauf accord particulier, dans un délai de 30 (trente) jours à compter de la date d’émission de la facture. Dans le cas d’un paiement anticipé, aucune remise ni escompte n’est accordé. 7.2. Les conditions et engagements de paiement demeurent de rigueur lorsque l’acceptation, le transport, la livraison, le montage, la mise en service de l’installation ou des prestations sont retardés ou rendus impossibles pour des raisons dont le Fournisseur n’est pas responsable. Il en va de même lorsque des pièces non essentielles font défaut ou lorsque des travaux de retouche s’avèrent nécessaires sans qu’ils empêchent l’utilisation d’une installation ou d’une prestation. 7.3. En cas de retard de paiement, le Fournisseur se réserve le droit à l’arrêt immédiat des livraisons et prestations prévues. Il est autorisé à facturer des intérêts à partir du jour suivant la date de règlement figurant sur la facture, au taux de 3 (trois) fois le taux d’intérêt légal français. En outre, une indemnité forfaitaire minimum de 40 euros pour frais de recouvrement sera due de plein droit, sans qu’aucun rappel ne soit nécessaire, sans préjudice de la faculté du Fournisseur qui aurait exposé des frais de recouvrement d’un montant supérieur au montant forfaitaire susvisé. Cette indemnité s’applique à chaque facture payée en retard. 7.4. Si le Client est en retard de paiement, le Fournisseur est autorisé à cesser la poursuite des activités inhérentes au Contrat et à retenir les livraisons et prestations en cours. Si, dans l’espace d’un délai raisonnable, le Fournisseur n'obtient pas des garanties suffisantes, il a le droit de se désister du Contrat, d’exiger des dommages-intérêts et de reprendre le cas échéant la marchandise fournie dans le cadre du Contrat aux frais du Client. 8. TAXES 8.1. Sauf indication contraire dans la réglementation des pays de l'Union européenne, où le Contrat prévoit la livraison de matériel dans l'Union européenne, la livraison du matériel sera exonérée de TVA à condition que le Client fournisse au Fournisseur en même temps que la commande son numéro de TVA ou celui de l'utilisateur final si ce dernier est résident de l'Union européenne. 8.2. Dans ce cas, le Client ou l'utilisateur final est responsable du paiement de la TVA applicable conformément aux règles fiscales applicables dans son propre pays. Si le numéro de TVA n'est pas joint au Contrat, le matériel sera soumis à la TVA dans le pays du Client, calculée au taux en vigueur à la date de facturation. Tout redressement fiscal, pénalité ou intérêts de retard qui pourraient devenir dus du fait de l'utilisation dudit numéro de TVA par le Fournisseur sera remboursé par le Client au Fournisseur dans un délai de 30 (trente) jours à compter de la présentation d'une preuve de paiement de celui-ci. 8.3. Concernant la France, les prix indiqués sont hors TVA. Celle-ci est appliquée à la facturation conformément à la législation en vigueur. 9. RESERVE DE PROPRIETE La livraison reste la propriété du Fournisseur jusqu’au règlement intégral de l’Equipement. Le Client a l’obligation de participer aux mesures visant la protection de la propriété. En particulier, il s’oblige à identifier précisément la marchandise livrée et non payée dans ses entrepôts, de façon à en permettre, le cas échéant, une revendication efficace. Il habilite à ses frais le Fournisseur à procéder à tout contrôle de cette identification dans les locaux du Client. Le Client prend également à sa charge les frais d’’inscription ou de signalisation de la réserve de propriété dans les registres / livres publics conformément aux lois nationales applicables et les frais du Fournisseur à accomplir toutes les formalités nécessaires à cet effet. Jusqu’à la levée de la réserve de propriété, le Client s’engage à assurer et entretenir la marchandise livrée.
B140: =Configuration!AJ48 -> 10. FORCE MAJEURE 10.1. Le Fournisseur ne sera en aucun cas responsable du non-respect de ses obligations du fait d’un cas de Force Majeure. La Force Majeure sera définie comme tout événement qui empêche l’exécution totale ou partielle du Contrat et qui ne peut être surmonté malgré un effort raisonnable de la part du Fournisseur ou de ses agents. 10.2. La Force Majeure comprend, mais sans s’y limiter, les événements suivants : conflits de travail ou grèves, pénurie de travailleurs qualifiés ou de matières premières, incidents majeurs affectant les agents du Fournisseur, incendies, explosions, mobilisations, action ou manquement à acte des services publics ou des autorités gouvernementales, actes de guerre, sabotage, embargos, insurrection, émeutes, rupture de la paix, problèmes majeurs de fabrication tels que les accidents d’outils ou panne d’entreprise, ou livraisons tardives ou avec défauts des matières premières, produits semi-finis ou finis, la mise au rebut de pièces essentielles, des mesures administratives ou manquements, des phénomènes naturels, des interruptions ou retards de transport, épidémies. 10.3. Si l’événement de Force Majeure se poursuit pendant plus de 3 (trois) mois et que le Client et le Fournisseur ne se sont pas mis d’accord sur les modalités de continuation du Contrat, le Fournisseur aura le droit de résilier le Contrat dans un délai de 30 (trente) jours après notification écrite au Client, auquel cas la disposition de la clause de RÉSILIATION (14) s’applique. 11. DELAI DE LIVRAISON 11.1. Le délai de livraison débute à partir de la date d’Entrée en vigueur. 11.2. Sauf autre accord, la livraison intervenant dans les locaux du Fournisseur, le délai de livraison est considéré comme respecté lorsque la marchandise est prête à être livrée voire, par dérogation, réceptionnée conformément à ce qui a été convenu. 11.3. Le délai de livraison est prolongé de manière appropriée : - lorsque les points 4 et 5 spécifiés chapitre 5 (Exécution du Contrat) parviennent avec retard au Fournisseur - lorsque les spécifications nécessaires à la réalisation du Contrat sont modifiées plus tard que la date d’Entrée en vigueur par le Client - lors d’un cas de Force Majeure (chapitre 10) - si une inspection externe, mandatée par le Client par écrit lors de sa commande, retarde le délai initialement prévu. 11.4. Si de tels événements non maîtrisables empêchent l’exécution des livraisons et prestations dans les délais convenus, le Client n’a droit à aucun dédommagement. 11.5. Si une date précise est convenue à la place d’un délai de livraison, celle-ci équivaut au dernier jour du délai de livraison. Les points précédents de ce chapitre s’appliquent de manière analogue.12. INDEMNITES DE RETARD Si le Fournisseur ne respecte pas le calendrier en raison de sa propre faute et si une sommation à livrer a été délivrée par le Client, le Fournisseur doit, à la demande du Client et dans un délai de 15 (quinze) jours à compter de ladite sommation, payer des indemnités de retard calculées sur la base du prix du Contrat (hors taxes) des Travaux retardés à raison de 0,5% par semaine jusqu’à un maximum de 5% des Travaux retardés. L’indemnité indiquée ci-dessus constituera la limite de responsabilité du Fournisseur pour retard et sera à ce titre considérée comme forfaitaire et libératoire. Aucune indemnité de retard ne sera imposée au Fournisseur pour retards dus à des circonstances imputables au Client ou à un cas de force majeure, ou lorsque de tels retards n’ont pas entraîné de dommages pour le Client. Les indemnités de retard ne sont pas applicables à la partie documentaire. 13. CONFIDENTIALITE, PROPRIETE 13.1. Les indications de poids, de mesures, de prestations, etc. figurant dans les catalogues, prospectus et offres etc. sont des valeurs de référence sans engagement. 13.2. Le Fournisseur conserve la propriété de ses études, plans, modèles, données et résultats d’essais ainsi que tout document émis et communiqué au Client, ou dont le Client peut avoir eu connaissance en exécution du Contrat. Ces informations et documents ne peuvent être utilisés que par le Client exclusivement pour l’exécution du Contrat. Ces documents et informations seront traités de manière confidentielle et ne seront pas distribués, publiés ou généralement communiqués à des tiers sans autorisation expresse préalable et écrite du Fournisseur, à qui ils seront immédiatement retournés sur simple demande de celui-ci en cas de résiliation du Contrat. Ils ne doivent pas non plus être utilisés pour la fabrication de machines, équipements ou de parties de ceux-ci. 13.3. A condition que le Fournisseur ait été payé de l’intégralité du montant restant dû contractuellement, le Fournisseur accorde au Client un droit libre et non exclusif d’utiliser les documents susmentionnés exclusivement pour entretenir et assurer la maintenance de l’Equipement soumis à ses Travaux. 14. RESILIATION 14.1. Sauf en cas de Force Majeure, chaque partie a le droit de résilier le Contrat à tout moment dans le cas où l’autre Partie ne remplit pas une obligation substantielle qui lui est imposée par le Contrat et ne prend pas les mesures satisfaisantes pour y remédier dans les 20 (vingt) jours suivant la réception par la Partie défaillante d’un avis écrit à cet effet, par lettre recommandée avec demande d’avis de réception, ou toute notification équivalente de laquelle ressort une interpellation suffisante. 14.2. Si le Client résilie une commande, le Fournisseur a droit à la rémunération des livraisons et prestations déjà fournies, ou, si aucune livraison n’a encore été faite, au remboursement des sommes engagées par le Fournisseur auprès des sous-traitants. La rémunération et les remboursements cités ci-dessus, seront majorés d’une indemnité de dédit équivalant à 10% de la valeur de la commande. 14.3. La résiliation du Contrat en tout ou en partie, pour quelque raison que ce soit, n’affectera ni ne préjugera les dispositions des clauses de GARANTIE COMMERCIALE (19), de CONFIDENTIALITE, PROPRIETE (13) et de DROIT ET ARBITRAGE (22) des présentes.
B183: =Configuration!AJ49 -> 15. EMBALLAGE, LIVRAISON, STOCKAGE 15.1 Le lieu d'exécution des Travaux pour le Client et pour le Fournisseur est un des locaux du Fournisseur, au choix du Fournisseur, et cela même si la livraison a eu lieu Franco, CIF, FOB ou à des conditions analogues. 15.2. La prestation d’emballage est assurée par le Fournisseur mais en aucun cas il n’est repris. 15.3. Lors de livraisons « EXW », les frais de transport et d’assurances sont à la charge du Client conformément aux dispositions de l’Incoterm désigné. 15.4. Les réclamations concernant des dommages, pertes etc. découlant du transport sont à signaler dès la réception de la livraison et à faire attester par le dernier transporteur. 15.5. Quels que soient le point de livraison et les moyens de transport de l’Equipement dans un délai de 15 (quinze) jours à compter de la notification par le Fournisseur de la disponibilité à la livraison, le Fournisseur sera autorisé, au nom du Client, à entreposer l’Equipement aux frais du Client. Le Fournisseur sera réputé avoir livré cet Equipement au Client lors de l’entreposage et aura droit au paiement sur présentation du récépissé d’entrepôt à la place de tout connaissement ou document similaire autrement requis par le Contrat. Le risque sera transféré au Client lors du stockage, mais le titre ne passera que conformément aux dispositions de la clause de RESERVE DE PROPPRIETE. 15.6. De même, si l’expédition est retardée du fait du Client, le Fournisseur peut accepter, sur demande écrite du Client et aux frais et risques exclusifs de ce dernier, de stocker le matériel. Le Fournisseur facturera une somme égale à 0,6% du prix hors taxe du matériel à stocker par semaine de report avec un délai de carence de 15 (quinze) jours calendaires. La durée de stockage ne pourra en aucun cas excéder 6 (six) mois à compter de la demande du Client. Ces dispositions ne modifient en rien les obligations de paiement du Client. 16. TRANSFERT DE RISQUES 16.1. Les transferts de risques passent au Client en fonction de l’Incoterm déterminé par le Contrat. 16.2. Si l’expédition est retardée ou rendue impossible pour des raisons non imputables au Fournisseur, le risque passe au Client au moment initialement prévu pour la livraison « EXW ». A partir de ce moment, la marchandise est stockée et assurée aux frais et aux risques du Client. 17. CONTROLE ET RECEPTION 17.1. Avant l’expédition, chaque installation est soumise à un contrôle usuel. Si le Client souhaite être présent lors du contrôle de sa livraison, il doit le stipuler par écrit lorsqu’il passe la commande. 17.2. Concernant les commandes de pièces de rechange, sauf spécification particulière dans la commande, seule l’électronique est soumise à un contrôle usuel. 17.3. Le Client peut réceptionner la livraison lui-même ou la faire réceptionner par une personne mandatée à cet effet. Conformément aux stipulations de l’article 11.2 ci-dessus, et sauf dérogation prévue au même article, la réception a lieu dans l’usine du fabricant et comprend un contrôle de fonctionnement sans produit. Les coûts sont dans tous les cas à la charge du Client. 17.4. Le Client a l’obligation de vérifier les livraisons et prestations dans un délai de cinq (5) jours ouvrés et de communiquer tout défaut éventuel immédiatement et par écrit au Fournisseur. A défaut, les livraisons et prestations sont réputées acceptées. 17.5. En outre, dans l’hypothèse où le Client n’aurait pas fait le choix du transporteur, il doit préserver les droits du Fournisseur auprès de ce transporteur, en notifiant au voiturier, dans les trois (3) jours, non compris les jours fériés, qui suivent celui de ladite réception, toute avarie ou perte, par lettre motivée envoyée sous forme recommandée ou acte extra judiciaire, conformément aux dispositions de l’article L133-3 du code de Commerce. 18. MONTAGE ET MISE EN SERVICE 18.1. Le Client est tenu d’effectuer le montage par du personnel dûment qualifié, sous la supervision du Fournisseur. 18.2. La mise en service et le contrôle des travaux de montage doivent être effectués par du personnel du Fournisseur ou autorisé par le Fournisseur. 18.3. Les Services réalisés font l’objet d’un procès-verbal d’acceptation immédiatement après leur achèvement. 18.4. Dans le cas d’un montage et/ou d’une mise en service effectués par le Client, en dehors du contexte indiqué ci-dessus, celui-ci ne pourra pas prétendre à bénéficier des garanties contractuelles.
B221: =Configuration!AJ50 -> 19. GARANTIE COMMERCIALE 19.1. Sauf si le Client est de même spécialité que le Fournisseur, la présente garantie commerciale ne fait pas obstacle à la garantie légale des vices cachés prévue par les articles 1641 et suivants du Code Civil. Pendant la période de garantie commerciale, le Fournisseur s’engage à réparer ou à remplacer à son choix aussi rapidement que possible et sur sommation écrite du Client, toutes les pièces que le Client prouvera être défectueuses ou inutilisables. Les pièces remplacées deviennent la propriété du Fournisseur. 19.2. Le Fournisseur ne supporte que les frais résultant de la réparation ou du remplacement des pièces défectueuses dans ses ateliers. Le Fournisseur ne peut en aucun cas être tenu de supporter des dépenses autres que celles imputables en vertu de cette clause de garantie. Si les pièces défectueuses ne peuvent pas être réparées ou remplacées dans ses ateliers pour des raisons qui ne lui sont pas imputables, tous les frais supplémentaires qui en résultent, en particulier les frais de déplacement, sont à la charge du Client. De même que les dépenses encourues par le Client ou par une tierce personne durant l’immobilisation de l’Equipement en raison de l’exécution des travaux conformément à la garantie. 19.3. Est exclue, dans le cadre de la présente garantie commerciale, toute autre prétention du Client fondée sur une livraison défectueuse, notamment des dommages-intérêts et la résiliation du Contrat. 19.4. La durée de la garantie commerciale est de 12 mois. Elle prend effet lorsque le matériel est prêt à être expédié ou à l’achèvement de la mise en service si le Fournisseur assure également celle-ci, conformément aux stipulations de l’article 11.2 ci-dessus Si l’expédition ou la mise en service sont retardées pour des raisons qui ne sont pas imputables au Fournisseur, la garantie commerciale prend fin au plus tard 18 mois à partir du moment où le matériel a été prêt à être expédié. 19.5. Les pièces remplacées bénéficient du même délai de garantie commerciale que l’objet principal. Cette garantie commerciale cesse cependant au plus tard 18 mois après le début de la garantie commerciale pour l’objet principal ou, si l’expédition ou la mise en service de l’objet principal ont été retardées pour des raisons qui ne sont pas imputables au Fournisseur, au plus tard 24 mois à partir du moment où l’objet principal a été prêt à être expédié. 19.6. Sont exclus de la garantie commerciale les cas suivants : - dommages dus à l’usure naturelle, à l’insuffisance d’entretien, à une fausse manipulation, à un usage excessif, à l’emploi de moyens d’exploitation des prescriptions d’usine, à l’emploi de moyens d’exploitation contre-indiqués, à des influences chimiques ou électrolytiques, à des surtensions ou à des coups de foudre, à des corrosions, érosions, cavitations ou des phénomènes semblables, à des travaux de génie civil et de montage défectueux qui n’ont pas été exécutés par le Fournisseur, ainsi qu’à d’autres causes qui ne lui sont pas imputables. - défauts imputables à la conception, au matériau, aux techniques de fabrication ou de montage imposés par le Client et pour lesquelles le Fournisseur a donné des commentaires écrits au Client. - non-respect des instructions du Fournisseur - entretien de l’équipement, spécifié dans le Contrat, par le Client ou par des tiers, dans des conditions non préalablement approuvées par écrit par le Fournisseur - entretien courant ou remplacement de pièces requis par l'usure normale de l'Equipement ou par l'exposition de l'Equipement aux intempéries - défauts ou dégradation causés par une erreur ou une négligence de l'utilisateur de l'Equipement, ou par un événement de Force Majeure ou des circonstances imprévisibles Les composants et les pièces de l'Equipement sont conformes aux normes, aux caractéristiques de conception et aux mesures de qualité qui correspondent à des exigences spécifiques et sont appropriés pour l'utilisation à laquelle l'Equipement est destiné. Par conséquent, l'obligation de garantie du Fournisseur expirera automatiquement si tout ou une partie des composants ou pièces de l'Equipement sont remplacés par des composants ou des pièces non fournis par le Fournisseur. 19.7. La garantie commerciale cesse si le Client (ou des tiers) effectue des modifications ou des réparations sur la livraison sans l’accord écrit du Fournisseur, ou si le Client ne prend pas immédiatement les mesures appropriées pour éviter que le dommage ne s’aggrave et pour permettre au Fournisseur de remédier au défaut. 19.8. Si le Client ne fait pas valoir par écrit, jusqu’à l’expiration du délai de garantie commerciale, des prétentions déterminées découlant de cette dernière, le Fournisseur est délié de ses obligations du chef de ladite garantie. 19.9. La garantie du Fournisseur en vertu de cette clause est en place et exclut toute autre garantie ou engagement de toute sorte. 19.10. Pour des livraisons provenant d’un autre constructeur, le Fournisseur n’assume la garantie commerciale que dans le cadre des obligations du sous-traitant. 20. SUSPENSION 20.1. Si l’exécution du Contrat est suspendue en raison d’un cas de Force Majeure ou du fait du Client, la période d’exécution du Contrat par le Fournisseur est donc prolongée. Tous les frais ultérieurs rencontrés par le Fournisseur seront remboursés par le Client. 20.2. Si l’exécution du Contrat est suspendue pour une raison quelconque et que cette suspension se poursuit pendant plus de 3 (trois) mois, le Fournisseur ou le Client aura le droit à tout moment pendant cette suspension ininterrompue de résilier le Contrat avec un préavis écrit de plus de 30 (trente) jours. 21. RESPONSABILITE 21.1. Le Fournisseur s’engage à exécuter la livraison de l’Equipement conformément au Contrat. 21.2. Une fois le Client ayant rempli son obligation de vérification conformément à l’article 17.4 des présentes CGV, le Fournisseur s’engage à remplir ses obligations relatives à la l’article 1641 et suivants du Code Civil et à la garantie commerciale. 21.3. En aucun cas la responsabilité du Fournisseur au titre du Contrat ne pourra excéder le montant HT des sommes perçues au titre du Contrat. 21.4. En aucun cas le Fournisseur ne peut être tenu responsable pour tous préjudices immatériels tels que pertes de profit, pertes de production, d’exploitation etc… subis par le Client. 21.5. Le Client renonce à tout recours contre le Fournisseur pour obtenir réparation des conséquences pécuniaires de tous préjudices causés à des tiers et indemnisera le Fournisseur de toutes réclamations de tiers, liés directement ou indirectement à l’exécution du Contrat. Les conditions évoquées ci-dessus s’entendent hors vice caché. 22. DROIT ET ARBITRAGE 22.1. Le Contrat est régi et interprété conformément au droit français. 22.2. La langue de procédure est le français. 22.3. En cas de différend entre le Client et le Fournisseur sur une question technique, le Client et le Fournisseur conviennent de recourir au Centre International d’Expertise Technique de la Chambre de Commerce Internationale à Paris, conformément aux règles d’Expertise Technique de la CCI. 22.4. Si à tout moment une question, un différend ou une différence survient entre le Client et le Fournisseur, ils tenteront de parvenir à un règlement raisonnable de la question. Si un différend survenant en relation avec le Contrat (y compris tout différend quant à sa validité, sa signification, son effet ou sa résiliation) ne devait pas être réglé par le Client et le Fournisseur dans les 6 (six) semaines suivant la notification initiale de l’affaire, le Client et le Fournisseur conviennent qu’il sera définitivement réglé par arbitrage conformément au Règlement de conciliation et d’arbitrage de la Chambre de Commerce Internationale à Paris.

Sheet Agents
A1: Nom | B1: Code Representant
A3: ADRIAN SCALE - 102120 | B3: A7
A4: AL BIJJAR - 102187 | B4: C1
A5: ALGHANEM TRAD. & CONTR. CO. LTD.-101895 | B5: 85
A6: ALPHA EGYPT - 101941 | B6: 76
A7: AMIDAS SECURITEC - 102179 | B7: B7
A8: AMMERMANN - 101994 | B8: C5
A9: ARKAI - 102140 | B9: B3
A10: ATACO - 500058 | B10: 63
A11: ATI - 102080 | B11: E2
A12: AVI TRADING - 102055 | B12: 41
A13: AWINOX NORDIC A/S - 102333 | B13: D5
A14: BICKEL & WOLF -101863 | B14: 79
A15: CEMENT TECHNOLOGY C. - 102139 | B15: B2
A16: CORIOLIS TECHNICS - 101947 | B16: 98
A17: DELTA SERVICE COMPANY-100552 | B17: 51
A18: EDROCKMAN IV - 102110 | B18: A5
A19: ESR INGENIERIA - 102129 | B19: B1
A20: Evgeny OZHOGIN - 102186 | B20: B9
A21: FIRST MULTITEC - 101957 | B21: 73
A22: HEDLEY E. L. - 102390 | B22: E3
A23: IBESGRAL - 101831 | B23: 57
A24: INDOATLANTIC - 102301 | B24: D2
A25: INDUSTRIAL WEIGHING EQUIPMENT - 101961 | B25: 82
A26: INESCO - 101943 | B26: 95
A27: Ing. Fabio VEZZOSI & C. S.a.s. - 102292 | B27: C9
A28: INOX - 102264 | B28: C7
A29: INTEGRAL - 102128 | B29: A9
A30: ISI PROCESS CONSULTING - 102363 | B30: E1
A31: JJTECH - 101916 | B31: 78
A32: KEMEK ENGINEERING UAB - 101907 | B32: 96
A33: KLC TANZANIA - 102109 | B33: A4
A34: LBO Prodcution SA/NV - 102103 | B34: 38
A35: LINDA INDUSTRIAL SUPPLIES CO - 102084 | B35: A2
A36: MERSEN IBERICA SA - 102293 | B36: D1
A37: MERSEN ISTAMBUL - 101960 | B37: 49
A38: NAGY Viktor - 102355 | B38: D9
A39: NAZCATECH - 102162 | B39: B4
A40: NORM MAKINE - 102304 | B40: D3
A41: ORETEC - 500552 | B41: 90
A42: P. DE LANNOY - 102281 | B42: C8
A43: PLAST - 102200 | B43: C3
A44: POWDER & BULK - 102111 | B44: A6
A45: PT UNIDEBY KENCANA - 102042 | B45: 42
A46: RAN TEC PROCESS Co., Ltd -500594 | B46: 58
A47: REFRACTORIES PTY LTD - 101958 | B47: 86
A48: Sandjar SAIDULLAEV - 102167 | B48: B6
A49: SEAM (M. Triki) - 102002 | B49: 43
A50: Sergey MAKOV - 102185 | B50: B8
A51: SESEIM - 101662 | B51: 93
A52: SHIMISUTEC - 101940 | B52: 92
A53: SPIDER INTERNATIONAL - 102235 | B53: C4
A54: STANDPHIL - 102165 | B54: B5
A55: STEFANIV Vasyl - 102339 | B55: D6
A56: STIL-M d.o.o. - 102072 | B56: 40
A57: TASHKINOV Alexey - 101945 | B57: 97
A58: TECGATES - 101813 | B58: 72
A59: TMI TAVENKON . Taisto TOROI - 101997 | B59: 44
A60: TOTAL INDUSTRIAL LTD - 102064 | B60: 52
A61: UNICORN BLUE ETS - 101967 | B61: 74
A62: V CUTAMORA - 102121 | B62: A8
A63: WESTWIND - 102246 | B63: C6
A64: YILAK AND SONS TRADING PLC. - 101942 | B64: 77
A65: ZAS AGENCIES - 101857 | B65: 70
